Workbook

Sheet GALA
B1: Gala held at | L1: Gala held on:
A2: No | B2: Event | C2: Lane 2 | F2: Lane 3 | I2: Lane 4 | L2: Lane 5 | O2: Lane 6 | R2: Lane 7
C3: Name/Time | D3: Pos | E3: Pts | F3: Name/Time | G3: Pos | H3: Pts | I3: Name/Time | J3: Pos | K3: Pts | L3: Name/Time | M3: Pos | N3: Pts | O3: Name/Time | P3: Pos | Q3: Pts | R3: Name/Time | S3: Pos | T3: Pts | U3: Line check | V3: Cum. check
B4: Club Name | C4: =IF(ISBLANK('Lane 2'!$C1), "", 'Lane 2'!$C1) ->  | F4: =IF(ISBLANK('Lane 3'!$C1), "", 'Lane 3'!$C1) ->  | I4: =IF(ISBLANK('Lane 4'!$C1), "", 'Lane 4'!$C1) ->  | L4: =IF(ISBLANK('Lane 5'!$C1), "", 'Lane 5'!$C1) ->  | O4: =IF(ISBLANK('Lane 6'!$C1), "", 'Lane 6'!$C1) ->  | R4: =IF(ISBLANK('Lane 1'!$C1), "", 'Lane 1'!$C1) -> 
A5: 1 | B5: G 10yrs 2L | C5: =IF(ISERROR(FIND("Relay", $B6)), IF('Lane 2'!$C3="Swimmer", "", 'Lane 2'!$C3), "Relay") -> Faith Shepherd | D5: =IF(OR(C6="DQ",C6="DNS"),"-",IF(C6=SMALL((C6,F6,I6,L6,O6,R6),1),1,IF(C6=SMALL((C6,F6,I6,L6,O6,R6),2),2,IF(C6=SMALL((C6,F6,I6,L6,O6,R6),3),3,IF(C6=SMALL((C6,F6,I6,L6,O6,R6),4),4,IF(C6=SMALL((C6,F6,I6,L6,O6,R6),5),5,IF(C6=SMALL((C6,F6,I6,L6,O6,R6),6),6))))))) -> 1 | E5: =IF(ISTEXT(D5),0,7-D5) -> 6 | F5: =IF(ISERROR(FIND("Relay", $B6)), IF('Lane 3'!$C3="Swimmer", "", 'Lane 3'!$C3), "Relay") -> Elouise Brookes | G5: =IF(OR(F6="DQ",F6="DNS"),"-",IF(F6=SMALL((C6,F6,I6,L6,O6,R6),1),1,IF(F6=SMALL((C6,F6,I6,L6,O6,R6),2),2,IF(F6=SMALL((C6,F6,I6,L6,O6,R6),3),3,IF(F6=SMALL((C6,F6,I6,L6,O6,R6),4),4,IF(F6=SMALL((C6,F6,I6,L6,O6,R6),5),5,IF(F6=SMALL((C6,F6,I6,L6,O6,R6),6),6))))))) -> 2 | H5: =IF(ISTEXT(G5),0,7-G5) -> 5 | I5: =IF(ISERROR(FIND("Relay", $B6)), IF('Lane 4'!$C3="Swimmer", "", 'Lane 4'!$C3), "Relay") -> Khloe Deoso | J5: =IF(OR(I6="DQ",I6="DNS"),"-",IF(I6=SMALL((C6,F6,I6,L6,O6,R6),1),1,IF(I6=SMALL((C6,F6,I6,L6,O6,R6),2),2,IF(I6=SMALL((C6,F6,I6,L6,O6,R6),3),3,IF(I6=SMALL((C6,F6,I6,L6,O6,R6),4),4,IF(I6=SMALL((C6,F6,I6,L6,O6,R6),5),5,IF(I6=SMALL((C6,F6,I6,L6,O6,R6),6),6))))))) -> 3 | K5: =IF(ISTEXT(J5),0,7-J5) -> 4 | L5: =IF(ISERROR(FIND("Relay", $B6)), IF('Lane 5'!$C3="Swimmer", "", 'Lane 5'!$C3), "Relay") -> Waleeha Qaiser | M5: =IF(OR(L6="DQ",L6="DNS"),"-",IF(L6=SMALL((C6,F6,I6,L6,O6,R6),1),1,IF(L6=SMALL((C6,F6,I6,L6,O6,R6),2),2,IF(L6=SMALL((C6,F6,I6,L6,O6,R6),3),3,IF(L6=SMALL((C6,F6,I6,L6,O6,R6),4),4,IF(L6=SMALL((C6,F6,I6,L6,O6,R6),5),5,IF(L6=SMALL((C6,F6,I6,L6,O6,R6),6),6))))))) -> 5 | N5: =IF(ISTEXT(M5),0,7-M5) -> 2 | O5: =IF(ISERROR(FIND("Relay", $B6)), IF('Lane 6'!$C3="Swimmer", "", 'Lane 6'!$C3), "Relay") -> S Warrilow | P5: =IF(OR(O6="DQ",O6="DNS"),"-",IF(O6=SMALL((C6,F6,I6,L6,O6,R6),1),1,IF(O6=SMALL((C6,F6,I6,L6,O6,R6),2),2,IF(O6=SMALL((C6,F6,I6,L6,O6,R6),3),3,IF(O6=SMALL((C6,F6,I6,L6,O6,R6),4),4,IF(O6=SMALL((C6,F6,I6,L6,O6,R6),5),5,IF(O6=SMALL((C6,F6,I6,L6,O6,R6),6),6))))))) -> 6 | Q5: =IF(ISTEXT(P5),0,7-P5) -> 1 | R5: =IF(ISERROR(FIND("Relay", $B6)), IF('Lane 1'!$C3="Swimmer", "", 'Lane 1'!$C3), "Relay") -> Scarlett Fletcher | S5: =IF(OR(R6="DQ",R6="DNS"),"-",IF(R6=SMALL((C6,F6,I6,L6,O6,R6),1),1,IF(R6=SMALL((C6,F6,I6,L6,O6,R6),2),2,IF(R6=SMALL((C6,F6,I6,L6,O6,R6),3),3,IF(R6=SMALL((C6,F6,I6,L6,O6,R6),4),4,IF(R6=SMALL((C6,F6,I6,L6,O6,R6),5),5,IF(R6=SMALL((C6,F6,I6,L6,O6,R6),6),6))))))) -> 4 | T5: =IF(ISTEXT(S5),0,7-S5) -> 3 | U5: =T5+Q5+N5+K5+H5+E5 -> 21
B6: Freestyle | C6: 00:00:36.370 | E6: =SUM(E5) -> 6 | F6: 00:00:37.020 | H6: =SUM(H5) -> 5 | I6: 00:00:37.280 | K6: =SUM(K5) -> 4 | L6: 00:01:00.970 | N6: =SUM(N5) -> 2 | O6: 00:01:20.370 | Q6: =SUM(Q5) -> 1 | R6: 00:00:39.500 | T6: =SUM(T5) -> 3 | V6: =U5 -> 21
A7: 2 | B7: B 10/u 2L | C7: =IF(ISERROR(FIND("Relay", $B8)), IF('Lane 2'!$C5="Swimmer", "", 'Lane 2'!$C5), "Relay") -> Zac Matthews | D7: =IF(OR(C8="DQ",C8="DNS"),"-",IF(C8=SMALL((C8,F8,I8,L8,O8,R8),1),1,IF(C8=SMALL((C8,F8,I8,L8,O8,R8),2),2,IF(C8=SMALL((C8,F8,I8,L8,O8,R8),3),3,IF(C8=SMALL((C8,F8,I8,L8,O8,R8),4),4,IF(C8=SMALL((C8,F8,I8,L8,O8,R8),5),5,IF(C8=SMALL((C8,F8,I8,L8,O8,R8),6),6))))))) -> - | E7: =IF(ISTEXT(D7),0,7-D7) -> 0 | F7: =IF(ISERROR(FIND("Relay", $B8)), IF('Lane 3'!$C5="Swimmer", "", 'Lane 3'!$C5), "Relay") -> Charlie Hodgetts | G7: =IF(OR(F8="DQ",F8="DNS"),"-",IF(F8=SMALL((C8,F8,I8,L8,O8,R8),1),1,IF(F8=SMALL((C8,F8,I8,L8,O8,R8),2),2,IF(F8=SMALL((C8,F8,I8,L8,O8,R8),3),3,IF(F8=SMALL((C8,F8,I8,L8,O8,R8),4),4,IF(F8=SMALL((C8,F8,I8,L8,O8,R8),5),5,IF(F8=SMALL((C8,F8,I8,L8,O8,R8),6),6))))))) -> 4 | H7: =IF(ISTEXT(G7),0,7-G7) -> 3 | I7: =IF(ISERROR(FIND("Relay", $B8)), IF('Lane 4'!$C5="Swimmer", "", 'Lane 4'!$C5), "Relay") -> Toru Ashton | J7: =IF(OR(I8="DQ",I8="DNS"),"-",IF(I8=SMALL((C8,F8,I8,L8,O8,R8),1),1,IF(I8=SMALL((C8,F8,I8,L8,O8,R8),2),2,IF(I8=SMALL((C8,F8,I8,L8,O8,R8),3),3,IF(I8=SMALL((C8,F8,I8,L8,O8,R8),4),4,IF(I8=SMALL((C8,F8,I8,L8,O8,R8),5),5,IF(I8=SMALL((C8,F8,I8,L8,O8,R8),6),6))))))) -> 3 | K7: =IF(ISTEXT(J7),0,7-J7) -> 4 | L7: =IF(ISERROR(FIND("Relay", $B8)), IF('Lane 5'!$C5="Swimmer", "", 'Lane 5'!$C5), "Relay") -> Veer Mulji | M7: =IF(OR(L8="DQ",L8="DNS"),"-",IF(L8=SMALL((C8,F8,I8,L8,O8,R8),1),1,IF(L8=SMALL((C8,F8,I8,L8,O8,R8),2),2,IF(L8=SMALL((C8,F8,I8,L8,O8,R8),3),3,IF(L8=SMALL((C8,F8,I8,L8,O8,R8),4),4,IF(L8=SMALL((C8,F8,I8,L8,O8,R8),5),5,IF(L8=SMALL((C8,F8,I8,L8,O8,R8),6),6))))))) -> 2 | N7: =IF(ISTEXT(M7),0,7-M7) -> 5 | P7: =IF(OR(O8="DQ",O8="DNS"),"-",IF(O8=SMALL((C8,F8,I8,L8,O8,R8),1),1,IF(O8=SMALL((C8,F8,I8,L8,O8,R8),2),2,IF(O8=SMALL((C8,F8,I8,L8,O8,R8),3),3,IF(O8=SMALL((C8,F8,I8,L8,O8,R8),4),4,IF(O8=SMALL((C8,F8,I8,L8,O8,R8),5),5,IF(O8=SMALL((C8,F8,I8,L8,O8,R8),6),6))))))) -> 1 | Q7: =IF(ISTEXT(P7),0,7-P7) -> 6 | R7: =IF(ISERROR(FIND("Relay", $B8)), IF('Lane 1'!$C5="Swimmer", "", 'Lane 1'!$C5), "Relay") -> Archie Hudson | S7: =IF(OR(R8="DQ",R8="DNS"),"-",IF(R8=SMALL((C8,F8,I8,L8,O8,R8),1),1,IF(R8=SMALL((C8,F8,I8,L8,O8,R8),2),2,IF(R8=SMALL((C8,F8,I8,L8,O8,R8),3),3,IF(R8=SMALL((C8,F8,I8,L8,O8,R8),4),4,IF(R8=SMALL((C8,F8,I8,L8,O8,R8),5),5,IF(R8=SMALL((C8,F8,I8,L8,O8,R8),6),6))))))) -> 5 | T7: =IF(ISTEXT(S7),0,7-S7) -> 2 | U7: =T7+Q7+N7+K7+H7+E7 -> 20
B8: Freestyle | C8: DQ | E8: =E6+E7 -> 6 | F8: 00:00:42.150 | H8: =H6+H7 -> 8 | I8: 00:00:41.220 | K8: =K6+K7 -> 8 | L8: 00:00:40.750 | N8: =N6+N7 -> 7 | O8: 00:00:38.500 | Q8: =Q6+Q7 -> 7 | R8: 00:00:44.400 | T8: =T6+T7 -> 5 | V8: =V6+U7 -> 41
A9: 3 | B9: G 9 yrs 1L | C9: =IF(ISERROR(FIND("Relay", $B10)), IF('Lane 2'!$C7="Swimmer", "", 'Lane 2'!$C7), "Relay") -> Emilia Skelding | D9: =IF(OR(C10="DQ",C10="DNS"),"-",IF(C10=SMALL((C10,F10,I10,L10,O10,R10),1),1,IF(C10=SMALL((C10,F10,I10,L10,O10,R10),2),2,IF(C10=SMALL((C10,F10,I10,L10,O10,R10),3),3,IF(C10=SMALL((C10,F10,I10,L10,O10,R10),4),4,IF(C10=SMALL((C10,F10,I10,L10,O10,R10),5),5,IF(C10=SMALL((C10,F10,I10,L10,O10,R10),6),6))))))) -> 1 | E9: =IF(ISTEXT(D9),0,7-D9) -> 6 | F9: =IF(ISERROR(FIND("Relay", $B10)), IF('Lane 3'!$C7="Swimmer", "", 'Lane 3'!$C7), "Relay") -> Harriet Granahan | G9: =IF(OR(F10="DQ",F10="DNS"),"-",IF(F10=SMALL((C10,F10,I10,L10,O10,R10),1),1,IF(F10=SMALL((C10,F10,I10,L10,O10,R10),2),2,IF(F10=SMALL((C10,F10,I10,L10,O10,R10),3),3,IF(F10=SMALL((C10,F10,I10,L10,O10,R10),4),4,IF(F10=SMALL((C10,F10,I10,L10,O10,R10),5),5,IF(F10=SMALL((C10,F10,I10,L10,O10,R10),6),6))))))) -> 5 | H9: =IF(ISTEXT(G9),0,7-G9) -> 2 | I9: =IF(ISERROR(FIND("Relay", $B10)), IF('Lane 4'!$C7="Swimmer", "", 'Lane 4'!$C7), "Relay") -> Constance Gwillim | J9: =IF(OR(I10="DQ",I10="DNS"),"-",IF(I10=SMALL((C10,F10,I10,L10,O10,R10),1),1,IF(I10=SMALL((C10,F10,I10,L10,O10,R10),2),2,IF(I10=SMALL((C10,F10,I10,L10,O10,R10),3),3,IF(I10=SMALL((C10,F10,I10,L10,O10,R10),4),4,IF(I10=SMALL((C10,F10,I10,L10,O10,R10),5),5,IF(I10=SMALL((C10,F10,I10,L10,O10,R10),6),6))))))) -> 2 | K9: =IF(ISTEXT(J9),0,7-J9) -> 5 | M9: =IF(OR(L10="DQ",L10="DNS"),"-",IF(L10=SMALL((C10,F10,I10,L10,O10,R10),1),1,IF(L10=SMALL((C10,F10,I10,L10,O10,R10),2),2,IF(L10=SMALL((C10,F10,I10,L10,O10,R10),3),3,IF(L10=SMALL((C10,F10,I10,L10,O10,R10),4),4,IF(L10=SMALL((C10,F10,I10,L10,O10,R10),5),5,IF(L10=SMALL((C10,F10,I10,L10,O10,R10),6),6))))))) -> 6 | N9: =IF(ISTEXT(M9),0,7-M9) -> 1 | O9: =IF(ISERROR(FIND("Relay", $B10)), IF('Lane 6'!$C7="Swimmer", "", 'Lane 6'!$C7), "Relay") -> M Khera | P9: =IF(OR(O10="DQ",O10="DNS"),"-",IF(O10=SMALL((C10,F10,I10,L10,O10,R10),1),1,IF(O10=SMALL((C10,F10,I10,L10,O10,R10),2),2,IF(O10=SMALL((C10,F10,I10,L10,O10,R10),3),3,IF(O10=SMALL((C10,F10,I10,L10,O10,R10),4),4,IF(O10=SMALL((C10,F10,I10,L10,O10,R10),5),5,IF(O10=SMALL((C10,F10,I10,L10,O10,R10),6),6))))))) -> 4 | Q9: =IF(ISTEXT(P9),0,7-P9) -> 3 | R9: =IF(ISERROR(FIND("Relay", $B10)), IF('Lane 1'!$C7="Swimmer", "", 'Lane 1'!$C7), "Relay") -> Abigail Bowater | S9: =IF(OR(R10="DQ",R10="DNS"),"-",IF(R10=SMALL((C10,F10,I10,L10,O10,R10),1),1,IF(R10=SMALL((C10,F10,I10,L10,O10,R10),2),2,IF(R10=SMALL((C10,F10,I10,L10,O10,R10),3),3,IF(R10=SMALL((C10,F10,I10,L10,O10,R10),4),4,IF(R10=SMALL((C10,F10,I10,L10,O10,R10),5),5,IF(R10=SMALL((C10,F10,I10,L10,O10,R10),6),6))))))) -> 3 | T9: =IF(ISTEXT(S9),0,7-S9) -> 4 | U9: =T9+Q9+N9+K9+H9+E9 -> 21
B10: Breaststroke | C10: 00:00:24.670 | E10: =E8+E9 -> 12 | F10: 00:00:27.840 | H10: =H8+H9 -> 10 | I10: 00:00:26.480 | K10: =K8+K9 -> 13 | L10: 00:00:29.310 | N10: =N8+N9 -> 8 | O10: 00:00:27.560 | Q10: =Q8+Q9 -> 10 | R10: 00:00:26.940 | T10: =T8+T9 -> 9 | V10: =V8+U9 -> 62
A11: 4 | B11: B 9 yrs 1L | C11: =IF(ISERROR(FIND("Relay", $B12)), IF('Lane 2'!$C9="Swimmer", "", 'Lane 2'!$C9), "Relay") -> Christian Neal | D11: =IF(OR(C12="DQ",C12="DNS"),"-",IF(C12=SMALL((C12,F12,I12,L12,O12,R12),1),1,IF(C12=SMALL((C12,F12,I12,L12,O12,R12),2),2,IF(C12=SMALL((C12,F12,I12,L12,O12,R12),3),3,IF(C12=SMALL((C12,F12,I12,L12,O12,R12),4),4,IF(C12=SMALL((C12,F12,I12,L12,O12,R12),5),5,IF(C12=SMALL((C12,F12,I12,L12,O12,R12),6),6))))))) -> 5 | E11: =IF(ISTEXT(D11),0,7-D11) -> 2 | F11: =IF(ISERROR(FIND("Relay", $B12)), IF('Lane 3'!$C9="Swimmer", "", 'Lane 3'!$C9), "Relay") -> Harry Chruchley | G11: =IF(OR(F12="DQ",F12="DNS"),"-",IF(F12=SMALL((C12,F12,I12,L12,O12,R12),1),1,IF(F12=SMALL((C12,F12,I12,L12,O12,R12),2),2,IF(F12=SMALL((C12,F12,I12,L12,O12,R12),3),3,IF(F12=SMALL((C12,F12,I12,L12,O12,R12),4),4,IF(F12=SMALL((C12,F12,I12,L12,O12,R12),5),5,IF(F12=SMALL((C12,F12,I12,L12,O12,R12),6),6))))))) -> 4 | H11: =IF(ISTEXT(G11),0,7-G11) -> 3 | I11: =IF(ISERROR(FIND("Relay", $B12)), IF('Lane 4'!$C9="Swimmer", "", 'Lane 4'!$C9), "Relay") -> Ethan Ryan | J11: =IF(OR(I12="DQ",I12="DNS"),"-",IF(I12=SMALL((C12,F12,I12,L12,O12,R12),1),1,IF(I12=SMALL((C12,F12,I12,L12,O12,R12),2),2,IF(I12=SMALL((C12,F12,I12,L12,O12,R12),3),3,IF(I12=SMALL((C12,F12,I12,L12,O12,R12),4),4,IF(I12=SMALL((C12,F12,I12,L12,O12,R12),5),5,IF(I12=SMALL((C12,F12,I12,L12,O12,R12),6),6))))))) -> - | K11: =IF(ISTEXT(J11),0,7-J11) -> 0 | L11: =IF(ISERROR(FIND("Relay", $B12)), IF('Lane 5'!$C9="Swimmer", "", 'Lane 5'!$C9), "Relay") -> James Inshaw | M11: =IF(OR(L12="DQ",L12="DNS"),"-",IF(L12=SMALL((C12,F12,I12,L12,O12,R12),1),1,IF(L12=SMALL((C12,F12,I12,L12,O12,R12),2),2,IF(L12=SMALL((C12,F12,I12,L12,O12,R12),3),3,IF(L12=SMALL((C12,F12,I12,L12,O12,R12),4),4,IF(L12=SMALL((C12,F12,I12,L12,O12,R12),5),5,IF(L12=SMALL((C12,F12,I12,L12,O12,R12),6),6))))))) -> 1 | N11: =IF(ISTEXT(M11),0,7-M11) -> 6 | O11: =IF(ISERROR(FIND("Relay", $B12)), IF('Lane 6'!$C9="Swimmer", "", 'Lane 6'!$C9), "Relay") -> J Watson | P11: =IF(OR(O12="DQ",O12="DNS"),"-",IF(O12=SMALL((C12,F12,I12,L12,O12,R12),1),1,IF(O12=SMALL((C12,F12,I12,L12,O12,R12),2),2,IF(O12=SMALL((C12,F12,I12,L12,O12,R12),3),3,IF(O12=SMALL((C12,F12,I12,L12,O12,R12),4),4,IF(O12=SMALL((C12,F12,I12,L12,O12,R12),5),5,IF(O12=SMALL((C12,F12,I12,L12,O12,R12),6),6))))))) -> 2 | Q11: =IF(ISTEXT(P11),0,7-P11) -> 5 | R11: =IF(ISERROR(FIND("Relay", $B12)), IF('Lane 1'!$C9="Swimmer", "", 'Lane 1'!$C9), "Relay") -> Leo Gamage | S11: =IF(OR(R12="DQ",R12="DNS"),"-",IF(R12=SMALL((C12,F12,I12,L12,O12,R12),1),1,IF(R12=SMALL((C12,F12,I12,L12,O12,R12),2),2,IF(R12=SMALL((C12,F12,I12,L12,O12,R12),3),3,IF(R12=SMALL((C12,F12,I12,L12,O12,R12),4),4,IF(R12=SMALL((C12,F12,I12,L12,O12,R12),5),5,IF(R12=SMALL((C12,F12,I12,L12,O12,R12),6),6))))))) -> 3 | T11: =IF(ISTEXT(S11),0,7-S11) -> 4 | U11: =T11+Q11+N11+K11+H11+E11 -> 20
B12: Breaststroke | C12: 00:00:31.680 | E12: =E10+E11 -> 14 | F12: 00:00:28.760 | H12: =H10+H11 -> 13 | I12: DQ | K12: =K10+K11 -> 13 | L12: 00:00:23.190 | N12: =N10+N11 -> 14 | O12: 00:00:25.690 | Q12: =Q10+Q11 -> 15 | R12: 00:00:28.460 | T12: =T10+T11 -> 13 | V12: =V10+U11 -> 82
A13: 5 | B13: G 11/u 4 x 1L | C13: =IF(ISERROR(FIND("Relay", $B14)), IF('Lane 2'!$C11="Swimmer", "", 'Lane 2'!$C11), "Relay") -> Relay | D13: =IF(OR(C14="DQ",C14="DNS"),"-",IF(C14=SMALL((C14,F14,I14,L14,O14,R14),1),1,IF(C14=SMALL((C14,F14,I14,L14,O14,R14),2),2,IF(C14=SMALL((C14,F14,I14,L14,O14,R14),3),3,IF(C14=SMALL((C14,F14,I14,L14,O14,R14),4),4,IF(C14=SMALL((C14,F14,I14,L14,O14,R14),5),5,IF(C14=SMALL((C14,F14,I14,L14,O14,R14),6),6))))))) -> 4 | E13: =IF(ISTEXT(D13),0,7-D13) -> 3 | F13: =IF(ISERROR(FIND("Relay", $B14)), IF('Lane 3'!$C11="Swimmer", "", 'Lane 3'!$C11), "Relay") -> Relay | G13: =IF(OR(F14="DQ",F14="DNS"),"-",IF(F14=SMALL((C14,F14,I14,L14,O14,R14),1),1,IF(F14=SMALL((C14,F14,I14,L14,O14,R14),2),2,IF(F14=SMALL((C14,F14,I14,L14,O14,R14),3),3,IF(F14=SMALL((C14,F14,I14,L14,O14,R14),4),4,IF(F14=SMALL((C14,F14,I14,L14,O14,R14),5),5,IF(F14=SMALL((C14,F14,I14,L14,O14,R14),6),6))))))) -> 2 | H13: =IF(ISTEXT(G13),0,7-G13) -> 5 | I13: =IF(ISERROR(FIND("Relay", $B14)), IF('Lane 4'!$C11="Swimmer", "", 'Lane 4'!$C11), "Relay") -> Relay | J13: =IF(OR(I14="DQ",I14="DNS"),"-",IF(I14=SMALL((C14,F14,I14,L14,O14,R14),1),1,IF(I14=SMALL((C14,F14,I14,L14,O14,R14),2),2,IF(I14=SMALL((C14,F14,I14,L14,O14,R14),3),3,IF(I14=SMALL((C14,F14,I14,L14,O14,R14),4),4,IF(I14=SMALL((C14,F14,I14,L14,O14,R14),5),5,IF(I14=SMALL((C14,F14,I14,L14,O14,R14),6),6))))))) -> 3 | K13: =IF(ISTEXT(J13),0,7-J13) -> 4 | L13: =IF(ISERROR(FIND("Relay", $B14)), IF('Lane 5'!$C11="Swimmer", "", 'Lane 5'!$C11), "Relay") -> Relay | M13: =IF(OR(L14="DQ",L14="DNS"),"-",IF(L14=SMALL((C14,F14,I14,L14,O14,R14),1),1,IF(L14=SMALL((C14,F14,I14,L14,O14,R14),2),2,IF(L14=SMALL((C14,F14,I14,L14,O14,R14),3),3,IF(L14=SMALL((C14,F14,I14,L14,O14,R14),4),4,IF(L14=SMALL((C14,F14,I14,L14,O14,R14),5),5,IF(L14=SMALL((C14,F14,I14,L14,O14,R14),6),6))))))) -> 6 | N13: =IF(ISTEXT(M13),0,7-M13) -> 1 | O13: =IF(ISERROR(FIND("Relay", $B14)), IF('Lane 6'!$C11="Swimmer", "", 'Lane 6'!$C11), "Relay") -> Relay | P13: =IF(OR(O14="DQ",O14="DNS"),"-",IF(O14=SMALL((C14,F14,I14,L14,O14,R14),1),1,IF(O14=SMALL((C14,F14,I14,L14,O14,R14),2),2,IF(O14=SMALL((C14,F14,I14,L14,O14,R14),3),3,IF(O14=SMALL((C14,F14,I14,L14,O14,R14),4),4,IF(O14=SMALL((C14,F14,I14,L14,O14,R14),5),5,IF(O14=SMALL((C14,F14,I14,L14,O14,R14),6),6))))))) -> 1 | Q13: =IF(ISTEXT(P13),0,7-P13) -> 6 | R13: =IF(ISERROR(FIND("Relay", $B14)), IF('Lane 1'!$D11="Swimmer", "", 'Lane 1'!$D11), "Relay") -> Relay | S13: =IF(OR(R14="DQ",R14="DNS"),"-",IF(R14=SMALL((C14,F14,I14,L14,O14,R14),1),1,IF(R14=SMALL((C14,F14,I14,L14,O14,R14),2),2,IF(R14=SMALL((C14,F14,I14,L14,O14,R14),3),3,IF(R14=SMALL((C14,F14,I14,L14,O14,R14),4),4,IF(R14=SMALL((C14,F14,I14,L14,O14,R14),5),5,IF(R14=SMALL((C14,F14,I14,L14,O14,R14),6),6))))))) -> 4 | T13: =IF(ISTEXT(S13),0,7-S13) -> 3 | U13: =T13+Q13+N13+K13+H13+E13 -> 22
B14: Medley Relay | C14: 00:01:29.990 | E14: =E12+E13 -> 17 | F14: 00:01:25.060 | H14: =H12+H13 -> 18 | I14: 00:01:29.380 | K14: =K12+K13 -> 17 | L14: 00:01:57.190 | N14: =N12+N13 -> 15 | O14: 00:01:24.400 | Q14: =Q12+Q13 -> 21 | R14: 00:01:29.990 | T14: =T12+T13 -> 16 | V14: =V12+U13 -> 104
A15: 6 | B15: B 11/u 4 x 1L | C15: =IF(ISERROR(FIND("Relay", $B16)), IF('Lane 2'!$C13="Swimmer", "", 'Lane 2'!$C13), "Relay") -> Relay | D15: =IF(OR(C16="DQ",C16="DNS"),"-",IF(C16=SMALL((C16,F16,I16,L16,O16,R16),1),1,IF(C16=SMALL((C16,F16,I16,L16,O16,R16),2),2,IF(C16=SMALL((C16,F16,I16,L16,O16,R16),3),3,IF(C16=SMALL((C16,F16,I16,L16,O16,R16),4),4,IF(C16=SMALL((C16,F16,I16,L16,O16,R16),5),5,IF(C16=SMALL((C16,F16,I16,L16,O16,R16),6),6))))))) -> - | E15: =IF(ISTEXT(D15),0,7-D15) -> 0 | F15: =IF(ISERROR(FIND("Relay", $B16)), IF('Lane 3'!$C13="Swimmer", "", 'Lane 3'!$C13), "Relay") -> Relay | G15: =IF(OR(F16="DQ",F16="DNS"),"-",IF(F16=SMALL((C16,F16,I16,L16,O16,R16),1),1,IF(F16=SMALL((C16,F16,I16,L16,O16,R16),2),2,IF(F16=SMALL((C16,F16,I16,L16,O16,R16),3),3,IF(F16=SMALL((C16,F16,I16,L16,O16,R16),4),4,IF(F16=SMALL((C16,F16,I16,L16,O16,R16),5),5,IF(F16=SMALL((C16,F16,I16,L16,O16,R16),6),6))))))) -> 1 | H15: =IF(ISTEXT(G15),0,7-G15) -> 6 | I15: =IF(ISERROR(FIND("Relay", $B16)), IF('Lane 4'!$C13="Swimmer", "", 'Lane 4'!$C13), "Relay") -> Relay | J15: =IF(OR(I16="DQ",I16="DNS"),"-",IF(I16=SMALL((C16,F16,I16,L16,O16,R16),1),1,IF(I16=SMALL((C16,F16,I16,L16,O16,R16),2),2,IF(I16=SMALL((C16,F16,I16,L16,O16,R16),3),3,IF(I16=SMALL((C16,F16,I16,L16,O16,R16),4),4,IF(I16=SMALL((C16,F16,I16,L16,O16,R16),5),5,IF(I16=SMALL((C16,F16,I16,L16,O16,R16),6),6))))))) -> 5 | K15: =IF(ISTEXT(J15),0,7-J15) -> 2 | L15: =IF(ISERROR(FIND("Relay", $B16)), IF('Lane 5'!$C13="Swimmer", "", 'Lane 5'!$C13), "Relay") -> Relay | M15: =IF(OR(L16="DQ",L16="DNS"),"-",IF(L16=SMALL((C16,F16,I16,L16,O16,R16),1),1,IF(L16=SMALL((C16,F16,I16,L16,O16,R16),2),2,IF(L16=SMALL((C16,F16,I16,L16,O16,R16),3),3,IF(L16=SMALL((C16,F16,I16,L16,O16,R16),4),4,IF(L16=SMALL((C16,F16,I16,L16,O16,R16),5),5,IF(L16=SMALL((C16,F16,I16,L16,O16,R16),6),6))))))) -> 4 | N15: =IF(ISTEXT(M15),0,7-M15) -> 3 | O15: =IF(ISERROR(FIND("Relay", $B16)), IF('Lane 6'!$C13="Swimmer", "", 'Lane 6'!$C13), "Relay") -> Relay | P15: =IF(OR(O16="DQ",O16="DNS"),"-",IF(O16=SMALL((C16,F16,I16,L16,O16,R16),1),1,IF(O16=SMALL((C16,F16,I16,L16,O16,R16),2),2,IF(O16=SMALL((C16,F16,I16,L16,O16,R16),3),3,IF(O16=SMALL((C16,F16,I16,L16,O16,R16),4),4,IF(O16=SMALL((C16,F16,I16,L16,O16,R16),5),5,IF(O16=SMALL((C16,F16,I16,L16,O16,R16),6),6))))))) -> 3 | Q15: =IF(ISTEXT(P15),0,7-P15) -> 4 | R15: =IF(ISERROR(FIND("Relay", $B16)), IF('Lane 1'!$D13="Swimmer", "", 'Lane 1'!$D13), "Relay") -> Relay | S15: =IF(OR(R16="DQ",R16="DNS"),"-",IF(R16=SMALL((C16,F16,I16,L16,O16,R16),1),1,IF(R16=SMALL((C16,F16,I16,L16,O16,R16),2),2,IF(R16=SMALL((C16,F16,I16,L16,O16,R16),3),3,IF(R16=SMALL((C16,F16,I16,L16,O16,R16),4),4,IF(R16=SMALL((C16,F16,I16,L16,O16,R16),5),5,IF(R16=SMALL((C16,F16,I16,L16,O16,R16),6),6))))))) -> 2 | T15: =IF(ISTEXT(S15),0,7-S15) -> 5 | U15: =T15+Q15+N15+K15+H15+E15 -> 20
B16: Medley Relay | C16: DQ | E16: =E14+E15 -> 17 | F16: 00:01:16.740 | H16: =H14+H15 -> 24 | I16: 00:01:25.340 | K16: =K14+K15 -> 19 | L16: 00:01:22.380 | N16: =N14+N15 -> 18 | O16: 00:01:17.530 | Q16: =Q14+Q15 -> 25 | R16: 00:01:17.410 | T16: =T14+T15 -> 21 | V16: =V14+U15 -> 124
A17: 7 | B17: G 12/u 2L | C17: =IF(ISERROR(FIND("Relay", $B18)), IF('Lane 2'!$C15="Swimmer", "", 'Lane 2'!$C15), "Relay") -> Jessica Adcock | D17: =IF(OR(C18="DQ",C18="DNS"),"-",IF(C18=SMALL((C18,F18,I18,L18,O18,R18),1),1,IF(C18=SMALL((C18,F18,I18,L18,O18,R18),2),2,IF(C18=SMALL((C18,F18,I18,L18,O18,R18),3),3,IF(C18=SMALL((C18,F18,I18,L18,O18,R18),4),4,IF(C18=SMALL((C18,F18,I18,L18,O18,R18),5),5,IF(C18=SMALL((C18,F18,I18,L18,O18,R18),6),6))))))) -> 3 | E17: =IF(ISTEXT(D17),0,7-D17) -> 4 | F17: =IF(ISERROR(FIND("Relay", $B18)), IF('Lane 3'!$C15="Swimmer", "", 'Lane 3'!$C15), "Relay") -> Ellie Chater | G17: =IF(OR(F18="DQ",F18="DNS"),"-",IF(F18=SMALL((C18,F18,I18,L18,O18,R18),1),1,IF(F18=SMALL((C18,F18,I18,L18,O18,R18),2),2,IF(F18=SMALL((C18,F18,I18,L18,O18,R18),3),3,IF(F18=SMALL((C18,F18,I18,L18,O18,R18),4),4,IF(F18=SMALL((C18,F18,I18,L18,O18,R18),5),5,IF(F18=SMALL((C18,F18,I18,L18,O18,R18),6),6))))))) -> 4 | H17: =IF(ISTEXT(G17),0,7-G17) -> 3 | I17: =IF(ISERROR(FIND("Relay", $B18)), IF('Lane 4'!$C15="Swimmer", "", 'Lane 4'!$C15), "Relay") -> Erin Irving | J17: =IF(OR(I18="DQ",I18="DNS"),"-",IF(I18=SMALL((C18,F18,I18,L18,O18,R18),1),1,IF(I18=SMALL((C18,F18,I18,L18,O18,R18),2),2,IF(I18=SMALL((C18,F18,I18,L18,O18,R18),3),3,IF(I18=SMALL((C18,F18,I18,L18,O18,R18),4),4,IF(I18=SMALL((C18,F18,I18,L18,O18,R18),5),5,IF(I18=SMALL((C18,F18,I18,L18,O18,R18),6),6))))))) -> 5 | K17: =IF(ISTEXT(J17),0,7-J17) -> 2 | L17: =IF(ISERROR(FIND("Relay", $B18)), IF('Lane 5'!$C15="Swimmer", "", 'Lane 5'!$C15), "Relay") -> AJ Finch | M17: =IF(OR(L18="DQ",L18="DNS"),"-",IF(L18=SMALL((C18,F18,I18,L18,O18,R18),1),1,IF(L18=SMALL((C18,F18,I18,L18,O18,R18),2),2,IF(L18=SMALL((C18,F18,I18,L18,O18,R18),3),3,IF(L18=SMALL((C18,F18,I18,L18,O18,R18),4),4,IF(L18=SMALL((C18,F18,I18,L18,O18,R18),5),5,IF(L18=SMALL((C18,F18,I18,L18,O18,R18),6),6))))))) -> 2 | N17: =IF(ISTEXT(M17),0,7-M17) -> 5 | O17: =IF(ISERROR(FIND("Relay", $B18)), IF('Lane 6'!$C15="Swimmer", "", 'Lane 6'!$C15), "Relay") -> R Powell | P17: =IF(OR(O18="DQ",O18="DNS"),"-",IF(O18=SMALL((C18,F18,I18,L18,O18,R18),1),1,IF(O18=SMALL((C18,F18,I18,L18,O18,R18),2),2,IF(O18=SMALL((C18,F18,I18,L18,O18,R18),3),3,IF(O18=SMALL((C18,F18,I18,L18,O18,R18),4),4,IF(O18=SMALL((C18,F18,I18,L18,O18,R18),5),5,IF(O18=SMALL((C18,F18,I18,L18,O18,R18),6),6))))))) -> 6 | Q17: =IF(ISTEXT(P17),0,7-P17) -> 1 | R17: =IF(ISERROR(FIND("Relay", $B18)), IF('Lane 1'!$C15="Swimmer", "", 'Lane 1'!$C15), "Relay") -> Esther Cunniffe | S17: =IF(OR(R18="DQ",R18="DNS"),"-",IF(R18=SMALL((C18,F18,I18,L18,O18,R18),1),1,IF(R18=SMALL((C18,F18,I18,L18,O18,R18),2),2,IF(R18=SMALL((C18,F18,I18,L18,O18,R18),3),3,IF(R18=SMALL((C18,F18,I18,L18,O18,R18),4),4,IF(R18=SMALL((C18,F18,I18,L18,O18,R18),5),5,IF(R18=SMALL((C18,F18,I18,L18,O18,R18),6),6))))))) -> 1 | T17: =IF(ISTEXT(S17),0,7-S17) -> 6 | U17: =T17+Q17+N17+K17+H17+E17 -> 21
B18: Backstroke | C18: 00:00:41.150 | E18: =E16+E17 -> 21 | F18: 00:00:41.720 | H18: =H16+H17 -> 27 | I18: 00:00:42.300 | K18: =K16+K17 -> 21 | L18: 00:00:39.880 | N18: =N16+N17 -> 23 | O18: 00:00:44.910 | Q18: =Q16+Q17 -> 26 | R18: 00:00:39.190 | T18: =T16+T17 -> 27 | V18: =V16+U17 -> 145
A19: 8 | B19: B 12/u 2L | C19: =IF(ISERROR(FIND("Relay", $B20)), IF('Lane 2'!$C17="Swimmer", "", 'Lane 2'!$C17), "Relay") -> Alex Walker | D19: =IF(OR(C20="DQ",C20="DNS"),"-",IF(C20=SMALL((C20,F20,I20,L20,O20,R20),1),1,IF(C20=SMALL((C20,F20,I20,L20,O20,R20),2),2,IF(C20=SMALL((C20,F20,I20,L20,O20,R20),3),3,IF(C20=SMALL((C20,F20,I20,L20,O20,R20),4),4,IF(C20=SMALL((C20,F20,I20,L20,O20,R20),5),5,IF(C20=SMALL((C20,F20,I20,L20,O20,R20),6),6))))))) -> 1 | E19: =IF(ISTEXT(D19),0,7-D19) -> 6 | F19: =IF(ISERROR(FIND("Relay", $B20)), IF('Lane 3'!$C17="Swimmer", "", 'Lane 3'!$C17), "Relay") -> Sam Nicholson | G19: =IF(OR(F20="DQ",F20="DNS"),"-",IF(F20=SMALL((C20,F20,I20,L20,O20,R20),1),1,IF(F20=SMALL((C20,F20,I20,L20,O20,R20),2),2,IF(F20=SMALL((C20,F20,I20,L20,O20,R20),3),3,IF(F20=SMALL((C20,F20,I20,L20,O20,R20),4),4,IF(F20=SMALL((C20,F20,I20,L20,O20,R20),5),5,IF(F20=SMALL((C20,F20,I20,L20,O20,R20),6),6))))))) -> 3 | H19: =IF(ISTEXT(G19),0,7-G19) -> 4 | I19: =IF(ISERROR(FIND("Relay", $B20)), IF('Lane 4'!$C17="Swimmer", "", 'Lane 4'!$C17), "Relay") -> Thomas Collerhan | J19: =IF(OR(I20="DQ",I20="DNS"),"-",IF(I20=SMALL((C20,F20,I20,L20,O20,R20),1),1,IF(I20=SMALL((C20,F20,I20,L20,O20,R20),2),2,IF(I20=SMALL((C20,F20,I20,L20,O20,R20),3),3,IF(I20=SMALL((C20,F20,I20,L20,O20,R20),4),4,IF(I20=SMALL((C20,F20,I20,L20,O20,R20),5),5,IF(I20=SMALL((C20,F20,I20,L20,O20,R20),6),6))))))) -> 2 | K19: =IF(ISTEXT(J19),0,7-J19) -> 5 | L19: =IF(ISERROR(FIND("Relay", $B20)), IF('Lane 5'!$C17="Swimmer", "", 'Lane 5'!$C17), "Relay") -> Michael Bushael | M19: =IF(OR(L20="DQ",L20="DNS"),"-",IF(L20=SMALL((C20,F20,I20,L20,O20,R20),1),1,IF(L20=SMALL((C20,F20,I20,L20,O20,R20),2),2,IF(L20=SMALL((C20,F20,I20,L20,O20,R20),3),3,IF(L20=SMALL((C20,F20,I20,L20,O20,R20),4),4,IF(L20=SMALL((C20,F20,I20,L20,O20,R20),5),5,IF(L20=SMALL((C20,F20,I20,L20,O20,R20),6),6))))))) -> 6 | N19: =IF(ISTEXT(M19),0,7-M19) -> 1 | O19: =IF(ISERROR(FIND("Relay", $B20)), IF('Lane 6'!$C17="Swimmer", "", 'Lane 6'!$C17), "Relay") -> H Bottrill | P19: =IF(OR(O20="DQ",O20="DNS"),"-",IF(O20=SMALL((C20,F20,I20,L20,O20,R20),1),1,IF(O20=SMALL((C20,F20,I20,L20,O20,R20),2),2,IF(O20=SMALL((C20,F20,I20,L20,O20,R20),3),3,IF(O20=SMALL((C20,F20,I20,L20,O20,R20),4),4,IF(O20=SMALL((C20,F20,I20,L20,O20,R20),5),5,IF(O20=SMALL((C20,F20,I20,L20,O20,R20),6),6))))))) -> 4 | Q19: =IF(ISTEXT(P19),0,7-P19) -> 3 | R19: =IF(ISERROR(FIND("Relay", $B20)), IF('Lane 1'!$C17="Swimmer", "", 'Lane 1'!$C17), "Relay") -> Adam Whitehouse | S19: =IF(OR(R20="DQ",R20="DNS"),"-",IF(R20=SMALL((C20,F20,I20,L20,O20,R20),1),1,IF(R20=SMALL((C20,F20,I20,L20,O20,R20),2),2,IF(R20=SMALL((C20,F20,I20,L20,O20,R20),3),3,IF(R20=SMALL((C20,F20,I20,L20,O20,R20),4),4,IF(R20=SMALL((C20,F20,I20,L20,O20,R20),5),5,IF(R20=SMALL((C20,F20,I20,L20,O20,R20),6),6))))))) -> 5 | T19: =IF(ISTEXT(S19),0,7-S19) -> 2 | U19: =T19+Q19+N19+K19+H19+E19 -> 21
B20: Backstroke | C20: 00:00:39.540 | E20: =E18+E19 -> 27 | F20: 00:00:43.380 | H20: =H18+H19 -> 31 | I20: 00:00:40.650 | K20: =K18+K19 -> 26 | L20: 00:00:47.250 | N20: =N18+N19 -> 24 | O20: 00:00:44.380 | Q20: =Q18+Q19 -> 29 | R20: 00:00:45.810 | T20: =T18+T19 -> 29 | V20: =V18+U19 -> 166
A21: 9 | B21: G 10/u 2L | C21: =IF(ISERROR(FIND("Relay", $B22)), IF('Lane 2'!$C19="Swimmer", "", 'Lane 2'!$C19), "Relay") -> Amber Valletta | D21: =IF(OR(C22="DQ",C22="DNS"),"-",IF(C22=SMALL((C22,F22,I22,L22,O22,R22),1),1,IF(C22=SMALL((C22,F22,I22,L22,O22,R22),2),2,IF(C22=SMALL((C22,F22,I22,L22,O22,R22),3),3,IF(C22=SMALL((C22,F22,I22,L22,O22,R22),4),4,IF(C22=SMALL((C22,F22,I22,L22,O22,R22),5),5,IF(C22=SMALL((C22,F22,I22,L22,O22,R22),6),6))))))) -> 1 | E21: =IF(ISTEXT(D21),0,7-D21) -> 6 | F21: =IF(ISERROR(FIND("Relay", $B22)), IF('Lane 3'!$C19="Swimmer", "", 'Lane 3'!$C19), "Relay") -> Izzie Wilkinson | G21: =IF(OR(F22="DQ",F22="DNS"),"-",IF(F22=SMALL((C22,F22,I22,L22,O22,R22),1),1,IF(F22=SMALL((C22,F22,I22,L22,O22,R22),2),2,IF(F22=SMALL((C22,F22,I22,L22,O22,R22),3),3,IF(F22=SMALL((C22,F22,I22,L22,O22,R22),4),4,IF(F22=SMALL((C22,F22,I22,L22,O22,R22),5),5,IF(F22=SMALL((C22,F22,I22,L22,O22,R22),6),6))))))) -> 3 | H21: =IF(ISTEXT(G21),0,7-G21) -> 4 | I21: =IF(ISERROR(FIND("Relay", $B22)), IF('Lane 4'!$C19="Swimmer", "", 'Lane 4'!$C19), "Relay") -> Ayla Goucher | J21: =IF(OR(I22="DQ",I22="DNS"),"-",IF(I22=SMALL((C22,F22,I22,L22,O22,R22),1),1,IF(I22=SMALL((C22,F22,I22,L22,O22,R22),2),2,IF(I22=SMALL((C22,F22,I22,L22,O22,R22),3),3,IF(I22=SMALL((C22,F22,I22,L22,O22,R22),4),4,IF(I22=SMALL((C22,F22,I22,L22,O22,R22),5),5,IF(I22=SMALL((C22,F22,I22,L22,O22,R22),6),6))))))) -> 2 | K21: =IF(ISTEXT(J21),0,7-J21) -> 5 | L21: =IF(ISERROR(FIND("Relay", $B22)), IF('Lane 5'!$C19="Swimmer", "", 'Lane 5'!$C19), "Relay") -> Neveah Choudhury | M21: =IF(OR(L22="DQ",L22="DNS"),"-",IF(L22=SMALL((C22,F22,I22,L22,O22,R22),1),1,IF(L22=SMALL((C22,F22,I22,L22,O22,R22),2),2,IF(L22=SMALL((C22,F22,I22,L22,O22,R22),3),3,IF(L22=SMALL((C22,F22,I22,L22,O22,R22),4),4,IF(L22=SMALL((C22,F22,I22,L22,O22,R22),5),5,IF(L22=SMALL((C22,F22,I22,L22,O22,R22),6),6))))))) -> 6 | N21: =IF(ISTEXT(M21),0,7-M21) -> 1 | O21: =IF(ISERROR(FIND("Relay", $B22)), IF('Lane 6'!$C19="Swimmer", "", 'Lane 6'!$C19), "Relay") -> M Khera | P21: =IF(OR(O22="DQ",O22="DNS"),"-",IF(O22=SMALL((C22,F22,I22,L22,O22,R22),1),1,IF(O22=SMALL((C22,F22,I22,L22,O22,R22),2),2,IF(O22=SMALL((C22,F22,I22,L22,O22,R22),3),3,IF(O22=SMALL((C22,F22,I22,L22,O22,R22),4),4,IF(O22=SMALL((C22,F22,I22,L22,O22,R22),5),5,IF(O22=SMALL((C22,F22,I22,L22,O22,R22),6),6))))))) -> 5 | Q21: =IF(ISTEXT(P21),0,7-P21) -> 2 | R21: =IF(ISERROR(FIND("Relay", $B22)), IF('Lane 1'!$C19="Swimmer", "", 'Lane 1'!$C19), "Relay") -> Scarlett Fletcher | S21: =IF(OR(R22="DQ",R22="DNS"),"-",IF(R22=SMALL((C22,F22,I22,L22,O22,R22),1),1,IF(R22=SMALL((C22,F22,I22,L22,O22,R22),2),2,IF(R22=SMALL((C22,F22,I22,L22,O22,R22),3),3,IF(R22=SMALL((C22,F22,I22,L22,O22,R22),4),4,IF(R22=SMALL((C22,F22,I22,L22,O22,R22),5),5,IF(R22=SMALL((C22,F22,I22,L22,O22,R22),6),6))))))) -> 4 | T21: =IF(ISTEXT(S21),0,7-S21) -> 3 | U21: =T21+Q21+N21+K21+H21+E21 -> 21
B22: Breaststroke | C22: 00:00:49.470 | E22: =E20+E21 -> 33 | F22: 00:00:55.080 | H22: =H20+H21 -> 35 | I22: 00:00:53.330 | K22: =K20+K21 -> 31 | L22: 00:01:03.440 | N22: =N20+N21 -> 25 | O22: 00:01:02.160 | Q22: =Q20+Q21 -> 31 | R22: 00:00:55.720 | T22: =T20+T21 -> 32 | V22: =V20+U21 -> 187
A23: 10 | B23: B 10/u 2L | C23: =IF(ISERROR(FIND("Relay", $B24)), IF('Lane 2'!$C21="Swimmer", "", 'Lane 2'!$C21), "Relay") -> Adam Walker | D23: =IF(OR(C24="DQ",C24="DNS"),"-",IF(C24=SMALL((C24,F24,I24,L24,O24,R24),1),1,IF(C24=SMALL((C24,F24,I24,L24,O24,R24),2),2,IF(C24=SMALL((C24,F24,I24,L24,O24,R24),3),3,IF(C24=SMALL((C24,F24,I24,L24,O24,R24),4),4,IF(C24=SMALL((C24,F24,I24,L24,O24,R24),5),5,IF(C24=SMALL((C24,F24,I24,L24,O24,R24),6),6))))))) -> 6 | E23: =IF(ISTEXT(D23),0,7-D23) -> 1 | F23: =IF(ISERROR(FIND("Relay", $B24)), IF('Lane 3'!$C21="Swimmer", "", 'Lane 3'!$C21), "Relay") -> Charlie Hodgetts | G23: =IF(OR(F24="DQ",F24="DNS"),"-",IF(F24=SMALL((C24,F24,I24,L24,O24,R24),1),1,IF(F24=SMALL((C24,F24,I24,L24,O24,R24),2),2,IF(F24=SMALL((C24,F24,I24,L24,O24,R24),3),3,IF(F24=SMALL((C24,F24,I24,L24,O24,R24),4),4,IF(F24=SMALL((C24,F24,I24,L24,O24,R24),5),5,IF(F24=SMALL((C24,F24,I24,L24,O24,R24),6),6))))))) -> 1 | H23: =IF(ISTEXT(G23),0,7-G23) -> 6 | I23: =IF(ISERROR(FIND("Relay", $B24)), IF('Lane 4'!$C21="Swimmer", "", 'Lane 4'!$C21), "Relay") -> Keiran O'Reilly | J23: =IF(OR(I24="DQ",I24="DNS"),"-",IF(I24=SMALL((C24,F24,I24,L24,O24,R24),1),1,IF(I24=SMALL((C24,F24,I24,L24,O24,R24),2),2,IF(I24=SMALL((C24,F24,I24,L24,O24,R24),3),3,IF(I24=SMALL((C24,F24,I24,L24,O24,R24),4),4,IF(I24=SMALL((C24,F24,I24,L24,O24,R24),5),5,IF(I24=SMALL((C24,F24,I24,L24,O24,R24),6),6))))))) -> 2 | K23: =IF(ISTEXT(J23),0,7-J23) -> 5 | L23: =IF(ISERROR(FIND("Relay", $B24)), IF('Lane 5'!$C21="Swimmer", "", 'Lane 5'!$C21), "Relay") -> Joe Box | M23: =IF(OR(L24="DQ",L24="DNS"),"-",IF(L24=SMALL((C24,F24,I24,L24,O24,R24),1),1,IF(L24=SMALL((C24,F24,I24,L24,O24,R24),2),2,IF(L24=SMALL((C24,F24,I24,L24,O24,R24),3),3,IF(L24=SMALL((C24,F24,I24,L24,O24,R24),4),4,IF(L24=SMALL((C24,F24,I24,L24,O24,R24),5),5,IF(L24=SMALL((C24,F24,I24,L24,O24,R24),6),6))))))) -> 3 | N23: =IF(ISTEXT(M23),0,7-M23) -> 4 | O23: =IF(ISERROR(FIND("Relay", $B24)), IF('Lane 6'!$C21="Swimmer", "", 'Lane 6'!$C21), "Relay") -> W Bottrill | P23: =IF(OR(O24="DQ",O24="DNS"),"-",IF(O24=SMALL((C24,F24,I24,L24,O24,R24),1),1,IF(O24=SMALL((C24,F24,I24,L24,O24,R24),2),2,IF(O24=SMALL((C24,F24,I24,L24,O24,R24),3),3,IF(O24=SMALL((C24,F24,I24,L24,O24,R24),4),4,IF(O24=SMALL((C24,F24,I24,L24,O24,R24),5),5,IF(O24=SMALL((C24,F24,I24,L24,O24,R24),6),6))))))) -> 4 | Q23: =IF(ISTEXT(P23),0,7-P23) -> 3 | R23: =IF(ISERROR(FIND("Relay", $B24)), IF('Lane 1'!$C21="Swimmer", "", 'Lane 1'!$C21), "Relay") -> Musa Yusopov | S23: =IF(OR(R24="DQ",R24="DNS"),"-",IF(R24=SMALL((C24,F24,I24,L24,O24,R24),1),1,IF(R24=SMALL((C24,F24,I24,L24,O24,R24),2),2,IF(R24=SMALL((C24,F24,I24,L24,O24,R24),3),3,IF(R24=SMALL((C24,F24,I24,L24,O24,R24),4),4,IF(R24=SMALL((C24,F24,I24,L24,O24,R24),5),5,IF(R24=SMALL((C24,F24,I24,L24,O24,R24),6),6))))))) -> 5 | T23: =IF(ISTEXT(S23),0,7-S23) -> 2 | U23: =T23+Q23+N23+K23+H23+E23 -> 21
B24: Breaststroke | C24: 00:00:58.590 | E24: =E22+E23 -> 34 | F24: 00:00:46.710 | H24: =H22+H23 -> 41 | I24: 00:00:49.070 | K24: =K22+K23 -> 36 | L24: 00:00:49.370 | N24: =N22+N23 -> 29 | O24: 00:00:53.880 | Q24: =Q22+Q23 -> 34 | R24: 00:00:58.570 | T24: =T22+T23 -> 34 | V24: =V22+U23 -> 208
A25: 11 | B25: G 9 yrs 4 x 1L | C25: =IF(ISERROR(FIND("Relay", $B26)), IF('Lane 2'!$C23="Swimmer", "", 'Lane 2'!$C23), "Relay") -> Relay | D25: =IF(OR(C26="DQ",C26="DNS"),"-",IF(C26=SMALL((C26,F26,I26,L26,O26,R26),1),1,IF(C26=SMALL((C26,F26,I26,L26,O26,R26),2),2,IF(C26=SMALL((C26,F26,I26,L26,O26,R26),3),3,IF(C26=SMALL((C26,F26,I26,L26,O26,R26),4),4,IF(C26=SMALL((C26,F26,I26,L26,O26,R26),5),5,IF(C26=SMALL((C26,F26,I26,L26,O26,R26),6),6))))))) -> 2 | E25: =IF(ISTEXT(D25),0,7-D25) -> 5 | F25: =IF(ISERROR(FIND("Relay", $B26)), IF('Lane 3'!$C23="Swimmer", "", 'Lane 3'!$C23), "Relay") -> Relay | G25: =IF(OR(F26="DQ",F26="DNS"),"-",IF(F26=SMALL((C26,F26,I26,L26,O26,R26),1),1,IF(F26=SMALL((C26,F26,I26,L26,O26,R26),2),2,IF(F26=SMALL((C26,F26,I26,L26,O26,R26),3),3,IF(F26=SMALL((C26,F26,I26,L26,O26,R26),4),4,IF(F26=SMALL((C26,F26,I26,L26,O26,R26),5),5,IF(F26=SMALL((C26,F26,I26,L26,O26,R26),6),6))))))) -> - | H25: =IF(ISTEXT(G25),0,7-G25) -> 0 | I25: =IF(ISERROR(FIND("Relay", $B26)), IF('Lane 4'!$C23="Swimmer", "", 'Lane 4'!$C23), "Relay") -> Relay | J25: =IF(OR(I26="DQ",I26="DNS"),"-",IF(I26=SMALL((C26,F26,I26,L26,O26,R26),1),1,IF(I26=SMALL((C26,F26,I26,L26,O26,R26),2),2,IF(I26=SMALL((C26,F26,I26,L26,O26,R26),3),3,IF(I26=SMALL((C26,F26,I26,L26,O26,R26),4),4,IF(I26=SMALL((C26,F26,I26,L26,O26,R26),5),5,IF(I26=SMALL((C26,F26,I26,L26,O26,R26),6),6))))))) -> - | K25: =IF(ISTEXT(J25),0,7-J25) -> 0 | L25: =IF(ISERROR(FIND("Relay", $B26)), IF('Lane 5'!$C23="Swimmer", "", 'Lane 5'!$C23), "Relay") -> Relay | M25: =IF(OR(L26="DQ",L26="DNS"),"-",IF(L26=SMALL((C26,F26,I26,L26,O26,R26),1),1,IF(L26=SMALL((C26,F26,I26,L26,O26,R26),2),2,IF(L26=SMALL((C26,F26,I26,L26,O26,R26),3),3,IF(L26=SMALL((C26,F26,I26,L26,O26,R26),4),4,IF(L26=SMALL((C26,F26,I26,L26,O26,R26),5),5,IF(L26=SMALL((C26,F26,I26,L26,O26,R26),6),6))))))) -> - | N25: =IF(ISTEXT(M25),0,7-M25) -> 0 | O25: =IF(ISERROR(FIND("Relay", $B26)), IF('Lane 6'!$C23="Swimmer", "", 'Lane 6'!$C23), "Relay") -> Relay | P25: =IF(OR(O26="DQ",O26="DNS"),"-",IF(O26=SMALL((C26,F26,I26,L26,O26,R26),1),1,IF(O26=SMALL((C26,F26,I26,L26,O26,R26),2),2,IF(O26=SMALL((C26,F26,I26,L26,O26,R26),3),3,IF(O26=SMALL((C26,F26,I26,L26,O26,R26),4),4,IF(O26=SMALL((C26,F26,I26,L26,O26,R26),5),5,IF(O26=SMALL((C26,F26,I26,L26,O26,R26),6),6))))))) -> 3 | Q25: =IF(ISTEXT(P25),0,7-P25) -> 4 | R25: =IF(ISERROR(FIND("Relay", $B26)), IF('Lane 1'!$D23="Swimmer", "", 'Lane 1'!$D23), "Relay") -> Relay | S25: =IF(OR(R26="DQ",R26="DNS"),"-",IF(R26=SMALL((C26,F26,I26,L26,O26,R26),1),1,IF(R26=SMALL((C26,F26,I26,L26,O26,R26),2),2,IF(R26=SMALL((C26,F26,I26,L26,O26,R26),3),3,IF(R26=SMALL((C26,F26,I26,L26,O26,R26),4),4,IF(R26=SMALL((C26,F26,I26,L26,O26,R26),5),5,IF(R26=SMALL((C26,F26,I26,L26,O26,R26),6),6))))))) -> 1 | T25: =IF(ISTEXT(S25),0,7-S25) -> 6 | U25: =T25+Q25+N25+K25+H25+E25 -> 15
B26: Medley Relay | C26: 00:01:43.410 | E26: =E24+E25 -> 39 | F26: DQ | H26: =H24+H25 -> 41 | I26: DQ | K26: =K24+K25 -> 36 | L26: DNS | N26: =N24+N25 -> 29 | O26: 00:01:47.970 | Q26: =Q24+Q25 -> 38 | R26: 00:01:40.240 | T26: =T24+T25 -> 40 | V26: =V24+U25 -> 223
A27: 12 | B27: B 9 yrs 4 x lL | C27: =IF(ISERROR(FIND("Relay", $B28)), IF('Lane 2'!$C25="Swimmer", "", 'Lane 2'!$C25), "Relay") -> Relay | D27: =IF(OR(C28="DQ",C28="DNS"),"-",IF(C28=SMALL((C28,F28,I28,L28,O28,R28),1),1,IF(C28=SMALL((C28,F28,I28,L28,O28,R28),2),2,IF(C28=SMALL((C28,F28,I28,L28,O28,R28),3),3,IF(C28=SMALL((C28,F28,I28,L28,O28,R28),4),4,IF(C28=SMALL((C28,F28,I28,L28,O28,R28),5),5,IF(C28=SMALL((C28,F28,I28,L28,O28,R28),6),6))))))) -> 3 | E27: =IF(ISTEXT(D27),0,7-D27) -> 4 | F27: =IF(ISERROR(FIND("Relay", $B28)), IF('Lane 3'!$C25="Swimmer", "", 'Lane 3'!$C25), "Relay") -> Relay | G27: =IF(OR(F28="DQ",F28="DNS"),"-",IF(F28=SMALL((C28,F28,I28,L28,O28,R28),1),1,IF(F28=SMALL((C28,F28,I28,L28,O28,R28),2),2,IF(F28=SMALL((C28,F28,I28,L28,O28,R28),3),3,IF(F28=SMALL((C28,F28,I28,L28,O28,R28),4),4,IF(F28=SMALL((C28,F28,I28,L28,O28,R28),5),5,IF(F28=SMALL((C28,F28,I28,L28,O28,R28),6),6))))))) -> 2 | H27: =IF(ISTEXT(G27),0,7-G27) -> 5 | I27: =IF(ISERROR(FIND("Relay", $B28)), IF('Lane 4'!$C25="Swimmer", "", 'Lane 4'!$C25), "Relay") -> Relay | J27: =IF(OR(I28="DQ",I28="DNS"),"-",IF(I28=SMALL((C28,F28,I28,L28,O28,R28),1),1,IF(I28=SMALL((C28,F28,I28,L28,O28,R28),2),2,IF(I28=SMALL((C28,F28,I28,L28,O28,R28),3),3,IF(I28=SMALL((C28,F28,I28,L28,O28,R28),4),4,IF(I28=SMALL((C28,F28,I28,L28,O28,R28),5),5,IF(I28=SMALL((C28,F28,I28,L28,O28,R28),6),6))))))) -> - | K27: =IF(ISTEXT(J27),0,7-J27) -> 0 | L27: =IF(ISERROR(FIND("Relay", $B28)), IF('Lane 5'!$C25="Swimmer", "", 'Lane 5'!$C25), "Relay") -> Relay | M27: =IF(OR(L28="DQ",L28="DNS"),"-",IF(L28=SMALL((C28,F28,I28,L28,O28,R28),1),1,IF(L28=SMALL((C28,F28,I28,L28,O28,R28),2),2,IF(L28=SMALL((C28,F28,I28,L28,O28,R28),3),3,IF(L28=SMALL((C28,F28,I28,L28,O28,R28),4),4,IF(L28=SMALL((C28,F28,I28,L28,O28,R28),5),5,IF(L28=SMALL((C28,F28,I28,L28,O28,R28),6),6))))))) -> - | N27: =IF(ISTEXT(M27),0,7-M27) -> 0 | O27: =IF(ISERROR(FIND("Relay", $B28)), IF('Lane 6'!$C25="Swimmer", "", 'Lane 6'!$C25), "Relay") -> Relay | P27: =IF(OR(O28="DQ",O28="DNS"),"-",IF(O28=SMALL((C28,F28,I28,L28,O28,R28),1),1,IF(O28=SMALL((C28,F28,I28,L28,O28,R28),2),2,IF(O28=SMALL((C28,F28,I28,L28,O28,R28),3),3,IF(O28=SMALL((C28,F28,I28,L28,O28,R28),4),4,IF(O28=SMALL((C28,F28,I28,L28,O28,R28),5),5,IF(O28=SMALL((C28,F28,I28,L28,O28,R28),6),6))))))) -> 4 | Q27: =IF(ISTEXT(P27),0,7-P27) -> 3 | R27: =IF(ISERROR(FIND("Relay", $B28)), IF('Lane 1'!$D25="Swimmer", "", 'Lane 1'!$D25), "Relay") -> Relay | S27: =IF(OR(R28="DQ",R28="DNS"),"-",IF(R28=SMALL((C28,F28,I28,L28,O28,R28),1),1,IF(R28=SMALL((C28,F28,I28,L28,O28,R28),2),2,IF(R28=SMALL((C28,F28,I28,L28,O28,R28),3),3,IF(R28=SMALL((C28,F28,I28,L28,O28,R28),4),4,IF(R28=SMALL((C28,F28,I28,L28,O28,R28),5),5,IF(R28=SMALL((C28,F28,I28,L28,O28,R28),6),6))))))) -> 1 | T27: =IF(ISTEXT(S27),0,7-S27) -> 6 | U27: =T27+Q27+N27+K27+H27+E27 -> 18
B28: Medley Relay | C28: 00:01:50.950 | E28: =E26+E27 -> 43 | F28: 00:01:38.180 | H28: =H26+H27 -> 46 | I28: DNS | K28: =K26+K27 -> 36 | L28: DNS | N28: =N26+N27 -> 29 | O28: 00:01:59.780 | Q28: =Q26+Q27 -> 41 | R28: 00:01:33.220 | T28: =T26+T27 -> 46 | V28: =V26+U27 -> 241
A29: 13 | B29: G 11/u 4 x lL | C29: =IF(ISERROR(FIND("Relay", $B30)), IF('Lane 2'!$C27="Swimmer", "", 'Lane 2'!$C27), "Relay") -> Relay | D29: =IF(OR(C30="DQ",C30="DNS"),"-",IF(C30=SMALL((C30,F30,I30,L30,O30,R30),1),1,IF(C30=SMALL((C30,F30,I30,L30,O30,R30),2),2,IF(C30=SMALL((C30,F30,I30,L30,O30,R30),3),3,IF(C30=SMALL((C30,F30,I30,L30,O30,R30),4),4,IF(C30=SMALL((C30,F30,I30,L30,O30,R30),5),5,IF(C30=SMALL((C30,F30,I30,L30,O30,R30),6),6))))))) -> 3 | E29: =IF(ISTEXT(D29),0,7-D29) -> 4 | F29: =IF(ISERROR(FIND("Relay", $B30)), IF('Lane 3'!$C27="Swimmer", "", 'Lane 3'!$C27), "Relay") -> Relay | G29: =IF(OR(F30="DQ",F30="DNS"),"-",IF(F30=SMALL((C30,F30,I30,L30,O30,R30),1),1,IF(F30=SMALL((C30,F30,I30,L30,O30,R30),2),2,IF(F30=SMALL((C30,F30,I30,L30,O30,R30),3),3,IF(F30=SMALL((C30,F30,I30,L30,O30,R30),4),4,IF(F30=SMALL((C30,F30,I30,L30,O30,R30),5),5,IF(F30=SMALL((C30,F30,I30,L30,O30,R30),6),6))))))) -> 1 | H29: =IF(ISTEXT(G29),0,7-G29) -> 6 | I29: =IF(ISERROR(FIND("Relay", $B30)), IF('Lane 4'!$C27="Swimmer", "", 'Lane 4'!$C27), "Relay") -> Relay | J29: =IF(OR(I30="DQ",I30="DNS"),"-",IF(I30=SMALL((C30,F30,I30,L30,O30,R30),1),1,IF(I30=SMALL((C30,F30,I30,L30,O30,R30),2),2,IF(I30=SMALL((C30,F30,I30,L30,O30,R30),3),3,IF(I30=SMALL((C30,F30,I30,L30,O30,R30),4),4,IF(I30=SMALL((C30,F30,I30,L30,O30,R30),5),5,IF(I30=SMALL((C30,F30,I30,L30,O30,R30),6),6))))))) -> 4 | K29: =IF(ISTEXT(J29),0,7-J29) -> 3 | L29: =IF(ISERROR(FIND("Relay", $B30)), IF('Lane 5'!$C27="Swimmer", "", 'Lane 5'!$C27), "Relay") -> Relay | M29: =IF(OR(L30="DQ",L30="DNS"),"-",IF(L30=SMALL((C30,F30,I30,L30,O30,R30),1),1,IF(L30=SMALL((C30,F30,I30,L30,O30,R30),2),2,IF(L30=SMALL((C30,F30,I30,L30,O30,R30),3),3,IF(L30=SMALL((C30,F30,I30,L30,O30,R30),4),4,IF(L30=SMALL((C30,F30,I30,L30,O30,R30),5),5,IF(L30=SMALL((C30,F30,I30,L30,O30,R30),6),6))))))) -> 6 | N29: =IF(ISTEXT(M29),0,7-M29) -> 1 | O29: =IF(ISERROR(FIND("Relay", $B30)), IF('Lane 6'!$C27="Swimmer", "", 'Lane 6'!$C27), "Relay") -> Relay | P29: =IF(OR(O30="DQ",O30="DNS"),"-",IF(O30=SMALL((C30,F30,I30,L30,O30,R30),1),1,IF(O30=SMALL((C30,F30,I30,L30,O30,R30),2),2,IF(O30=SMALL((C30,F30,I30,L30,O30,R30),3),3,IF(O30=SMALL((C30,F30,I30,L30,O30,R30),4),4,IF(O30=SMALL((C30,F30,I30,L30,O30,R30),5),5,IF(O30=SMALL((C30,F30,I30,L30,O30,R30),6),6))))))) -> 2 | Q29: =IF(ISTEXT(P29),0,7-P29) -> 5 | R29: =IF(ISERROR(FIND("Relay", $B30)), IF('Lane 1'!$D27="Swimmer", "", 'Lane 1'!$D27), "Relay") -> Relay | S29: =IF(OR(R30="DQ",R30="DNS"),"-",IF(R30=SMALL((C30,F30,I30,L30,O30,R30),1),1,IF(R30=SMALL((C30,F30,I30,L30,O30,R30),2),2,IF(R30=SMALL((C30,F30,I30,L30,O30,R30),3),3,IF(R30=SMALL((C30,F30,I30,L30,O30,R30),4),4,IF(R30=SMALL((C30,F30,I30,L30,O30,R30),5),5,IF(R30=SMALL((C30,F30,I30,L30,O30,R30),6),6))))))) -> 5 | T29: =IF(ISTEXT(S29),0,7-S29) -> 2 | U29: =T29+Q29+N29+K29+H29+E29 -> 21
B30: Freestyle Relay | C30: 00:01:18.060 | E30: =E28+E29 -> 47 | F30: 00:01:12.840 | H30: =H28+H29 -> 52 | I30: 00:01:20.660 | K30: =K28+K29 -> 39 | L30: 00:01:48 | N30: =N28+N29 -> 30 | O30: 00:01:14.150 | Q30: =Q28+Q29 -> 46 | R30: 00:01:21.120 | T30: =T28+T29 -> 48 | V30: =V28+U29 -> 262
A31: 14 | B31: B 11/u 4 x 1L | C31: =IF(ISERROR(FIND("Relay", $B32)), IF('Lane 2'!$C29="Swimmer", "", 'Lane 2'!$C29), "Relay") -> Relay | D31: =IF(OR(C32="DQ",C32="DNS"),"-",IF(C32=SMALL((C32,F32,I32,L32,O32,R32),1),1,IF(C32=SMALL((C32,F32,I32,L32,O32,R32),2),2,IF(C32=SMALL((C32,F32,I32,L32,O32,R32),3),3,IF(C32=SMALL((C32,F32,I32,L32,O32,R32),4),4,IF(C32=SMALL((C32,F32,I32,L32,O32,R32),5),5,IF(C32=SMALL((C32,F32,I32,L32,O32,R32),6),6))))))) -> 6 | E31: =IF(ISTEXT(D31),0,7-D31) -> 1 | F31: =IF(ISERROR(FIND("Relay", $B32)), IF('Lane 3'!$C29="Swimmer", "", 'Lane 3'!$C29), "Relay") -> Relay | G31: =IF(OR(F32="DQ",F32="DNS"),"-",IF(F32=SMALL((C32,F32,I32,L32,O32,R32),1),1,IF(F32=SMALL((C32,F32,I32,L32,O32,R32),2),2,IF(F32=SMALL((C32,F32,I32,L32,O32,R32),3),3,IF(F32=SMALL((C32,F32,I32,L32,O32,R32),4),4,IF(F32=SMALL((C32,F32,I32,L32,O32,R32),5),5,IF(F32=SMALL((C32,F32,I32,L32,O32,R32),6),6))))))) -> 1 | H31: =IF(ISTEXT(G31),0,7-G31) -> 6 | I31: =IF(ISERROR(FIND("Relay", $B32)), IF('Lane 4'!$C29="Swimmer", "", 'Lane 4'!$C29), "Relay") -> Relay | J31: =IF(OR(I32="DQ",I32="DNS"),"-",IF(I32=SMALL((C32,F32,I32,L32,O32,R32),1),1,IF(I32=SMALL((C32,F32,I32,L32,O32,R32),2),2,IF(I32=SMALL((C32,F32,I32,L32,O32,R32),3),3,IF(I32=SMALL((C32,F32,I32,L32,O32,R32),4),4,IF(I32=SMALL((C32,F32,I32,L32,O32,R32),5),5,IF(I32=SMALL((C32,F32,I32,L32,O32,R32),6),6))))))) -> 3 | K31: =IF(ISTEXT(J31),0,7-J31) -> 4 | L31: =IF(ISERROR(FIND("Relay", $B32)), IF('Lane 5'!$C29="Swimmer", "", 'Lane 5'!$C29), "Relay") -> Relay | M31: =IF(OR(L32="DQ",L32="DNS"),"-",IF(L32=SMALL((C32,F32,I32,L32,O32,R32),1),1,IF(L32=SMALL((C32,F32,I32,L32,O32,R32),2),2,IF(L32=SMALL((C32,F32,I32,L32,O32,R32),3),3,IF(L32=SMALL((C32,F32,I32,L32,O32,R32),4),4,IF(L32=SMALL((C32,F32,I32,L32,O32,R32),5),5,IF(L32=SMALL((C32,F32,I32,L32,O32,R32),6),6))))))) -> 5 | N31: =IF(ISTEXT(M31),0,7-M31) -> 2 | O31: =IF(ISERROR(FIND("Relay", $B32)), IF('Lane 6'!$C29="Swimmer", "", 'Lane 6'!$C29), "Relay") -> Relay | P31: =IF(OR(O32="DQ",O32="DNS"),"-",IF(O32=SMALL((C32,F32,I32,L32,O32,R32),1),1,IF(O32=SMALL((C32,F32,I32,L32,O32,R32),2),2,IF(O32=SMALL((C32,F32,I32,L32,O32,R32),3),3,IF(O32=SMALL((C32,F32,I32,L32,O32,R32),4),4,IF(O32=SMALL((C32,F32,I32,L32,O32,R32),5),5,IF(O32=SMALL((C32,F32,I32,L32,O32,R32),6),6))))))) -> 2 | Q31: =IF(ISTEXT(P31),0,7-P31) -> 5 | R31: =IF(ISERROR(FIND("Relay", $B32)), IF('Lane 1'!$D29="Swimmer", "", 'Lane 1'!$D29), "Relay") -> Relay | S31: =IF(OR(R32="DQ",R32="DNS"),"-",IF(R32=SMALL((C32,F32,I32,L32,O32,R32),1),1,IF(R32=SMALL((C32,F32,I32,L32,O32,R32),2),2,IF(R32=SMALL((C32,F32,I32,L32,O32,R32),3),3,IF(R32=SMALL((C32,F32,I32,L32,O32,R32),4),4,IF(R32=SMALL((C32,F32,I32,L32,O32,R32),5),5,IF(R32=SMALL((C32,F32,I32,L32,O32,R32),6),6))))))) -> 4 | T31: =IF(ISTEXT(S31),0,7-S31) -> 3 | U31: =T31+Q31+N31+K31+H31+E31 -> 21
B32: Freestyle Relay | C32: 00:01:19.790 | E32: =E30+E31 -> 48 | F32: 00:01:07.110 | H32: =H30+H31 -> 58 | I32: 00:01:10.310 | K32: =K30+K31 -> 43 | L32: 00:01:12.600 | N32: =N30+N31 -> 32 | O32: 00:01:10.120 | Q32: =Q30+Q31 -> 51 | R32: 00:01:10.340 | T32: =T30+T31 -> 51 | V32: =V30+U31 -> 283
A33: 15 | B33: G 12/u 2L | C33: =IF(ISERROR(FIND("Relay", $B34)), IF('Lane 2'!$C31="Swimmer", "", 'Lane 2'!$C31), "Relay") -> Amber Valletta | D33: =IF(OR(C34="DQ",C34="DNS"),"-",IF(C34=SMALL((C34,F34,I34,L34,O34,R34),1),1,IF(C34=SMALL((C34,F34,I34,L34,O34,R34),2),2,IF(C34=SMALL((C34,F34,I34,L34,O34,R34),3),3,IF(C34=SMALL((C34,F34,I34,L34,O34,R34),4),4,IF(C34=SMALL((C34,F34,I34,L34,O34,R34),5),5,IF(C34=SMALL((C34,F34,I34,L34,O34,R34),6),6))))))) -> 6 | E33: =IF(ISTEXT(D33),0,7-D33) -> 1 | F33: =IF(ISERROR(FIND("Relay", $B34)), IF('Lane 3'!$C31="Swimmer", "", 'Lane 3'!$C31), "Relay") -> Emily Withey | G33: =IF(OR(F34="DQ",F34="DNS"),"-",IF(F34=SMALL((C34,F34,I34,L34,O34,R34),1),1,IF(F34=SMALL((C34,F34,I34,L34,O34,R34),2),2,IF(F34=SMALL((C34,F34,I34,L34,O34,R34),3),3,IF(F34=SMALL((C34,F34,I34,L34,O34,R34),4),4,IF(F34=SMALL((C34,F34,I34,L34,O34,R34),5),5,IF(F34=SMALL((C34,F34,I34,L34,O34,R34),6),6))))))) -> 4 | H33: =IF(ISTEXT(G33),0,7-G33) -> 3 | I33: =IF(ISERROR(FIND("Relay", $B34)), IF('Lane 4'!$C31="Swimmer", "", 'Lane 4'!$C31), "Relay") -> Molly Faber | J33: =IF(OR(I34="DQ",I34="DNS"),"-",IF(I34=SMALL((C34,F34,I34,L34,O34,R34),1),1,IF(I34=SMALL((C34,F34,I34,L34,O34,R34),2),2,IF(I34=SMALL((C34,F34,I34,L34,O34,R34),3),3,IF(I34=SMALL((C34,F34,I34,L34,O34,R34),4),4,IF(I34=SMALL((C34,F34,I34,L34,O34,R34),5),5,IF(I34=SMALL((C34,F34,I34,L34,O34,R34),6),6))))))) -> 3 | K33: =IF(ISTEXT(J33),0,7-J33) -> 4 | L33: =IF(ISERROR(FIND("Relay", $B34)), IF('Lane 5'!$C31="Swimmer", "", 'Lane 5'!$C31), "Relay") -> Charlotte Inshaw | M33: =IF(OR(L34="DQ",L34="DNS"),"-",IF(L34=SMALL((C34,F34,I34,L34,O34,R34),1),1,IF(L34=SMALL((C34,F34,I34,L34,O34,R34),2),2,IF(L34=SMALL((C34,F34,I34,L34,O34,R34),3),3,IF(L34=SMALL((C34,F34,I34,L34,O34,R34),4),4,IF(L34=SMALL((C34,F34,I34,L34,O34,R34),5),5,IF(L34=SMALL((C34,F34,I34,L34,O34,R34),6),6))))))) -> 1 | N33: =IF(ISTEXT(M33),0,7-M33) -> 6 | O33: =IF(ISERROR(FIND("Relay", $B34)), IF('Lane 6'!$C31="Swimmer", "", 'Lane 6'!$C31), "Relay") -> A Robathan | P33: =IF(OR(O34="DQ",O34="DNS"),"-",IF(O34=SMALL((C34,F34,I34,L34,O34,R34),1),1,IF(O34=SMALL((C34,F34,I34,L34,O34,R34),2),2,IF(O34=SMALL((C34,F34,I34,L34,O34,R34),3),3,IF(O34=SMALL((C34,F34,I34,L34,O34,R34),4),4,IF(O34=SMALL((C34,F34,I34,L34,O34,R34),5),5,IF(O34=SMALL((C34,F34,I34,L34,O34,R34),6),6))))))) -> 5 | Q33: =IF(ISTEXT(P33),0,7-P33) -> 2 | R33: =IF(ISERROR(FIND("Relay", $B34)), IF('Lane 1'!$C31="Swimmer", "", 'Lane 1'!$C31), "Relay") -> Esther Cunniffe | S33: =IF(OR(R34="DQ",R34="DNS"),"-",IF(R34=SMALL((C34,F34,I34,L34,O34,R34),1),1,IF(R34=SMALL((C34,F34,I34,L34,O34,R34),2),2,IF(R34=SMALL((C34,F34,I34,L34,O34,R34),3),3,IF(R34=SMALL((C34,F34,I34,L34,O34,R34),4),4,IF(R34=SMALL((C34,F34,I34,L34,O34,R34),5),5,IF(R34=SMALL((C34,F34,I34,L34,O34,R34),6),6))))))) -> 2 | T33: =IF(ISTEXT(S33),0,7-S33) -> 5 | U33: =T33+Q33+N33+K33+H33+E33 -> 21
B34: Butterfly | C34: 00:00:47.600 | E34: =E32+E33 -> 49 | F34: 00:00:46.300 | H34: =H32+H33 -> 61 | I34: 00:00:46.130 | K34: =K32+K33 -> 47 | L34: 00:00:33.750 | N34: =N32+N33 -> 38 | O34: 00:00:47.590 | Q34: =Q32+Q33 -> 53 | R34: 00:00:37.720 | T34: =T32+T33 -> 56 | V34: =V32+U33 -> 304
A35: 16 | B35: B 12/u 2L | C35: =IF(ISERROR(FIND("Relay", $B36)), IF('Lane 2'!$C33="Swimmer", "", 'Lane 2'!$C33), "Relay") -> Solomon Mansfield | D35: =IF(OR(C36="DQ",C36="DNS"),"-",IF(C36=SMALL((C36,F36,I36,L36,O36,R36),1),1,IF(C36=SMALL((C36,F36,I36,L36,O36,R36),2),2,IF(C36=SMALL((C36,F36,I36,L36,O36,R36),3),3,IF(C36=SMALL((C36,F36,I36,L36,O36,R36),4),4,IF(C36=SMALL((C36,F36,I36,L36,O36,R36),5),5,IF(C36=SMALL((C36,F36,I36,L36,O36,R36),6),6))))))) -> 4 | E35: =IF(ISTEXT(D35),0,7-D35) -> 3 | F35: =IF(ISERROR(FIND("Relay", $B36)), IF('Lane 3'!$C33="Swimmer", "", 'Lane 3'!$C33), "Relay") -> Harvey Ashead | G35: =IF(OR(F36="DQ",F36="DNS"),"-",IF(F36=SMALL((C36,F36,I36,L36,O36,R36),1),1,IF(F36=SMALL((C36,F36,I36,L36,O36,R36),2),2,IF(F36=SMALL((C36,F36,I36,L36,O36,R36),3),3,IF(F36=SMALL((C36,F36,I36,L36,O36,R36),4),4,IF(F36=SMALL((C36,F36,I36,L36,O36,R36),5),5,IF(F36=SMALL((C36,F36,I36,L36,O36,R36),6),6))))))) -> 5 | H35: =IF(ISTEXT(G35),0,7-G35) -> 2 | I35: =IF(ISERROR(FIND("Relay", $B36)), IF('Lane 4'!$C33="Swimmer", "", 'Lane 4'!$C33), "Relay") -> Dylan Abulencia | J35: =IF(OR(I36="DQ",I36="DNS"),"-",IF(I36=SMALL((C36,F36,I36,L36,O36,R36),1),1,IF(I36=SMALL((C36,F36,I36,L36,O36,R36),2),2,IF(I36=SMALL((C36,F36,I36,L36,O36,R36),3),3,IF(I36=SMALL((C36,F36,I36,L36,O36,R36),4),4,IF(I36=SMALL((C36,F36,I36,L36,O36,R36),5),5,IF(I36=SMALL((C36,F36,I36,L36,O36,R36),6),6))))))) -> 1 | K35: =IF(ISTEXT(J35),0,7-J35) -> 6 | L35: =IF(ISERROR(FIND("Relay", $B36)), IF('Lane 5'!$C33="Swimmer", "", 'Lane 5'!$C33), "Relay") -> Alfiie Cowie | M35: =IF(OR(L36="DQ",L36="DNS"),"-",IF(L36=SMALL((C36,F36,I36,L36,O36,R36),1),1,IF(L36=SMALL((C36,F36,I36,L36,O36,R36),2),2,IF(L36=SMALL((C36,F36,I36,L36,O36,R36),3),3,IF(L36=SMALL((C36,F36,I36,L36,O36,R36),4),4,IF(L36=SMALL((C36,F36,I36,L36,O36,R36),5),5,IF(L36=SMALL((C36,F36,I36,L36,O36,R36),6),6))))))) -> 2 | N35: =IF(ISTEXT(M35),0,7-M35) -> 5 | O35: =IF(ISERROR(FIND("Relay", $B36)), IF('Lane 6'!$C33="Swimmer", "", 'Lane 6'!$C33), "Relay") -> C Fletcher | P35: =IF(OR(O36="DQ",O36="DNS"),"-",IF(O36=SMALL((C36,F36,I36,L36,O36,R36),1),1,IF(O36=SMALL((C36,F36,I36,L36,O36,R36),2),2,IF(O36=SMALL((C36,F36,I36,L36,O36,R36),3),3,IF(O36=SMALL((C36,F36,I36,L36,O36,R36),4),4,IF(O36=SMALL((C36,F36,I36,L36,O36,R36),5),5,IF(O36=SMALL((C36,F36,I36,L36,O36,R36),6),6))))))) -> 6 | Q35: =IF(ISTEXT(P35),0,7-P35) -> 1 | R35: =IF(ISERROR(FIND("Relay", $B36)), IF('Lane 1'!$C33="Swimmer", "", 'Lane 1'!$C33), "Relay") -> Luca Whaley | S35: =IF(OR(R36="DQ",R36="DNS"),"-",IF(R36=SMALL((C36,F36,I36,L36,O36,R36),1),1,IF(R36=SMALL((C36,F36,I36,L36,O36,R36),2),2,IF(R36=SMALL((C36,F36,I36,L36,O36,R36),3),3,IF(R36=SMALL((C36,F36,I36,L36,O36,R36),4),4,IF(R36=SMALL((C36,F36,I36,L36,O36,R36),5),5,IF(R36=SMALL((C36,F36,I36,L36,O36,R36),6),6))))))) -> 3 | T35: =IF(ISTEXT(S35),0,7-S35) -> 4 | U35: =T35+Q35+N35+K35+H35+E35 -> 21
B36: Butterfly | C36: 00:00:43.840 | E36: =E34+E35 -> 52 | F36: 00:00:44.460 | H36: =H34+H35 -> 63 | I36: 00:00:35.350 | K36: =K34+K35 -> 53 | L36: 00:00:36.380 | N36: =N34+N35 -> 43 | O36: 00:00:46.100 | Q36: =Q34+Q35 -> 54 | R36: 00:00:38.590 | T36: =T34+T35 -> 60 | V36: =V34+U35 -> 325
A37: 17 | B37: G 10/u 4 x1L | C37: =IF(ISERROR(FIND("Relay", $B38)), IF('Lane 2'!$C35="Swimmer", "", 'Lane 2'!$C35), "Relay") -> Relay | D37: =IF(OR(C38="DQ",C38="DNS"),"-",IF(C38=SMALL((C38,F38,I38,L38,O38,R38),1),1,IF(C38=SMALL((C38,F38,I38,L38,O38,R38),2),2,IF(C38=SMALL((C38,F38,I38,L38,O38,R38),3),3,IF(C38=SMALL((C38,F38,I38,L38,O38,R38),4),4,IF(C38=SMALL((C38,F38,I38,L38,O38,R38),5),5,IF(C38=SMALL((C38,F38,I38,L38,O38,R38),6),6))))))) -> 3 | E37: =IF(ISTEXT(D37),0,7-D37) -> 4 | F37: =IF(ISERROR(FIND("Relay", $B38)), IF('Lane 3'!$C35="Swimmer", "", 'Lane 3'!$C35), "Relay") -> Relay | G37: =IF(OR(F38="DQ",F38="DNS"),"-",IF(F38=SMALL((C38,F38,I38,L38,O38,R38),1),1,IF(F38=SMALL((C38,F38,I38,L38,O38,R38),2),2,IF(F38=SMALL((C38,F38,I38,L38,O38,R38),3),3,IF(F38=SMALL((C38,F38,I38,L38,O38,R38),4),4,IF(F38=SMALL((C38,F38,I38,L38,O38,R38),5),5,IF(F38=SMALL((C38,F38,I38,L38,O38,R38),6),6))))))) -> 2 | H37: =IF(ISTEXT(G37),0,7-G37) -> 5 | I37: =IF(ISERROR(FIND("Relay", $B38)), IF('Lane 4'!$C35="Swimmer", "", 'Lane 4'!$C35), "Relay") -> Relay | J37: =IF(OR(I38="DQ",I38="DNS"),"-",IF(I38=SMALL((C38,F38,I38,L38,O38,R38),1),1,IF(I38=SMALL((C38,F38,I38,L38,O38,R38),2),2,IF(I38=SMALL((C38,F38,I38,L38,O38,R38),3),3,IF(I38=SMALL((C38,F38,I38,L38,O38,R38),4),4,IF(I38=SMALL((C38,F38,I38,L38,O38,R38),5),5,IF(I38=SMALL((C38,F38,I38,L38,O38,R38),6),6))))))) -> 1 | K37: =IF(ISTEXT(J37),0,7-J37) -> 6 | L37: =IF(ISERROR(FIND("Relay", $B38)), IF('Lane 5'!$C35="Swimmer", "", 'Lane 5'!$C35), "Relay") -> Relay | M37: =IF(OR(L38="DQ",L38="DNS"),"-",IF(L38=SMALL((C38,F38,I38,L38,O38,R38),1),1,IF(L38=SMALL((C38,F38,I38,L38,O38,R38),2),2,IF(L38=SMALL((C38,F38,I38,L38,O38,R38),3),3,IF(L38=SMALL((C38,F38,I38,L38,O38,R38),4),4,IF(L38=SMALL((C38,F38,I38,L38,O38,R38),5),5,IF(L38=SMALL((C38,F38,I38,L38,O38,R38),6),6))))))) -> 5 | N37: =IF(ISTEXT(M37),0,7-M37) -> 2 | O37: =IF(ISERROR(FIND("Relay", $B38)), IF('Lane 6'!$C35="Swimmer", "", 'Lane 6'!$C35), "Relay") -> Relay | P37: =IF(OR(O38="DQ",O38="DNS"),"-",IF(O38=SMALL((C38,F38,I38,L38,O38,R38),1),1,IF(O38=SMALL((C38,F38,I38,L38,O38,R38),2),2,IF(O38=SMALL((C38,F38,I38,L38,O38,R38),3),3,IF(O38=SMALL((C38,F38,I38,L38,O38,R38),4),4,IF(O38=SMALL((C38,F38,I38,L38,O38,R38),5),5,IF(O38=SMALL((C38,F38,I38,L38,O38,R38),6),6))))))) -> - | Q37: =IF(ISTEXT(P37),0,7-P37) -> 0 | R37: =IF(ISERROR(FIND("Relay", $B38)), IF('Lane 1'!$D35="Swimmer", "", 'Lane 1'!$D35), "Relay") -> Relay | S37: =IF(OR(R38="DQ",R38="DNS"),"-",IF(R38=SMALL((C38,F38,I38,L38,O38,R38),1),1,IF(R38=SMALL((C38,F38,I38,L38,O38,R38),2),2,IF(R38=SMALL((C38,F38,I38,L38,O38,R38),3),3,IF(R38=SMALL((C38,F38,I38,L38,O38,R38),4),4,IF(R38=SMALL((C38,F38,I38,L38,O38,R38),5),5,IF(R38=SMALL((C38,F38,I38,L38,O38,R38),6),6))))))) -> 4 | T37: =IF(ISTEXT(S37),0,7-S37) -> 3 | U37: =T37+Q37+N37+K37+H37+E37 -> 20
B38: Medley Relay | C38: 00:01:31.780 | E38: =E36+E37 -> 56 | F38: 00:01:30.330 | H38: =H36+H37 -> 68 | I38: 00:01:29.930 | K38: =K36+K37 -> 59 | L38: 00:02:03.620 | N38: =N36+N37 -> 45 | O38: DQ | Q38: =Q36+Q37 -> 54 | R38: 00:01:36.410 | T38: =T36+T37 -> 63 | V38: =V36+U37 -> 345
A39: 18 | B39: B 10/u 4 x 1L | C39: =IF(ISERROR(FIND("Relay", $B40)), IF('Lane 2'!$C37="Swimmer", "", 'Lane 2'!$C37), "Relay") -> Relay | D39: =IF(OR(C40="DQ",C40="DNS"),"-",IF(C40=SMALL((C40,F40,I40,L40,O40,R40),1),1,IF(C40=SMALL((C40,F40,I40,L40,O40,R40),2),2,IF(C40=SMALL((C40,F40,I40,L40,O40,R40),3),3,IF(C40=SMALL((C40,F40,I40,L40,O40,R40),4),4,IF(C40=SMALL((C40,F40,I40,L40,O40,R40),5),5,IF(C40=SMALL((C40,F40,I40,L40,O40,R40),6),6))))))) -> - | E39: =IF(ISTEXT(D39),0,7-D39) -> 0 | F39: =IF(ISERROR(FIND("Relay", $B40)), IF('Lane 3'!$C37="Swimmer", "", 'Lane 3'!$C37), "Relay") -> Relay | G39: =IF(OR(F40="DQ",F40="DNS"),"-",IF(F40=SMALL((C40,F40,I40,L40,O40,R40),1),1,IF(F40=SMALL((C40,F40,I40,L40,O40,R40),2),2,IF(F40=SMALL((C40,F40,I40,L40,O40,R40),3),3,IF(F40=SMALL((C40,F40,I40,L40,O40,R40),4),4,IF(F40=SMALL((C40,F40,I40,L40,O40,R40),5),5,IF(F40=SMALL((C40,F40,I40,L40,O40,R40),6),6))))))) -> 1 | H39: =IF(ISTEXT(G39),0,7-G39) -> 6 | I39: =IF(ISERROR(FIND("Relay", $B40)), IF('Lane 4'!$C37="Swimmer", "", 'Lane 4'!$C37), "Relay") -> Relay | J39: =IF(OR(I40="DQ",I40="DNS"),"-",IF(I40=SMALL((C40,F40,I40,L40,O40,R40),1),1,IF(I40=SMALL((C40,F40,I40,L40,O40,R40),2),2,IF(I40=SMALL((C40,F40,I40,L40,O40,R40),3),3,IF(I40=SMALL((C40,F40,I40,L40,O40,R40),4),4,IF(I40=SMALL((C40,F40,I40,L40,O40,R40),5),5,IF(I40=SMALL((C40,F40,I40,L40,O40,R40),6),6))))))) -> 2 | K39: =IF(ISTEXT(J39),0,7-J39) -> 5 | L39: =IF(ISERROR(FIND("Relay", $B40)), IF('Lane 5'!$C37="Swimmer", "", 'Lane 5'!$C37), "Relay") -> Relay | M39: =IF(OR(L40="DQ",L40="DNS"),"-",IF(L40=SMALL((C40,F40,I40,L40,O40,R40),1),1,IF(L40=SMALL((C40,F40,I40,L40,O40,R40),2),2,IF(L40=SMALL((C40,F40,I40,L40,O40,R40),3),3,IF(L40=SMALL((C40,F40,I40,L40,O40,R40),4),4,IF(L40=SMALL((C40,F40,I40,L40,O40,R40),5),5,IF(L40=SMALL((C40,F40,I40,L40,O40,R40),6),6))))))) -> - | N39: =IF(ISTEXT(M39),0,7-M39) -> 0 | O39: =IF(ISERROR(FIND("Relay", $B40)), IF('Lane 6'!$C37="Swimmer", "", 'Lane 6'!$C37), "Relay") -> Relay | P39: =IF(OR(O40="DQ",O40="DNS"),"-",IF(O40=SMALL((C40,F40,I40,L40,O40,R40),1),1,IF(O40=SMALL((C40,F40,I40,L40,O40,R40),2),2,IF(O40=SMALL((C40,F40,I40,L40,O40,R40),3),3,IF(O40=SMALL((C40,F40,I40,L40,O40,R40),4),4,IF(O40=SMALL((C40,F40,I40,L40,O40,R40),5),5,IF(O40=SMALL((C40,F40,I40,L40,O40,R40),6),6))))))) -> 3 | Q39: =IF(ISTEXT(P39),0,7-P39) -> 4 | R39: =IF(ISERROR(FIND("Relay", $B40)), IF('Lane 1'!$D37="Swimmer", "", 'Lane 1'!$D37), "Relay") -> Relay | S39: =IF(OR(R40="DQ",R40="DNS"),"-",IF(R40=SMALL((C40,F40,I40,L40,O40,R40),1),1,IF(R40=SMALL((C40,F40,I40,L40,O40,R40),2),2,IF(R40=SMALL((C40,F40,I40,L40,O40,R40),3),3,IF(R40=SMALL((C40,F40,I40,L40,O40,R40),4),4,IF(R40=SMALL((C40,F40,I40,L40,O40,R40),5),5,IF(R40=SMALL((C40,F40,I40,L40,O40,R40),6),6))))))) -> 4 | T39: =IF(ISTEXT(S39),0,7-S39) -> 3 | U39: =T39+Q39+N39+K39+H39+E39 -> 18
B40: Medley Relay | C40: DQ | E40: =E38+E39 -> 56 | F40: 00:01:25.430 | H40: =H38+H39 -> 74 | I40: 00:01:29.560 | K40: =K38+K39 -> 64 | L40: DNS | N40: =N38+N39 -> 45 | O40: 00:01:29.580 | Q40: =Q38+Q39 -> 58 | R40: 00:01:32.470 | T40: =T38+T39 -> 66 | V40: =V38+U39 -> 363
A41: 19 | B41: G 11/u 2L | C41: =IF(ISERROR(FIND("Relay", $B42)), IF('Lane 2'!$C39="Swimmer", "", 'Lane 2'!$C39), "Relay") -> Isobelle Carpenter-Clay | D41: =IF(OR(C42="DQ",C42="DNS"),"-",IF(C42=SMALL((C42,F42,I42,L42,O42,R42),1),1,IF(C42=SMALL((C42,F42,I42,L42,O42,R42),2),2,IF(C42=SMALL((C42,F42,I42,L42,O42,R42),3),3,IF(C42=SMALL((C42,F42,I42,L42,O42,R42),4),4,IF(C42=SMALL((C42,F42,I42,L42,O42,R42),5),5,IF(C42=SMALL((C42,F42,I42,L42,O42,R42),6),6))))))) -> 5 | E41: =IF(ISTEXT(D41),0,7-D41) -> 2 | F41: =IF(ISERROR(FIND("Relay", $B42)), IF('Lane 3'!$C39="Swimmer", "", 'Lane 3'!$C39), "Relay") -> Molly Kirkland | G41: =IF(OR(F42="DQ",F42="DNS"),"-",IF(F42=SMALL((C42,F42,I42,L42,O42,R42),1),1,IF(F42=SMALL((C42,F42,I42,L42,O42,R42),2),2,IF(F42=SMALL((C42,F42,I42,L42,O42,R42),3),3,IF(F42=SMALL((C42,F42,I42,L42,O42,R42),4),4,IF(F42=SMALL((C42,F42,I42,L42,O42,R42),5),5,IF(F42=SMALL((C42,F42,I42,L42,O42,R42),6),6))))))) -> 4 | H41: =IF(ISTEXT(G41),0,7-G41) -> 3 | I41: =IF(ISERROR(FIND("Relay", $B42)), IF('Lane 4'!$C39="Swimmer", "", 'Lane 4'!$C39), "Relay") -> Eleanor Ribchester | J41: =IF(OR(I42="DQ",I42="DNS"),"-",IF(I42=SMALL((C42,F42,I42,L42,O42,R42),1),1,IF(I42=SMALL((C42,F42,I42,L42,O42,R42),2),2,IF(I42=SMALL((C42,F42,I42,L42,O42,R42),3),3,IF(I42=SMALL((C42,F42,I42,L42,O42,R42),4),4,IF(I42=SMALL((C42,F42,I42,L42,O42,R42),5),5,IF(I42=SMALL((C42,F42,I42,L42,O42,R42),6),6))))))) -> 2 | K41: =IF(ISTEXT(J41),0,7-J41) -> 5 | L41: =IF(ISERROR(FIND("Relay", $B42)), IF('Lane 5'!$C39="Swimmer", "", 'Lane 5'!$C39), "Relay") -> Indigo Perrett | M41: =IF(OR(L42="DQ",L42="DNS"),"-",IF(L42=SMALL((C42,F42,I42,L42,O42,R42),1),1,IF(L42=SMALL((C42,F42,I42,L42,O42,R42),2),2,IF(L42=SMALL((C42,F42,I42,L42,O42,R42),3),3,IF(L42=SMALL((C42,F42,I42,L42,O42,R42),4),4,IF(L42=SMALL((C42,F42,I42,L42,O42,R42),5),5,IF(L42=SMALL((C42,F42,I42,L42,O42,R42),6),6))))))) -> 6 | N41: =IF(ISTEXT(M41),0,7-M41) -> 1 | O41: =IF(ISERROR(FIND("Relay", $B42)), IF('Lane 6'!$C39="Swimmer", "", 'Lane 6'!$C39), "Relay") -> R Powell | P41: =IF(OR(O42="DQ",O42="DNS"),"-",IF(O42=SMALL((C42,F42,I42,L42,O42,R42),1),1,IF(O42=SMALL((C42,F42,I42,L42,O42,R42),2),2,IF(O42=SMALL((C42,F42,I42,L42,O42,R42),3),3,IF(O42=SMALL((C42,F42,I42,L42,O42,R42),4),4,IF(O42=SMALL((C42,F42,I42,L42,O42,R42),5),5,IF(O42=SMALL((C42,F42,I42,L42,O42,R42),6),6))))))) -> 1 | Q41: =IF(ISTEXT(P41),0,7-P41) -> 6 | R41: =IF(ISERROR(FIND("Relay", $B42)), IF('Lane 1'!$C39="Swimmer", "", 'Lane 1'!$C39), "Relay") -> Eva Browne | S41: =IF(OR(R42="DQ",R42="DNS"),"-",IF(R42=SMALL((C42,F42,I42,L42,O42,R42),1),1,IF(R42=SMALL((C42,F42,I42,L42,O42,R42),2),2,IF(R42=SMALL((C42,F42,I42,L42,O42,R42),3),3,IF(R42=SMALL((C42,F42,I42,L42,O42,R42),4),4,IF(R42=SMALL((C42,F42,I42,L42,O42,R42),5),5,IF(R42=SMALL((C42,F42,I42,L42,O42,R42),6),6))))))) -> 3 | T41: =IF(ISTEXT(S41),0,7-S41) -> 4 | U41: =T41+Q41+N41+K41+H41+E41 -> 21
B42: Backstroke | C42: 00:00:46.120 | E42: =E40+E41 -> 58 | F42: 00:00:45.830 | H42: =H40+H41 -> 77 | I42: 00:00:44.820 | K42: =K40+K41 -> 69 | L42: 00:00:53.870 | N42: =N40+N41 -> 46 | O42: 00:00:43.630 | Q42: =Q40+Q41 -> 64 | R42: 00:00:45.090 | T42: =T40+T41 -> 70 | V42: =V40+U41 -> 384
A43: 20 | B43: B 11/u 2L | C43: =IF(ISERROR(FIND("Relay", $B44)), IF('Lane 2'!$C41="Swimmer", "", 'Lane 2'!$C41), "Relay") -> Alex Walker | D43: =IF(OR(C44="DQ",C44="DNS"),"-",IF(C44=SMALL((C44,F44,I44,L44,O44,R44),1),1,IF(C44=SMALL((C44,F44,I44,L44,O44,R44),2),2,IF(C44=SMALL((C44,F44,I44,L44,O44,R44),3),3,IF(C44=SMALL((C44,F44,I44,L44,O44,R44),4),4,IF(C44=SMALL((C44,F44,I44,L44,O44,R44),5),5,IF(C44=SMALL((C44,F44,I44,L44,O44,R44),6),6))))))) -> 2 | E43: =IF(ISTEXT(D43),0,7-D43) -> 5 | F43: =IF(ISERROR(FIND("Relay", $B44)), IF('Lane 3'!$C41="Swimmer", "", 'Lane 3'!$C41), "Relay") -> Reece Johnson | G43: =IF(OR(F44="DQ",F44="DNS"),"-",IF(F44=SMALL((C44,F44,I44,L44,O44,R44),1),1,IF(F44=SMALL((C44,F44,I44,L44,O44,R44),2),2,IF(F44=SMALL((C44,F44,I44,L44,O44,R44),3),3,IF(F44=SMALL((C44,F44,I44,L44,O44,R44),4),4,IF(F44=SMALL((C44,F44,I44,L44,O44,R44),5),5,IF(F44=SMALL((C44,F44,I44,L44,O44,R44),6),6))))))) -> 1 | H43: =IF(ISTEXT(G43),0,7-G43) -> 6 | I43: =IF(ISERROR(FIND("Relay", $B44)), IF('Lane 4'!$C41="Swimmer", "", 'Lane 4'!$C41), "Relay") -> Thomas Ribchester | J43: =IF(OR(I44="DQ",I44="DNS"),"-",IF(I44=SMALL((C44,F44,I44,L44,O44,R44),1),1,IF(I44=SMALL((C44,F44,I44,L44,O44,R44),2),2,IF(I44=SMALL((C44,F44,I44,L44,O44,R44),3),3,IF(I44=SMALL((C44,F44,I44,L44,O44,R44),4),4,IF(I44=SMALL((C44,F44,I44,L44,O44,R44),5),5,IF(I44=SMALL((C44,F44,I44,L44,O44,R44),6),6))))))) -> 3 | K43: =IF(ISTEXT(J43),0,7-J43) -> 4 | L43: =IF(ISERROR(FIND("Relay", $B44)), IF('Lane 5'!$C41="Swimmer", "", 'Lane 5'!$C41), "Relay") -> Riley Talbot-Fielding | M43: =IF(OR(L44="DQ",L44="DNS"),"-",IF(L44=SMALL((C44,F44,I44,L44,O44,R44),1),1,IF(L44=SMALL((C44,F44,I44,L44,O44,R44),2),2,IF(L44=SMALL((C44,F44,I44,L44,O44,R44),3),3,IF(L44=SMALL((C44,F44,I44,L44,O44,R44),4),4,IF(L44=SMALL((C44,F44,I44,L44,O44,R44),5),5,IF(L44=SMALL((C44,F44,I44,L44,O44,R44),6),6))))))) -> 6 | N43: =IF(ISTEXT(M43),0,7-M43) -> 1 | O43: =IF(ISERROR(FIND("Relay", $B44)), IF('Lane 6'!$C41="Swimmer", "", 'Lane 6'!$C41), "Relay") -> H Bottrill | P43: =IF(OR(O44="DQ",O44="DNS"),"-",IF(O44=SMALL((C44,F44,I44,L44,O44,R44),1),1,IF(O44=SMALL((C44,F44,I44,L44,O44,R44),2),2,IF(O44=SMALL((C44,F44,I44,L44,O44,R44),3),3,IF(O44=SMALL((C44,F44,I44,L44,O44,R44),4),4,IF(O44=SMALL((C44,F44,I44,L44,O44,R44),5),5,IF(O44=SMALL((C44,F44,I44,L44,O44,R44),6),6))))))) -> 4 | Q43: =IF(ISTEXT(P43),0,7-P43) -> 3 | R43: =IF(ISERROR(FIND("Relay", $B44)), IF('Lane 1'!$C41="Swimmer", "", 'Lane 1'!$C41), "Relay") -> Matthew Bowater | S43: =IF(OR(R44="DQ",R44="DNS"),"-",IF(R44=SMALL((C44,F44,I44,L44,O44,R44),1),1,IF(R44=SMALL((C44,F44,I44,L44,O44,R44),2),2,IF(R44=SMALL((C44,F44,I44,L44,O44,R44),3),3,IF(R44=SMALL((C44,F44,I44,L44,O44,R44),4),4,IF(R44=SMALL((C44,F44,I44,L44,O44,R44),5),5,IF(R44=SMALL((C44,F44,I44,L44,O44,R44),6),6))))))) -> 5 | T43: =IF(ISTEXT(S43),0,7-S43) -> 2 | U43: =T43+Q43+N43+K43+H43+E43 -> 21
B44: Backstroke | C44: 00:00:40.900 | E44: =E42+E43 -> 63 | F44: 00:00:37.810 | H44: =H42+H43 -> 83 | I44: 00:00:44.310 | K44: =K42+K43 -> 73 | L44: 00:00:53.560 | N44: =N42+N43 -> 47 | O44: 00:00:45.530 | Q44: =Q42+Q43 -> 67 | R44: 00:00:46.580 | T44: =T42+T43 -> 72 | V44: =V42+U43 -> 405
A45: 21 | B45: G 9 yrs 4 x 1L | C45: =IF(ISERROR(FIND("Relay", $B46)), IF('Lane 2'!$C43="Swimmer", "", 'Lane 2'!$C43), "Relay") -> Relay | D45: =IF(OR(C46="DQ",C46="DNS"),"-",IF(C46=SMALL((C46,F46,I46,L46,O46,R46),1),1,IF(C46=SMALL((C46,F46,I46,L46,O46,R46),2),2,IF(C46=SMALL((C46,F46,I46,L46,O46,R46),3),3,IF(C46=SMALL((C46,F46,I46,L46,O46,R46),4),4,IF(C46=SMALL((C46,F46,I46,L46,O46,R46),5),5,IF(C46=SMALL((C46,F46,I46,L46,O46,R46),6),6))))))) -> 4 | E45: =IF(ISTEXT(D45),0,7-D45) -> 3 | F45: =IF(ISERROR(FIND("Relay", $B46)), IF('Lane 3'!$C43="Swimmer", "", 'Lane 3'!$C43), "Relay") -> Relay | G45: =IF(OR(F46="DQ",F46="DNS"),"-",IF(F46=SMALL((C46,F46,I46,L46,O46,R46),1),1,IF(F46=SMALL((C46,F46,I46,L46,O46,R46),2),2,IF(F46=SMALL((C46,F46,I46,L46,O46,R46),3),3,IF(F46=SMALL((C46,F46,I46,L46,O46,R46),4),4,IF(F46=SMALL((C46,F46,I46,L46,O46,R46),5),5,IF(F46=SMALL((C46,F46,I46,L46,O46,R46),6),6))))))) -> 2 | H45: =IF(ISTEXT(G45),0,7-G45) -> 5 | I45: =IF(ISERROR(FIND("Relay", $B46)), IF('Lane 4'!$C43="Swimmer", "", 'Lane 4'!$C43), "Relay") -> Relay | J45: =IF(OR(I46="DQ",I46="DNS"),"-",IF(I46=SMALL((C46,F46,I46,L46,O46,R46),1),1,IF(I46=SMALL((C46,F46,I46,L46,O46,R46),2),2,IF(I46=SMALL((C46,F46,I46,L46,O46,R46),3),3,IF(I46=SMALL((C46,F46,I46,L46,O46,R46),4),4,IF(I46=SMALL((C46,F46,I46,L46,O46,R46),5),5,IF(I46=SMALL((C46,F46,I46,L46,O46,R46),6),6))))))) -> 3 | K45: =IF(ISTEXT(J45),0,7-J45) -> 4 | L45: =IF(ISERROR(FIND("Relay", $B46)), IF('Lane 5'!$C43="Swimmer", "", 'Lane 5'!$C43), "Relay") -> Relay | M45: =IF(OR(L46="DQ",L46="DNS"),"-",IF(L46=SMALL((C46,F46,I46,L46,O46,R46),1),1,IF(L46=SMALL((C46,F46,I46,L46,O46,R46),2),2,IF(L46=SMALL((C46,F46,I46,L46,O46,R46),3),3,IF(L46=SMALL((C46,F46,I46,L46,O46,R46),4),4,IF(L46=SMALL((C46,F46,I46,L46,O46,R46),5),5,IF(L46=SMALL((C46,F46,I46,L46,O46,R46),6),6))))))) -> - | N45: =IF(ISTEXT(M45),0,7-M45) -> 0 | O45: =IF(ISERROR(FIND("Relay", $B46)), IF('Lane 6'!$C43="Swimmer", "", 'Lane 6'!$C43), "Relay") -> Relay | P45: =IF(OR(O46="DQ",O46="DNS"),"-",IF(O46=SMALL((C46,F46,I46,L46,O46,R46),1),1,IF(O46=SMALL((C46,F46,I46,L46,O46,R46),2),2,IF(O46=SMALL((C46,F46,I46,L46,O46,R46),3),3,IF(O46=SMALL((C46,F46,I46,L46,O46,R46),4),4,IF(O46=SMALL((C46,F46,I46,L46,O46,R46),5),5,IF(O46=SMALL((C46,F46,I46,L46,O46,R46),6),6))))))) -> 5 | Q45: =IF(ISTEXT(P45),0,7-P45) -> 2 | R45: =IF(ISERROR(FIND("Relay", $B46)), IF('Lane 1'!$D43="Swimmer", "", 'Lane 1'!$D43), "Relay") -> Relay | S45: =IF(OR(R46="DQ",R46="DNS"),"-",IF(R46=SMALL((C46,F46,I46,L46,O46,R46),1),1,IF(R46=SMALL((C46,F46,I46,L46,O46,R46),2),2,IF(R46=SMALL((C46,F46,I46,L46,O46,R46),3),3,IF(R46=SMALL((C46,F46,I46,L46,O46,R46),4),4,IF(R46=SMALL((C46,F46,I46,L46,O46,R46),5),5,IF(R46=SMALL((C46,F46,I46,L46,O46,R46),6),6))))))) -> 1 | T45: =IF(ISTEXT(S45),0,7-S45) -> 6 | U45: =T45+Q45+N45+K45+H45+E45 -> 20
B46: Freestyle Relay | C46: 00:01:33.110 | E46: =E44+E45 -> 66 | F46: 00:01:27.480 | H46: =H44+H45 -> 88 | I46: 00:01:28.240 | K46: =K44+K45 -> 77 | L46: DNS | N46: =N44+N45 -> 47 | O46: 00:01:33.210 | Q46: =Q44+Q45 -> 69 | R46: 00:01:25.870 | T46: =T44+T45 -> 78 | V46: =V44+U45 -> 425
A47: 22 | B47: B 9 yrs 4x1L | C47: =IF(ISERROR(FIND("Relay", $B48)), IF('Lane 2'!$C45="Swimmer", "", 'Lane 2'!$C45), "Relay") -> Relay | D47: =IF(OR(C48="DQ",C48="DNS"),"-",IF(C48=SMALL((C48,F48,I48,L48,O48,R48),1),1,IF(C48=SMALL((C48,F48,I48,L48,O48,R48),2),2,IF(C48=SMALL((C48,F48,I48,L48,O48,R48),3),3,IF(C48=SMALL((C48,F48,I48,L48,O48,R48),4),4,IF(C48=SMALL((C48,F48,I48,L48,O48,R48),5),5,IF(C48=SMALL((C48,F48,I48,L48,O48,R48),6),6))))))) -> - | E47: =IF(ISTEXT(D47),0,7-D47) -> 0 | F47: =IF(ISERROR(FIND("Relay", $B48)), IF('Lane 3'!$C45="Swimmer", "", 'Lane 3'!$C45), "Relay") -> Relay | G47: =IF(OR(F48="DQ",F48="DNS"),"-",IF(F48=SMALL((C48,F48,I48,L48,O48,R48),1),1,IF(F48=SMALL((C48,F48,I48,L48,O48,R48),2),2,IF(F48=SMALL((C48,F48,I48,L48,O48,R48),3),3,IF(F48=SMALL((C48,F48,I48,L48,O48,R48),4),4,IF(F48=SMALL((C48,F48,I48,L48,O48,R48),5),5,IF(F48=SMALL((C48,F48,I48,L48,O48,R48),6),6))))))) -> 1 | H47: =IF(ISTEXT(G47),0,7-G47) -> 6 | I47: =IF(ISERROR(FIND("Relay", $B48)), IF('Lane 4'!$C45="Swimmer", "", 'Lane 4'!$C45), "Relay") -> Relay | J47: =IF(OR(I48="DQ",I48="DNS"),"-",IF(I48=SMALL((C48,F48,I48,L48,O48,R48),1),1,IF(I48=SMALL((C48,F48,I48,L48,O48,R48),2),2,IF(I48=SMALL((C48,F48,I48,L48,O48,R48),3),3,IF(I48=SMALL((C48,F48,I48,L48,O48,R48),4),4,IF(I48=SMALL((C48,F48,I48,L48,O48,R48),5),5,IF(I48=SMALL((C48,F48,I48,L48,O48,R48),6),6))))))) -> - | K47: =IF(ISTEXT(J47),0,7-J47) -> 0 | L47: =IF(ISERROR(FIND("Relay", $B48)), IF('Lane 5'!$C45="Swimmer", "", 'Lane 5'!$C45), "Relay") -> Relay | M47: =IF(OR(L48="DQ",L48="DNS"),"-",IF(L48=SMALL((C48,F48,I48,L48,O48,R48),1),1,IF(L48=SMALL((C48,F48,I48,L48,O48,R48),2),2,IF(L48=SMALL((C48,F48,I48,L48,O48,R48),3),3,IF(L48=SMALL((C48,F48,I48,L48,O48,R48),4),4,IF(L48=SMALL((C48,F48,I48,L48,O48,R48),5),5,IF(L48=SMALL((C48,F48,I48,L48,O48,R48),6),6))))))) -> - | N47: =IF(ISTEXT(M47),0,7-M47) -> 0 | O47: =IF(ISERROR(FIND("Relay", $B48)), IF('Lane 6'!$C45="Swimmer", "", 'Lane 6'!$C45), "Relay") -> Relay | P47: =IF(OR(O48="DQ",O48="DNS"),"-",IF(O48=SMALL((C48,F48,I48,L48,O48,R48),1),1,IF(O48=SMALL((C48,F48,I48,L48,O48,R48),2),2,IF(O48=SMALL((C48,F48,I48,L48,O48,R48),3),3,IF(O48=SMALL((C48,F48,I48,L48,O48,R48),4),4,IF(O48=SMALL((C48,F48,I48,L48,O48,R48),5),5,IF(O48=SMALL((C48,F48,I48,L48,O48,R48),6),6))))))) -> 3 | Q47: =IF(ISTEXT(P47),0,7-P47) -> 4 | R47: =IF(ISERROR(FIND("Relay", $B48)), IF('Lane 1'!$D45="Swimmer", "", 'Lane 1'!$D45), "Relay") -> Relay | S47: =IF(OR(R48="DQ",R48="DNS"),"-",IF(R48=SMALL((C48,F48,I48,L48,O48,R48),1),1,IF(R48=SMALL((C48,F48,I48,L48,O48,R48),2),2,IF(R48=SMALL((C48,F48,I48,L48,O48,R48),3),3,IF(R48=SMALL((C48,F48,I48,L48,O48,R48),4),4,IF(R48=SMALL((C48,F48,I48,L48,O48,R48),5),5,IF(R48=SMALL((C48,F48,I48,L48,O48,R48),6),6))))))) -> 2 | T47: =IF(ISTEXT(S47),0,7-S47) -> 5 | U47: =T47+Q47+N47+K47+H47+E47 -> 15
B48: Freestyle Relay | C48: DQ | E48: =E46+E47 -> 66 | F48: 00:01:20.170 | H48: =H46+H47 -> 94 | I48: DNS | K48: =K46+K47 -> 77 | L48: DNS | N48: =N46+N47 -> 47 | O48: 00:01:35.850 | Q48: =Q46+Q47 -> 73 | R48: 00:01:21.060 | T48: =T46+T47 -> 83 | V48: =V46+U47 -> 440
A49: 23 | B49: G 12/u 2L | C49: =IF(ISERROR(FIND("Relay", $B50)), IF('Lane 2'!$C47="Swimmer", "", 'Lane 2'!$C47), "Relay") -> Libby Wilks | D49: =IF(OR(C50="DQ",C50="DNS"),"-",IF(C50=SMALL((C50,F50,I50,L50,O50,R50),1),1,IF(C50=SMALL((C50,F50,I50,L50,O50,R50),2),2,IF(C50=SMALL((C50,F50,I50,L50,O50,R50),3),3,IF(C50=SMALL((C50,F50,I50,L50,O50,R50),4),4,IF(C50=SMALL((C50,F50,I50,L50,O50,R50),5),5,IF(C50=SMALL((C50,F50,I50,L50,O50,R50),6),6))))))) -> 3 | E49: =IF(ISTEXT(D49),0,7-D49) -> 4 | F49: =IF(ISERROR(FIND("Relay", $B50)), IF('Lane 3'!$C47="Swimmer", "", 'Lane 3'!$C47), "Relay") -> Emily Withey | G49: =IF(OR(F50="DQ",F50="DNS"),"-",IF(F50=SMALL((C50,F50,I50,L50,O50,R50),1),1,IF(F50=SMALL((C50,F50,I50,L50,O50,R50),2),2,IF(F50=SMALL((C50,F50,I50,L50,O50,R50),3),3,IF(F50=SMALL((C50,F50,I50,L50,O50,R50),4),4,IF(F50=SMALL((C50,F50,I50,L50,O50,R50),5),5,IF(F50=SMALL((C50,F50,I50,L50,O50,R50),6),6))))))) -> 2 | H49: =IF(ISTEXT(G49),0,7-G49) -> 5 | I49: =IF(ISERROR(FIND("Relay", $B50)), IF('Lane 4'!$C47="Swimmer", "", 'Lane 4'!$C47), "Relay") -> Eve Phillips | J49: =IF(OR(I50="DQ",I50="DNS"),"-",IF(I50=SMALL((C50,F50,I50,L50,O50,R50),1),1,IF(I50=SMALL((C50,F50,I50,L50,O50,R50),2),2,IF(I50=SMALL((C50,F50,I50,L50,O50,R50),3),3,IF(I50=SMALL((C50,F50,I50,L50,O50,R50),4),4,IF(I50=SMALL((C50,F50,I50,L50,O50,R50),5),5,IF(I50=SMALL((C50,F50,I50,L50,O50,R50),6),6))))))) -> 5 | K49: =IF(ISTEXT(J49),0,7-J49) -> 2 | L49: =IF(ISERROR(FIND("Relay", $B50)), IF('Lane 5'!$C47="Swimmer", "", 'Lane 5'!$C47), "Relay") -> Abigail Tan | M49: =IF(OR(L50="DQ",L50="DNS"),"-",IF(L50=SMALL((C50,F50,I50,L50,O50,R50),1),1,IF(L50=SMALL((C50,F50,I50,L50,O50,R50),2),2,IF(L50=SMALL((C50,F50,I50,L50,O50,R50),3),3,IF(L50=SMALL((C50,F50,I50,L50,O50,R50),4),4,IF(L50=SMALL((C50,F50,I50,L50,O50,R50),5),5,IF(L50=SMALL((C50,F50,I50,L50,O50,R50),6),6))))))) -> 1 | N49: =IF(ISTEXT(M49),0,7-M49) -> 6 | O49: =IF(ISERROR(FIND("Relay", $B50)), IF('Lane 6'!$C47="Swimmer", "", 'Lane 6'!$C47), "Relay") -> E Rollins | P49: =IF(OR(O50="DQ",O50="DNS"),"-",IF(O50=SMALL((C50,F50,I50,L50,O50,R50),1),1,IF(O50=SMALL((C50,F50,I50,L50,O50,R50),2),2,IF(O50=SMALL((C50,F50,I50,L50,O50,R50),3),3,IF(O50=SMALL((C50,F50,I50,L50,O50,R50),4),4,IF(O50=SMALL((C50,F50,I50,L50,O50,R50),5),5,IF(O50=SMALL((C50,F50,I50,L50,O50,R50),6),6))))))) -> - | Q49: =IF(ISTEXT(P49),0,7-P49) -> 0 | R49: =IF(ISERROR(FIND("Relay", $B50)), IF('Lane 1'!$C47="Swimmer", "", 'Lane 1'!$C47), "Relay") -> Olivia Samuels | S49: =IF(OR(R50="DQ",R50="DNS"),"-",IF(R50=SMALL((C50,F50,I50,L50,O50,R50),1),1,IF(R50=SMALL((C50,F50,I50,L50,O50,R50),2),2,IF(R50=SMALL((C50,F50,I50,L50,O50,R50),3),3,IF(R50=SMALL((C50,F50,I50,L50,O50,R50),4),4,IF(R50=SMALL((C50,F50,I50,L50,O50,R50),5),5,IF(R50=SMALL((C50,F50,I50,L50,O50,R50),6),6))))))) -> 4 | T49: =IF(ISTEXT(S49),0,7-S49) -> 3 | U49: =T49+Q49+N49+K49+H49+E49 -> 20
B50: Breaststroke | C50: 00:00:48.440 | E50: =E48+E49 -> 70 | F50: 00:00:47.380 | H50: =H48+H49 -> 99 | I50: 00:00:51.950 | K50: =K48+K49 -> 79 | L50: 00:00:39.310 | N50: =N48+N49 -> 53 | O50: DQ | Q50: =Q48+Q49 -> 73 | R50: 00:00:50.440 | T50: =T48+T49 -> 86 | V50: =V48+U49 -> 460
A51: 24 | B51: B 12/u 2L | C51: =IF(ISERROR(FIND("Relay", $B52)), IF('Lane 2'!$C49="Swimmer", "", 'Lane 2'!$C49), "Relay") -> Lachlin Woodend | D51: =IF(OR(C52="DQ",C52="DNS"),"-",IF(C52=SMALL((C52,F52,I52,L52,O52,R52),1),1,IF(C52=SMALL((C52,F52,I52,L52,O52,R52),2),2,IF(C52=SMALL((C52,F52,I52,L52,O52,R52),3),3,IF(C52=SMALL((C52,F52,I52,L52,O52,R52),4),4,IF(C52=SMALL((C52,F52,I52,L52,O52,R52),5),5,IF(C52=SMALL((C52,F52,I52,L52,O52,R52),6),6))))))) -> 5 | E51: =IF(ISTEXT(D51),0,7-D51) -> 2 | F51: =IF(ISERROR(FIND("Relay", $B52)), IF('Lane 3'!$C49="Swimmer", "", 'Lane 3'!$C49), "Relay") -> Harvey Ashead | G51: =IF(OR(F52="DQ",F52="DNS"),"-",IF(F52=SMALL((C52,F52,I52,L52,O52,R52),1),1,IF(F52=SMALL((C52,F52,I52,L52,O52,R52),2),2,IF(F52=SMALL((C52,F52,I52,L52,O52,R52),3),3,IF(F52=SMALL((C52,F52,I52,L52,O52,R52),4),4,IF(F52=SMALL((C52,F52,I52,L52,O52,R52),5),5,IF(F52=SMALL((C52,F52,I52,L52,O52,R52),6),6))))))) -> 2 | H51: =IF(ISTEXT(G51),0,7-G51) -> 5 | I51: =IF(ISERROR(FIND("Relay", $B52)), IF('Lane 4'!$C49="Swimmer", "", 'Lane 4'!$C49), "Relay") -> Dylan Abulencia | J51: =IF(OR(I52="DQ",I52="DNS"),"-",IF(I52=SMALL((C52,F52,I52,L52,O52,R52),1),1,IF(I52=SMALL((C52,F52,I52,L52,O52,R52),2),2,IF(I52=SMALL((C52,F52,I52,L52,O52,R52),3),3,IF(I52=SMALL((C52,F52,I52,L52,O52,R52),4),4,IF(I52=SMALL((C52,F52,I52,L52,O52,R52),5),5,IF(I52=SMALL((C52,F52,I52,L52,O52,R52),6),6))))))) -> 1 | K51: =IF(ISTEXT(J51),0,7-J51) -> 6 | L51: =IF(ISERROR(FIND("Relay", $B52)), IF('Lane 5'!$C49="Swimmer", "", 'Lane 5'!$C49), "Relay") -> Michael Dutton | M51: =IF(OR(L52="DQ",L52="DNS"),"-",IF(L52=SMALL((C52,F52,I52,L52,O52,R52),1),1,IF(L52=SMALL((C52,F52,I52,L52,O52,R52),2),2,IF(L52=SMALL((C52,F52,I52,L52,O52,R52),3),3,IF(L52=SMALL((C52,F52,I52,L52,O52,R52),4),4,IF(L52=SMALL((C52,F52,I52,L52,O52,R52),5),5,IF(L52=SMALL((C52,F52,I52,L52,O52,R52),6),6))))))) -> 6 | N51: =IF(ISTEXT(M51),0,7-M51) -> 1 | O51: =IF(ISERROR(FIND("Relay", $B52)), IF('Lane 6'!$C49="Swimmer", "", 'Lane 6'!$C49), "Relay") -> C Fletcher | P51: =IF(OR(O52="DQ",O52="DNS"),"-",IF(O52=SMALL((C52,F52,I52,L52,O52,R52),1),1,IF(O52=SMALL((C52,F52,I52,L52,O52,R52),2),2,IF(O52=SMALL((C52,F52,I52,L52,O52,R52),3),3,IF(O52=SMALL((C52,F52,I52,L52,O52,R52),4),4,IF(O52=SMALL((C52,F52,I52,L52,O52,R52),5),5,IF(O52=SMALL((C52,F52,I52,L52,O52,R52),6),6))))))) -> 4 | Q51: =IF(ISTEXT(P51),0,7-P51) -> 3 | R51: =IF(ISERROR(FIND("Relay", $B52)), IF('Lane 1'!$C49="Swimmer", "", 'Lane 1'!$C49), "Relay") -> Harvie Lal | S51: =IF(OR(R52="DQ",R52="DNS"),"-",IF(R52=SMALL((C52,F52,I52,L52,O52,R52),1),1,IF(R52=SMALL((C52,F52,I52,L52,O52,R52),2),2,IF(R52=SMALL((C52,F52,I52,L52,O52,R52),3),3,IF(R52=SMALL((C52,F52,I52,L52,O52,R52),4),4,IF(R52=SMALL((C52,F52,I52,L52,O52,R52),5),5,IF(R52=SMALL((C52,F52,I52,L52,O52,R52),6),6))))))) -> 3 | T51: =IF(ISTEXT(S51),0,7-S51) -> 4 | U51: =T51+Q51+N51+K51+H51+E51 -> 21
B52: Breaststroke | C52: 00:00:50.040 | E52: =E50+E51 -> 72 | F52: 00:00:43.610 | H52: =H50+H51 -> 104 | I52: 00:00:40.240 | K52: =K50+K51 -> 85 | L52: 00:00:55.120 | N52: =N50+N51 -> 54 | O52: 00:00:49.940 | Q52: =Q50+Q51 -> 76 | R52: 00:00:46.190 | T52: =T50+T51 -> 90 | V52: =V50+U51 -> 481
A53: 25 | B53: G 10yrs 4 x 1L | C53: =IF(ISERROR(FIND("Relay", $B54)), IF('Lane 2'!$C51="Swimmer", "", 'Lane 2'!$C51), "Relay") -> Relay | D53: =IF(OR(C54="DQ",C54="DNS"),"-",IF(C54=SMALL((C54,F54,I54,L54,O54,R54),1),1,IF(C54=SMALL((C54,F54,I54,L54,O54,R54),2),2,IF(C54=SMALL((C54,F54,I54,L54,O54,R54),3),3,IF(C54=SMALL((C54,F54,I54,L54,O54,R54),4),4,IF(C54=SMALL((C54,F54,I54,L54,O54,R54),5),5,IF(C54=SMALL((C54,F54,I54,L54,O54,R54),6),6))))))) -> 2 | E53: =IF(ISTEXT(D53),0,7-D53) -> 5 | F53: =IF(ISERROR(FIND("Relay", $B54)), IF('Lane 3'!$C51="Swimmer", "", 'Lane 3'!$C51), "Relay") -> Relay | G53: =IF(OR(F54="DQ",F54="DNS"),"-",IF(F54=SMALL((C54,F54,I54,L54,O54,R54),1),1,IF(F54=SMALL((C54,F54,I54,L54,O54,R54),2),2,IF(F54=SMALL((C54,F54,I54,L54,O54,R54),3),3,IF(F54=SMALL((C54,F54,I54,L54,O54,R54),4),4,IF(F54=SMALL((C54,F54,I54,L54,O54,R54),5),5,IF(F54=SMALL((C54,F54,I54,L54,O54,R54),6),6))))))) -> 1 | H53: =IF(ISTEXT(G53),0,7-G53) -> 6 | I53: =IF(ISERROR(FIND("Relay", $B54)), IF('Lane 4'!$C51="Swimmer", "", 'Lane 4'!$C51), "Relay") -> Relay | J53: =IF(OR(I54="DQ",I54="DNS"),"-",IF(I54=SMALL((C54,F54,I54,L54,O54,R54),1),1,IF(I54=SMALL((C54,F54,I54,L54,O54,R54),2),2,IF(I54=SMALL((C54,F54,I54,L54,O54,R54),3),3,IF(I54=SMALL((C54,F54,I54,L54,O54,R54),4),4,IF(I54=SMALL((C54,F54,I54,L54,O54,R54),5),5,IF(I54=SMALL((C54,F54,I54,L54,O54,R54),6),6))))))) -> 4 | K53: =IF(ISTEXT(J53),0,7-J53) -> 3 | L53: =IF(ISERROR(FIND("Relay", $B54)), IF('Lane 5'!$C51="Swimmer", "", 'Lane 5'!$C51), "Relay") -> Relay | M53: =IF(OR(L54="DQ",L54="DNS"),"-",IF(L54=SMALL((C54,F54,I54,L54,O54,R54),1),1,IF(L54=SMALL((C54,F54,I54,L54,O54,R54),2),2,IF(L54=SMALL((C54,F54,I54,L54,O54,R54),3),3,IF(L54=SMALL((C54,F54,I54,L54,O54,R54),4),4,IF(L54=SMALL((C54,F54,I54,L54,O54,R54),5),5,IF(L54=SMALL((C54,F54,I54,L54,O54,R54),6),6))))))) -> - | N53: =IF(ISTEXT(M53),0,7-M53) -> 0 | O53: =IF(ISERROR(FIND("Relay", $B54)), IF('Lane 6'!$C51="Swimmer", "", 'Lane 6'!$C51), "Relay") -> Relay | P53: =IF(OR(O54="DQ",O54="DNS"),"-",IF(O54=SMALL((C54,F54,I54,L54,O54,R54),1),1,IF(O54=SMALL((C54,F54,I54,L54,O54,R54),2),2,IF(O54=SMALL((C54,F54,I54,L54,O54,R54),3),3,IF(O54=SMALL((C54,F54,I54,L54,O54,R54),4),4,IF(O54=SMALL((C54,F54,I54,L54,O54,R54),5),5,IF(O54=SMALL((C54,F54,I54,L54,O54,R54),6),6))))))) -> 5 | Q53: =IF(ISTEXT(P53),0,7-P53) -> 2 | R53: =IF(ISERROR(FIND("Relay", $B54)), IF('Lane 1'!$D51="Swimmer", "", 'Lane 1'!$D51), "Relay") -> Relay | S53: =IF(OR(R54="DQ",R54="DNS"),"-",IF(R54=SMALL((C54,F54,I54,L54,O54,R54),1),1,IF(R54=SMALL((C54,F54,I54,L54,O54,R54),2),2,IF(R54=SMALL((C54,F54,I54,L54,O54,R54),3),3,IF(R54=SMALL((C54,F54,I54,L54,O54,R54),4),4,IF(R54=SMALL((C54,F54,I54,L54,O54,R54),5),5,IF(R54=SMALL((C54,F54,I54,L54,O54,R54),6),6))))))) -> 3 | T53: =IF(ISTEXT(S53),0,7-S53) -> 4 | U53: =T53+Q53+N53+K53+H53+E53 -> 20
B54: Freestyle Relay | C54: 00:01:15.870 | E54: =E52+E53 -> 77 | F54: 00:01:15.680 | H54: =H52+H53 -> 110 | I54: 00:01:24.440 | K54: =K52+K53 -> 88 | L54: DQ | N54: =N52+N53 -> 54 | O54: 00:01:43.410 | Q54: =Q52+Q53 -> 78 | R54: 00:01:20.930 | T54: =T52+T53 -> 94 | V54: =V52+U53 -> 501
A55: 26 | B55: B 10yrs 4 x 1L | C55: =IF(ISERROR(FIND("Relay", $B56)), IF('Lane 2'!$C53="Swimmer", "", 'Lane 2'!$C53), "Relay") -> Relay | D55: =IF(OR(C56="DQ",C56="DNS"),"-",IF(C56=SMALL((C56,F56,I56,L56,O56,R56),1),1,IF(C56=SMALL((C56,F56,I56,L56,O56,R56),2),2,IF(C56=SMALL((C56,F56,I56,L56,O56,R56),3),3,IF(C56=SMALL((C56,F56,I56,L56,O56,R56),4),4,IF(C56=SMALL((C56,F56,I56,L56,O56,R56),5),5,IF(C56=SMALL((C56,F56,I56,L56,O56,R56),6),6))))))) -> - | E55: =IF(ISTEXT(D55),0,7-D55) -> 0 | F55: =IF(ISERROR(FIND("Relay", $B56)), IF('Lane 3'!$C53="Swimmer", "", 'Lane 3'!$C53), "Relay") -> Relay | G55: =IF(OR(F56="DQ",F56="DNS"),"-",IF(F56=SMALL((C56,F56,I56,L56,O56,R56),1),1,IF(F56=SMALL((C56,F56,I56,L56,O56,R56),2),2,IF(F56=SMALL((C56,F56,I56,L56,O56,R56),3),3,IF(F56=SMALL((C56,F56,I56,L56,O56,R56),4),4,IF(F56=SMALL((C56,F56,I56,L56,O56,R56),5),5,IF(F56=SMALL((C56,F56,I56,L56,O56,R56),6),6))))))) -> 2 | H55: =IF(ISTEXT(G55),0,7-G55) -> 5 | I55: =IF(ISERROR(FIND("Relay", $B56)), IF('Lane 4'!$C53="Swimmer", "", 'Lane 4'!$C53), "Relay") -> Relay | J55: =IF(OR(I56="DQ",I56="DNS"),"-",IF(I56=SMALL((C56,F56,I56,L56,O56,R56),1),1,IF(I56=SMALL((C56,F56,I56,L56,O56,R56),2),2,IF(I56=SMALL((C56,F56,I56,L56,O56,R56),3),3,IF(I56=SMALL((C56,F56,I56,L56,O56,R56),4),4,IF(I56=SMALL((C56,F56,I56,L56,O56,R56),5),5,IF(I56=SMALL((C56,F56,I56,L56,O56,R56),6),6))))))) -> 3 | K55: =IF(ISTEXT(J55),0,7-J55) -> 4 | L55: =IF(ISERROR(FIND("Relay", $B56)), IF('Lane 5'!$C53="Swimmer", "", 'Lane 5'!$C53), "Relay") -> Relay | M55: =IF(OR(L56="DQ",L56="DNS"),"-",IF(L56=SMALL((C56,F56,I56,L56,O56,R56),1),1,IF(L56=SMALL((C56,F56,I56,L56,O56,R56),2),2,IF(L56=SMALL((C56,F56,I56,L56,O56,R56),3),3,IF(L56=SMALL((C56,F56,I56,L56,O56,R56),4),4,IF(L56=SMALL((C56,F56,I56,L56,O56,R56),5),5,IF(L56=SMALL((C56,F56,I56,L56,O56,R56),6),6))))))) -> - | N55: =IF(ISTEXT(M55),0,7-M55) -> 0 | O55: =IF(ISERROR(FIND("Relay", $B56)), IF('Lane 6'!$C53="Swimmer", "", 'Lane 6'!$C53), "Relay") -> Relay | P55: =IF(OR(O56="DQ",O56="DNS"),"-",IF(O56=SMALL((C56,F56,I56,L56,O56,R56),1),1,IF(O56=SMALL((C56,F56,I56,L56,O56,R56),2),2,IF(O56=SMALL((C56,F56,I56,L56,O56,R56),3),3,IF(O56=SMALL((C56,F56,I56,L56,O56,R56),4),4,IF(O56=SMALL((C56,F56,I56,L56,O56,R56),5),5,IF(O56=SMALL((C56,F56,I56,L56,O56,R56),6),6))))))) -> 1 | Q55: =IF(ISTEXT(P55),0,7-P55) -> 6 | R55: =IF(ISERROR(FIND("Relay", $B56)), IF('Lane 1'!$D53="Swimmer", "", 'Lane 1'!$D53), "Relay") -> Relay | S55: =IF(OR(R56="DQ",R56="DNS"),"-",IF(R56=SMALL((C56,F56,I56,L56,O56,R56),1),1,IF(R56=SMALL((C56,F56,I56,L56,O56,R56),2),2,IF(R56=SMALL((C56,F56,I56,L56,O56,R56),3),3,IF(R56=SMALL((C56,F56,I56,L56,O56,R56),4),4,IF(R56=SMALL((C56,F56,I56,L56,O56,R56),5),5,IF(R56=SMALL((C56,F56,I56,L56,O56,R56),6),6))))))) -> 4 | T55: =IF(ISTEXT(S55),0,7-S55) -> 3 | U55: =T55+Q55+N55+K55+H55+E55 -> 18
B56: Freestyle Relay | C56: DQ | E56: =E54+E55 -> 77 | F56: 00:01:15.760 | H56: =H54+H55 -> 115 | I56: 00:01:19.010 | K56: =K54+K55 -> 92 | L56: DNS | N56: =N54+N55 -> 54 | O56: 00:01:14.750 | Q56: =Q54+Q55 -> 84 | R56: 00:01:22.360 | T56: =T54+T55 -> 97 | V56: =V54+U55 -> 519
A57: 27 | B57: G 11/u 2L | C57: =IF(ISERROR(FIND("Relay", $B58)), IF('Lane 2'!$C55="Swimmer", "", 'Lane 2'!$C55), "Relay") -> Isobelle Carpenter-Clay | D57: =IF(OR(C58="DQ",C58="DNS"),"-",IF(C58=SMALL((C58,F58,I58,L58,O58,R58),1),1,IF(C58=SMALL((C58,F58,I58,L58,O58,R58),2),2,IF(C58=SMALL((C58,F58,I58,L58,O58,R58),3),3,IF(C58=SMALL((C58,F58,I58,L58,O58,R58),4),4,IF(C58=SMALL((C58,F58,I58,L58,O58,R58),5),5,IF(C58=SMALL((C58,F58,I58,L58,O58,R58),6),6))))))) -> 2 | E57: =IF(ISTEXT(D57),0,7-D57) -> 5 | F57: =IF(ISERROR(FIND("Relay", $B58)), IF('Lane 3'!$C55="Swimmer", "", 'Lane 3'!$C55), "Relay") -> Sarah Hunt | G57: =IF(OR(F58="DQ",F58="DNS"),"-",IF(F58=SMALL((C58,F58,I58,L58,O58,R58),1),1,IF(F58=SMALL((C58,F58,I58,L58,O58,R58),2),2,IF(F58=SMALL((C58,F58,I58,L58,O58,R58),3),3,IF(F58=SMALL((C58,F58,I58,L58,O58,R58),4),4,IF(F58=SMALL((C58,F58,I58,L58,O58,R58),5),5,IF(F58=SMALL((C58,F58,I58,L58,O58,R58),6),6))))))) -> 4 | H57: =IF(ISTEXT(G57),0,7-G57) -> 3 | I57: =IF(ISERROR(FIND("Relay", $B58)), IF('Lane 4'!$C55="Swimmer", "", 'Lane 4'!$C55), "Relay") -> Eleanor Ribchester | J57: =IF(OR(I58="DQ",I58="DNS"),"-",IF(I58=SMALL((C58,F58,I58,L58,O58,R58),1),1,IF(I58=SMALL((C58,F58,I58,L58,O58,R58),2),2,IF(I58=SMALL((C58,F58,I58,L58,O58,R58),3),3,IF(I58=SMALL((C58,F58,I58,L58,O58,R58),4),4,IF(I58=SMALL((C58,F58,I58,L58,O58,R58),5),5,IF(I58=SMALL((C58,F58,I58,L58,O58,R58),6),6))))))) -> 3 | K57: =IF(ISTEXT(J57),0,7-J57) -> 4 | L57: =IF(ISERROR(FIND("Relay", $B58)), IF('Lane 5'!$C55="Swimmer", "", 'Lane 5'!$C55), "Relay") ->  | M57: =IF(OR(L58="DQ",L58="DNS"),"-",IF(L58=SMALL((C58,F58,I58,L58,O58,R58),1),1,IF(L58=SMALL((C58,F58,I58,L58,O58,R58),2),2,IF(L58=SMALL((C58,F58,I58,L58,O58,R58),3),3,IF(L58=SMALL((C58,F58,I58,L58,O58,R58),4),4,IF(L58=SMALL((C58,F58,I58,L58,O58,R58),5),5,IF(L58=SMALL((C58,F58,I58,L58,O58,R58),6),6))))))) -> - | N57: =IF(ISTEXT(M57),0,7-M57) -> 0 | O57: =IF(ISERROR(FIND("Relay", $B58)), IF('Lane 6'!$C55="Swimmer", "", 'Lane 6'!$C55), "Relay") -> E Hendon | P57: =IF(OR(O58="DQ",O58="DNS"),"-",IF(O58=SMALL((C58,F58,I58,L58,O58,R58),1),1,IF(O58=SMALL((C58,F58,I58,L58,O58,R58),2),2,IF(O58=SMALL((C58,F58,I58,L58,O58,R58),3),3,IF(O58=SMALL((C58,F58,I58,L58,O58,R58),4),4,IF(O58=SMALL((C58,F58,I58,L58,O58,R58),5),5,IF(O58=SMALL((C58,F58,I58,L58,O58,R58),6),6))))))) -> 1 | Q57: =IF(ISTEXT(P57),0,7-P57) -> 6 | R57: =IF(ISERROR(FIND("Relay", $B58)), IF('Lane 1'!$C55="Swimmer", "", 'Lane 1'!$C55), "Relay") -> 00:00:00 | S57: =IF(OR(R58="DQ",R58="DNS"),"-",IF(R58=SMALL((C58,F58,I58,L58,O58,R58),1),1,IF(R58=SMALL((C58,F58,I58,L58,O58,R58),2),2,IF(R58=SMALL((C58,F58,I58,L58,O58,R58),3),3,IF(R58=SMALL((C58,F58,I58,L58,O58,R58),4),4,IF(R58=SMALL((C58,F58,I58,L58,O58,R58),5),5,IF(R58=SMALL((C58,F58,I58,L58,O58,R58),6),6))))))) -> - | T57: =IF(ISTEXT(S57),0,7-S57) -> 0 | U57: =T57+Q57+N57+K57+H57+E57 -> 18
B58: Butterfly | C58: 00:00:48.470 | E58: =E56+E57 -> 82 | F58: 00:00:53.940 | H58: =H56+H57 -> 118 | I58: 00:00:50.170 | K58: =K56+K57 -> 96 | L58: DNS | N58: =N56+N57 -> 54 | O58: 00:00:46.750 | Q58: =Q56+Q57 -> 90 | R58: DNS | T58: =T56+T57 -> 97 | V58: =V56+U57 -> 537
A59: 28 | B59: B 11/u 2L | C59: =IF(ISERROR(FIND("Relay", $B60)), IF('Lane 2'!$C57="Swimmer", "", 'Lane 2'!$C57), "Relay") -> Alex Walker | D59: =IF(OR(C60="DQ",C60="DNS"),"-",IF(C60=SMALL((C60,F60,I60,L60,O60,R60),1),1,IF(C60=SMALL((C60,F60,I60,L60,O60,R60),2),2,IF(C60=SMALL((C60,F60,I60,L60,O60,R60),3),3,IF(C60=SMALL((C60,F60,I60,L60,O60,R60),4),4,IF(C60=SMALL((C60,F60,I60,L60,O60,R60),5),5,IF(C60=SMALL((C60,F60,I60,L60,O60,R60),6),6))))))) -> 5 | E59: =IF(ISTEXT(D59),0,7-D59) -> 2 | F59: =IF(ISERROR(FIND("Relay", $B60)), IF('Lane 3'!$C57="Swimmer", "", 'Lane 3'!$C57), "Relay") -> Reece Johnson | G59: =IF(OR(F60="DQ",F60="DNS"),"-",IF(F60=SMALL((C60,F60,I60,L60,O60,R60),1),1,IF(F60=SMALL((C60,F60,I60,L60,O60,R60),2),2,IF(F60=SMALL((C60,F60,I60,L60,O60,R60),3),3,IF(F60=SMALL((C60,F60,I60,L60,O60,R60),4),4,IF(F60=SMALL((C60,F60,I60,L60,O60,R60),5),5,IF(F60=SMALL((C60,F60,I60,L60,O60,R60),6),6))))))) -> 2 | H59: =IF(ISTEXT(G59),0,7-G59) -> 5 | I59: =IF(ISERROR(FIND("Relay", $B60)), IF('Lane 4'!$C57="Swimmer", "", 'Lane 4'!$C57), "Relay") -> Sonny Butcher | J59: =IF(OR(I60="DQ",I60="DNS"),"-",IF(I60=SMALL((C60,F60,I60,L60,O60,R60),1),1,IF(I60=SMALL((C60,F60,I60,L60,O60,R60),2),2,IF(I60=SMALL((C60,F60,I60,L60,O60,R60),3),3,IF(I60=SMALL((C60,F60,I60,L60,O60,R60),4),4,IF(I60=SMALL((C60,F60,I60,L60,O60,R60),5),5,IF(I60=SMALL((C60,F60,I60,L60,O60,R60),6),6))))))) -> 6 | K59: =IF(ISTEXT(J59),0,7-J59) -> 1 | L59: =IF(ISERROR(FIND("Relay", $B60)), IF('Lane 5'!$C57="Swimmer", "", 'Lane 5'!$C57), "Relay") -> Issac Walton | M59: =IF(OR(L60="DQ",L60="DNS"),"-",IF(L60=SMALL((C60,F60,I60,L60,O60,R60),1),1,IF(L60=SMALL((C60,F60,I60,L60,O60,R60),2),2,IF(L60=SMALL((C60,F60,I60,L60,O60,R60),3),3,IF(L60=SMALL((C60,F60,I60,L60,O60,R60),4),4,IF(L60=SMALL((C60,F60,I60,L60,O60,R60),5),5,IF(L60=SMALL((C60,F60,I60,L60,O60,R60),6),6))))))) -> 4 | N59: =IF(ISTEXT(M59),0,7-M59) -> 3 | O59: =IF(ISERROR(FIND("Relay", $B60)), IF('Lane 6'!$C57="Swimmer", "", 'Lane 6'!$C57), "Relay") -> B Webb | P59: =IF(OR(O60="DQ",O60="DNS"),"-",IF(O60=SMALL((C60,F60,I60,L60,O60,R60),1),1,IF(O60=SMALL((C60,F60,I60,L60,O60,R60),2),2,IF(O60=SMALL((C60,F60,I60,L60,O60,R60),3),3,IF(O60=SMALL((C60,F60,I60,L60,O60,R60),4),4,IF(O60=SMALL((C60,F60,I60,L60,O60,R60),5),5,IF(O60=SMALL((C60,F60,I60,L60,O60,R60),6),6))))))) -> 1 | Q59: =IF(ISTEXT(P59),0,7-P59) -> 6 | R59: =IF(ISERROR(FIND("Relay", $B60)), IF('Lane 1'!$C57="Swimmer", "", 'Lane 1'!$C57), "Relay") -> Tom Lucas | S59: =IF(OR(R60="DQ",R60="DNS"),"-",IF(R60=SMALL((C60,F60,I60,L60,O60,R60),1),1,IF(R60=SMALL((C60,F60,I60,L60,O60,R60),2),2,IF(R60=SMALL((C60,F60,I60,L60,O60,R60),3),3,IF(R60=SMALL((C60,F60,I60,L60,O60,R60),4),4,IF(R60=SMALL((C60,F60,I60,L60,O60,R60),5),5,IF(R60=SMALL((C60,F60,I60,L60,O60,R60),6),6))))))) -> 3 | T59: =IF(ISTEXT(S59),0,7-S59) -> 4 | U59: =T59+Q59+N59+K59+H59+E59 -> 21
B60: Butterfly | C60: 00:00:45.370 | E60: =E58+E59 -> 84 | F60: 00:00:41.290 | H60: =H58+H59 -> 123 | I60: 00:00:51.200 | K60: =K58+K59 -> 97 | L60: 00:00:43.190 | N60: =N58+N59 -> 57 | O60: 00:00:38.720 | Q60: =Q58+Q59 -> 96 | R60: 00:00:42.900 | T60: =T58+T59 -> 101 | V60: =V58+U59 -> 558
A61: 29 | B61: G 9 yrs 1L | C61: =IF(ISERROR(FIND("Relay", $B62)), IF('Lane 2'!$C59="Swimmer", "", 'Lane 2'!$C59), "Relay") -> Emilia Skelding | D61: =IF(OR(C62="DQ",C62="DNS"),"-",IF(C62=SMALL((C62,F62,I62,L62,O62,R62),1),1,IF(C62=SMALL((C62,F62,I62,L62,O62,R62),2),2,IF(C62=SMALL((C62,F62,I62,L62,O62,R62),3),3,IF(C62=SMALL((C62,F62,I62,L62,O62,R62),4),4,IF(C62=SMALL((C62,F62,I62,L62,O62,R62),5),5,IF(C62=SMALL((C62,F62,I62,L62,O62,R62),6),6))))))) -> 4 | E61: =IF(ISTEXT(D61),0,7-D61) -> 3 | F61: =IF(ISERROR(FIND("Relay", $B62)), IF('Lane 3'!$C59="Swimmer", "", 'Lane 3'!$C59), "Relay") -> Esther McGeough | G61: =IF(OR(F62="DQ",F62="DNS"),"-",IF(F62=SMALL((C62,F62,I62,L62,O62,R62),1),1,IF(F62=SMALL((C62,F62,I62,L62,O62,R62),2),2,IF(F62=SMALL((C62,F62,I62,L62,O62,R62),3),3,IF(F62=SMALL((C62,F62,I62,L62,O62,R62),4),4,IF(F62=SMALL((C62,F62,I62,L62,O62,R62),5),5,IF(F62=SMALL((C62,F62,I62,L62,O62,R62),6),6))))))) -> 1 | H61: =IF(ISTEXT(G61),0,7-G61) -> 6 | I61: =IF(ISERROR(FIND("Relay", $B62)), IF('Lane 4'!$C59="Swimmer", "", 'Lane 4'!$C59), "Relay") -> Constance Gwillim | J61: =IF(OR(I62="DQ",I62="DNS"),"-",IF(I62=SMALL((C62,F62,I62,L62,O62,R62),1),1,IF(I62=SMALL((C62,F62,I62,L62,O62,R62),2),2,IF(I62=SMALL((C62,F62,I62,L62,O62,R62),3),3,IF(I62=SMALL((C62,F62,I62,L62,O62,R62),4),4,IF(I62=SMALL((C62,F62,I62,L62,O62,R62),5),5,IF(I62=SMALL((C62,F62,I62,L62,O62,R62),6),6))))))) -> 2 | K61: =IF(ISTEXT(J61),0,7-J61) -> 5 | M61: =IF(OR(L62="DQ",L62="DNS"),"-",IF(L62=SMALL((C62,F62,I62,L62,O62,R62),1),1,IF(L62=SMALL((C62,F62,I62,L62,O62,R62),2),2,IF(L62=SMALL((C62,F62,I62,L62,O62,R62),3),3,IF(L62=SMALL((C62,F62,I62,L62,O62,R62),4),4,IF(L62=SMALL((C62,F62,I62,L62,O62,R62),5),5,IF(L62=SMALL((C62,F62,I62,L62,O62,R62),6),6))))))) -> 6 | N61: =IF(ISTEXT(M61),0,7-M61) -> 1 | O61: =IF(ISERROR(FIND("Relay", $B62)), IF('Lane 6'!$C59="Swimmer", "", 'Lane 6'!$C59), "Relay") -> K Bell | P61: =IF(OR(O62="DQ",O62="DNS"),"-",IF(O62=SMALL((C62,F62,I62,L62,O62,R62),1),1,IF(O62=SMALL((C62,F62,I62,L62,O62,R62),2),2,IF(O62=SMALL((C62,F62,I62,L62,O62,R62),3),3,IF(O62=SMALL((C62,F62,I62,L62,O62,R62),4),4,IF(O62=SMALL((C62,F62,I62,L62,O62,R62),5),5,IF(O62=SMALL((C62,F62,I62,L62,O62,R62),6),6))))))) -> 5 | Q61: =IF(ISTEXT(P61),0,7-P61) -> 2 | R61: =IF(ISERROR(FIND("Relay", $B62)), IF('Lane 1'!$C59="Swimmer", "", 'Lane 1'!$C59), "Relay") -> Evie-May Smith | S61: =IF(OR(R62="DQ",R62="DNS"),"-",IF(R62=SMALL((C62,F62,I62,L62,O62,R62),1),1,IF(R62=SMALL((C62,F62,I62,L62,O62,R62),2),2,IF(R62=SMALL((C62,F62,I62,L62,O62,R62),3),3,IF(R62=SMALL((C62,F62,I62,L62,O62,R62),4),4,IF(R62=SMALL((C62,F62,I62,L62,O62,R62),5),5,IF(R62=SMALL((C62,F62,I62,L62,O62,R62),6),6))))))) -> 3 | T61: =IF(ISTEXT(S61),0,7-S61) -> 4 | U61: =T61+Q61+N61+K61+H61+E61 -> 21
B62: Butterfly | C62: 00:00:28.090 | E62: =E60+E61 -> 87 | F62: 00:00:23.460 | H62: =H60+H61 -> 129 | I62: 00:00:25.650 | K62: =K60+K61 -> 102 | L62: 00:00:36.370 | N62: =N60+N61 -> 58 | O62: 00:00:30.410 | Q62: =Q60+Q61 -> 98 | R62: 00:00:27.130 | T62: =T60+T61 -> 105 | V62: =V60+U61 -> 579
A63: 30 | B63: B 9 yrs 1L | C63: =IF(ISERROR(FIND("Relay", $B64)), IF('Lane 2'!$C61="Swimmer", "", 'Lane 2'!$C61), "Relay") -> Adam Walker | D63: =IF(OR(C64="DQ",C64="DNS"),"-",IF(C64=SMALL((C64,F64,I64,L64,O64,R64),1),1,IF(C64=SMALL((C64,F64,I64,L64,O64,R64),2),2,IF(C64=SMALL((C64,F64,I64,L64,O64,R64),3),3,IF(C64=SMALL((C64,F64,I64,L64,O64,R64),4),4,IF(C64=SMALL((C64,F64,I64,L64,O64,R64),5),5,IF(C64=SMALL((C64,F64,I64,L64,O64,R64),6),6))))))) -> 4 | E63: =IF(ISTEXT(D63),0,7-D63) -> 3 | F63: =IF(ISERROR(FIND("Relay", $B64)), IF('Lane 3'!$C61="Swimmer", "", 'Lane 3'!$C61), "Relay") -> Oliver Jennings | G63: =IF(OR(F64="DQ",F64="DNS"),"-",IF(F64=SMALL((C64,F64,I64,L64,O64,R64),1),1,IF(F64=SMALL((C64,F64,I64,L64,O64,R64),2),2,IF(F64=SMALL((C64,F64,I64,L64,O64,R64),3),3,IF(F64=SMALL((C64,F64,I64,L64,O64,R64),4),4,IF(F64=SMALL((C64,F64,I64,L64,O64,R64),5),5,IF(F64=SMALL((C64,F64,I64,L64,O64,R64),6),6))))))) -> 3 | H63: =IF(ISTEXT(G63),0,7-G63) -> 4 | I63: =IF(ISERROR(FIND("Relay", $B64)), IF('Lane 4'!$C61="Swimmer", "", 'Lane 4'!$C61), "Relay") ->  | J63: =IF(OR(I64="DQ",I64="DNS"),"-",IF(I64=SMALL((C64,F64,I64,L64,O64,R64),1),1,IF(I64=SMALL((C64,F64,I64,L64,O64,R64),2),2,IF(I64=SMALL((C64,F64,I64,L64,O64,R64),3),3,IF(I64=SMALL((C64,F64,I64,L64,O64,R64),4),4,IF(I64=SMALL((C64,F64,I64,L64,O64,R64),5),5,IF(I64=SMALL((C64,F64,I64,L64,O64,R64),6),6))))))) -> - | K63: =IF(ISTEXT(J63),0,7-J63) -> 0 | L63: =IF(ISERROR(FIND("Relay", $B64)), IF('Lane 5'!$C61="Swimmer", "", 'Lane 5'!$C61), "Relay") -> James Inshaw | M63: =IF(OR(L64="DQ",L64="DNS"),"-",IF(L64=SMALL((C64,F64,I64,L64,O64,R64),1),1,IF(L64=SMALL((C64,F64,I64,L64,O64,R64),2),2,IF(L64=SMALL((C64,F64,I64,L64,O64,R64),3),3,IF(L64=SMALL((C64,F64,I64,L64,O64,R64),4),4,IF(L64=SMALL((C64,F64,I64,L64,O64,R64),5),5,IF(L64=SMALL((C64,F64,I64,L64,O64,R64),6),6))))))) -> 2 | N63: =IF(ISTEXT(M63),0,7-M63) -> 5 | O63: =IF(ISERROR(FIND("Relay", $B64)), IF('Lane 6'!$C61="Swimmer", "", 'Lane 6'!$C61), "Relay") ->  | P63: =IF(OR(O64="DQ",O64="DNS"),"-",IF(O64=SMALL((C64,F64,I64,L64,O64,R64),1),1,IF(O64=SMALL((C64,F64,I64,L64,O64,R64),2),2,IF(O64=SMALL((C64,F64,I64,L64,O64,R64),3),3,IF(O64=SMALL((C64,F64,I64,L64,O64,R64),4),4,IF(O64=SMALL((C64,F64,I64,L64,O64,R64),5),5,IF(O64=SMALL((C64,F64,I64,L64,O64,R64),6),6))))))) -> - | Q63: =IF(ISTEXT(P63),0,7-P63) -> 0 | R63: =IF(ISERROR(FIND("Relay", $B64)), IF('Lane 1'!$C61="Swimmer", "", 'Lane 1'!$C61), "Relay") -> Willem Cunniffe | S63: =IF(OR(R64="DQ",R64="DNS"),"-",IF(R64=SMALL((C64,F64,I64,L64,O64,R64),1),1,IF(R64=SMALL((C64,F64,I64,L64,O64,R64),2),2,IF(R64=SMALL((C64,F64,I64,L64,O64,R64),3),3,IF(R64=SMALL((C64,F64,I64,L64,O64,R64),4),4,IF(R64=SMALL((C64,F64,I64,L64,O64,R64),5),5,IF(R64=SMALL((C64,F64,I64,L64,O64,R64),6),6))))))) -> 1 | T63: =IF(ISTEXT(S63),0,7-S63) -> 6 | U63: =T63+Q63+N63+K63+H63+E63 -> 18
B64: Butterfly | C64: 00:00:30.900 | E64: =E62+E63 -> 90 | F64: 00:00:22.630 | H64: =H62+H63 -> 133 | I64: DNS | K64: =K62+K63 -> 102 | L64: 00:00:21.250 | N64: =N62+N63 -> 63 | O64: DNS | Q64: =Q62+Q63 -> 98 | R64: 00:00:19.810 | T64: =T62+T63 -> 111 | V64: =V62+U63 -> 597
A65: 31 | B65: G 12/u 2L | C65: =IF(ISERROR(FIND("Relay", $B66)), IF('Lane 2'!$C63="Swimmer", "", 'Lane 2'!$C63), "Relay") -> Libby Wilks | D65: =IF(OR(C66="DQ",C66="DNS"),"-",IF(C66=SMALL((C66,F66,I66,L66,O66,R66),1),1,IF(C66=SMALL((C66,F66,I66,L66,O66,R66),2),2,IF(C66=SMALL((C66,F66,I66,L66,O66,R66),3),3,IF(C66=SMALL((C66,F66,I66,L66,O66,R66),4),4,IF(C66=SMALL((C66,F66,I66,L66,O66,R66),5),5,IF(C66=SMALL((C66,F66,I66,L66,O66,R66),6),6))))))) -> 1 | E65: =IF(ISTEXT(D65),0,7-D65) -> 6 | F65: =IF(ISERROR(FIND("Relay", $B66)), IF('Lane 3'!$C63="Swimmer", "", 'Lane 3'!$C63), "Relay") -> Ellie Chater | G65: =IF(OR(F66="DQ",F66="DNS"),"-",IF(F66=SMALL((C66,F66,I66,L66,O66,R66),1),1,IF(F66=SMALL((C66,F66,I66,L66,O66,R66),2),2,IF(F66=SMALL((C66,F66,I66,L66,O66,R66),3),3,IF(F66=SMALL((C66,F66,I66,L66,O66,R66),4),4,IF(F66=SMALL((C66,F66,I66,L66,O66,R66),5),5,IF(F66=SMALL((C66,F66,I66,L66,O66,R66),6),6))))))) -> 3 | H65: =IF(ISTEXT(G65),0,7-G65) -> 4 | I65: =IF(ISERROR(FIND("Relay", $B66)), IF('Lane 4'!$C63="Swimmer", "", 'Lane 4'!$C63), "Relay") -> Erin Irving | J65: =IF(OR(I66="DQ",I66="DNS"),"-",IF(I66=SMALL((C66,F66,I66,L66,O66,R66),1),1,IF(I66=SMALL((C66,F66,I66,L66,O66,R66),2),2,IF(I66=SMALL((C66,F66,I66,L66,O66,R66),3),3,IF(I66=SMALL((C66,F66,I66,L66,O66,R66),4),4,IF(I66=SMALL((C66,F66,I66,L66,O66,R66),5),5,IF(I66=SMALL((C66,F66,I66,L66,O66,R66),6),6))))))) -> 2 | K65: =IF(ISTEXT(J65),0,7-J65) -> 5 | L65: =IF(ISERROR(FIND("Relay", $B66)), IF('Lane 5'!$C63="Swimmer", "", 'Lane 5'!$C63), "Relay") -> Grace Fatchett | M65: =IF(OR(L66="DQ",L66="DNS"),"-",IF(L66=SMALL((C66,F66,I66,L66,O66,R66),1),1,IF(L66=SMALL((C66,F66,I66,L66,O66,R66),2),2,IF(L66=SMALL((C66,F66,I66,L66,O66,R66),3),3,IF(L66=SMALL((C66,F66,I66,L66,O66,R66),4),4,IF(L66=SMALL((C66,F66,I66,L66,O66,R66),5),5,IF(L66=SMALL((C66,F66,I66,L66,O66,R66),6),6))))))) -> 6 | N65: =IF(ISTEXT(M65),0,7-M65) -> 1 | O65: =IF(ISERROR(FIND("Relay", $B66)), IF('Lane 6'!$C63="Swimmer", "", 'Lane 6'!$C63), "Relay") -> E Rollins | P65: =IF(OR(O66="DQ",O66="DNS"),"-",IF(O66=SMALL((C66,F66,I66,L66,O66,R66),1),1,IF(O66=SMALL((C66,F66,I66,L66,O66,R66),2),2,IF(O66=SMALL((C66,F66,I66,L66,O66,R66),3),3,IF(O66=SMALL((C66,F66,I66,L66,O66,R66),4),4,IF(O66=SMALL((C66,F66,I66,L66,O66,R66),5),5,IF(O66=SMALL((C66,F66,I66,L66,O66,R66),6),6))))))) -> 4 | Q65: =IF(ISTEXT(P65),0,7-P65) -> 3 | R65: =IF(ISERROR(FIND("Relay", $B66)), IF('Lane 1'!$C63="Swimmer", "", 'Lane 1'!$C63), "Relay") -> Sarah Tavares | S65: =IF(OR(R66="DQ",R66="DNS"),"-",IF(R66=SMALL((C66,F66,I66,L66,O66,R66),1),1,IF(R66=SMALL((C66,F66,I66,L66,O66,R66),2),2,IF(R66=SMALL((C66,F66,I66,L66,O66,R66),3),3,IF(R66=SMALL((C66,F66,I66,L66,O66,R66),4),4,IF(R66=SMALL((C66,F66,I66,L66,O66,R66),5),5,IF(R66=SMALL((C66,F66,I66,L66,O66,R66),6),6))))))) -> 5 | T65: =IF(ISTEXT(S65),0,7-S65) -> 2 | U65: =T65+Q65+N65+K65+H65+E65 -> 21
B66: Freestyle | C66: 00:00:34.630 | E66: =E64+E65 -> 96 | F66: 00:00:35.090 | H66: =H64+H65 -> 137 | I66: 00:00:35.040 | K66: =K64+K65 -> 107 | L66: 00:00:38.630 | N66: =N64+N65 -> 64 | O66: 00:00:37.660 | Q66: =Q64+Q65 -> 101 | R66: 00:00:38.530 | T66: =T64+T65 -> 113 | V66: =V64+U65 -> 618
A67: 32 | B67: B 12/u 2L | C67: =IF(ISERROR(FIND("Relay", $B68)), IF('Lane 2'!$C65="Swimmer", "", 'Lane 2'!$C65), "Relay") -> Solomon Mansfield | D67: =IF(OR(C68="DQ",C68="DNS"),"-",IF(C68=SMALL((C68,F68,I68,L68,O68,R68),1),1,IF(C68=SMALL((C68,F68,I68,L68,O68,R68),2),2,IF(C68=SMALL((C68,F68,I68,L68,O68,R68),3),3,IF(C68=SMALL((C68,F68,I68,L68,O68,R68),4),4,IF(C68=SMALL((C68,F68,I68,L68,O68,R68),5),5,IF(C68=SMALL((C68,F68,I68,L68,O68,R68),6),6))))))) -> 5 | E67: =IF(ISTEXT(D67),0,7-D67) -> 2 | F67: =IF(ISERROR(FIND("Relay", $B68)), IF('Lane 3'!$C65="Swimmer", "", 'Lane 3'!$C65), "Relay") -> Sam Nicholson | G67: =IF(OR(F68="DQ",F68="DNS"),"-",IF(F68=SMALL((C68,F68,I68,L68,O68,R68),1),1,IF(F68=SMALL((C68,F68,I68,L68,O68,R68),2),2,IF(F68=SMALL((C68,F68,I68,L68,O68,R68),3),3,IF(F68=SMALL((C68,F68,I68,L68,O68,R68),4),4,IF(F68=SMALL((C68,F68,I68,L68,O68,R68),5),5,IF(F68=SMALL((C68,F68,I68,L68,O68,R68),6),6))))))) -> 4 | H67: =IF(ISTEXT(G67),0,7-G67) -> 3 | I67: =IF(ISERROR(FIND("Relay", $B68)), IF('Lane 4'!$C65="Swimmer", "", 'Lane 4'!$C65), "Relay") -> Aiden Irving | J67: =IF(OR(I68="DQ",I68="DNS"),"-",IF(I68=SMALL((C68,F68,I68,L68,O68,R68),1),1,IF(I68=SMALL((C68,F68,I68,L68,O68,R68),2),2,IF(I68=SMALL((C68,F68,I68,L68,O68,R68),3),3,IF(I68=SMALL((C68,F68,I68,L68,O68,R68),4),4,IF(I68=SMALL((C68,F68,I68,L68,O68,R68),5),5,IF(I68=SMALL((C68,F68,I68,L68,O68,R68),6),6))))))) -> 6 | K67: =IF(ISTEXT(J67),0,7-J67) -> 1 | L67: =IF(ISERROR(FIND("Relay", $B68)), IF('Lane 5'!$C65="Swimmer", "", 'Lane 5'!$C65), "Relay") -> Alfiie Cowie | M67: =IF(OR(L68="DQ",L68="DNS"),"-",IF(L68=SMALL((C68,F68,I68,L68,O68,R68),1),1,IF(L68=SMALL((C68,F68,I68,L68,O68,R68),2),2,IF(L68=SMALL((C68,F68,I68,L68,O68,R68),3),3,IF(L68=SMALL((C68,F68,I68,L68,O68,R68),4),4,IF(L68=SMALL((C68,F68,I68,L68,O68,R68),5),5,IF(L68=SMALL((C68,F68,I68,L68,O68,R68),6),6))))))) -> 1 | N67: =IF(ISTEXT(M67),0,7-M67) -> 6 | O67: =IF(ISERROR(FIND("Relay", $B68)), IF('Lane 6'!$C65="Swimmer", "", 'Lane 6'!$C65), "Relay") -> B Webb | P67: =IF(OR(O68="DQ",O68="DNS"),"-",IF(O68=SMALL((C68,F68,I68,L68,O68,R68),1),1,IF(O68=SMALL((C68,F68,I68,L68,O68,R68),2),2,IF(O68=SMALL((C68,F68,I68,L68,O68,R68),3),3,IF(O68=SMALL((C68,F68,I68,L68,O68,R68),4),4,IF(O68=SMALL((C68,F68,I68,L68,O68,R68),5),5,IF(O68=SMALL((C68,F68,I68,L68,O68,R68),6),6))))))) -> 2 | Q67: =IF(ISTEXT(P67),0,7-P67) -> 5 | R67: =IF(ISERROR(FIND("Relay", $B68)), IF('Lane 1'!$C65="Swimmer", "", 'Lane 1'!$C65), "Relay") -> Luca Whaley | S67: =IF(OR(R68="DQ",R68="DNS"),"-",IF(R68=SMALL((C68,F68,I68,L68,O68,R68),1),1,IF(R68=SMALL((C68,F68,I68,L68,O68,R68),2),2,IF(R68=SMALL((C68,F68,I68,L68,O68,R68),3),3,IF(R68=SMALL((C68,F68,I68,L68,O68,R68),4),4,IF(R68=SMALL((C68,F68,I68,L68,O68,R68),5),5,IF(R68=SMALL((C68,F68,I68,L68,O68,R68),6),6))))))) -> 3 | T67: =IF(ISTEXT(S67),0,7-S67) -> 4 | U67: =T67+Q67+N67+K67+H67+E67 -> 21
B68: Freestyle | C68: 00:00:35.430 | E68: =E66+E67 -> 98 | F68: 00:00:35.080 | H68: =H66+H67 -> 140 | I68: 00:00:35.440 | K68: =K66+K67 -> 108 | L68: 00:00:32.500 | N68: =N66+N67 -> 70 | O68: 00:00:33.290 | Q68: =Q66+Q67 -> 106 | R68: 00:00:34.560 | T68: =T66+T67 -> 117 | V68: =V66+U67 -> 639
A69: 33 | B69: G 8 x 1L | C69: =IF(ISERROR(FIND("Relay", $B70)), IF('Lane 2'!$C67="Swimmer", "", 'Lane 2'!$C67), "Relay") -> Relay | D69: =IF(OR(C70="DQ",C70="DNS"),"-",IF(C70=SMALL((C70,F70,I70,L70,O70,R70),1),1,IF(C70=SMALL((C70,F70,I70,L70,O70,R70),2),2,IF(C70=SMALL((C70,F70,I70,L70,O70,R70),3),3,IF(C70=SMALL((C70,F70,I70,L70,O70,R70),4),4,IF(C70=SMALL((C70,F70,I70,L70,O70,R70),5),5,IF(C70=SMALL((C70,F70,I70,L70,O70,R70),6),6))))))) -> - | E69: =IF(ISTEXT(D69),0,7-D69) -> 0 | F69: =IF(ISERROR(FIND("Relay", $B70)), IF('Lane 3'!$C67="Swimmer", "", 'Lane 3'!$C67), "Relay") -> Relay | G69: =IF(OR(F70="DQ",F70="DNS"),"-",IF(F70=SMALL((C70,F70,I70,L70,O70,R70),1),1,IF(F70=SMALL((C70,F70,I70,L70,O70,R70),2),2,IF(F70=SMALL((C70,F70,I70,L70,O70,R70),3),3,IF(F70=SMALL((C70,F70,I70,L70,O70,R70),4),4,IF(F70=SMALL((C70,F70,I70,L70,O70,R70),5),5,IF(F70=SMALL((C70,F70,I70,L70,O70,R70),6),6))))))) -> 1 | H69: =IF(ISTEXT(G69),0,7-G69) -> 6 | I69: =IF(ISERROR(FIND("Relay", $B70)), IF('Lane 4'!$C67="Swimmer", "", 'Lane 4'!$C67), "Relay") -> Relay | J69: =IF(OR(I70="DQ",I70="DNS"),"-",IF(I70=SMALL((C70,F70,I70,L70,O70,R70),1),1,IF(I70=SMALL((C70,F70,I70,L70,O70,R70),2),2,IF(I70=SMALL((C70,F70,I70,L70,O70,R70),3),3,IF(I70=SMALL((C70,F70,I70,L70,O70,R70),4),4,IF(I70=SMALL((C70,F70,I70,L70,O70,R70),5),5,IF(I70=SMALL((C70,F70,I70,L70,O70,R70),6),6))))))) -> - | K69: =IF(ISTEXT(J69),0,7-J69) -> 0 | L69: =IF(ISERROR(FIND("Relay", $B70)), IF('Lane 5'!$C67="Swimmer", "", 'Lane 5'!$C67), "Relay") -> Relay | M69: =IF(OR(L70="DQ",L70="DNS"),"-",IF(L70=SMALL((C70,F70,I70,L70,O70,R70),1),1,IF(L70=SMALL((C70,F70,I70,L70,O70,R70),2),2,IF(L70=SMALL((C70,F70,I70,L70,O70,R70),3),3,IF(L70=SMALL((C70,F70,I70,L70,O70,R70),4),4,IF(L70=SMALL((C70,F70,I70,L70,O70,R70),5),5,IF(L70=SMALL((C70,F70,I70,L70,O70,R70),6),6))))))) -> 4 | N69: =IF(ISTEXT(M69),0,7-M69) -> 3 | O69: =IF(ISERROR(FIND("Relay", $B70)), IF('Lane 6'!$C67="Swimmer", "", 'Lane 6'!$C67), "Relay") -> Relay | P69: =IF(OR(O70="DQ",O70="DNS"),"-",IF(O70=SMALL((C70,F70,I70,L70,O70,R70),1),1,IF(O70=SMALL((C70,F70,I70,L70,O70,R70),2),2,IF(O70=SMALL((C70,F70,I70,L70,O70,R70),3),3,IF(O70=SMALL((C70,F70,I70,L70,O70,R70),4),4,IF(O70=SMALL((C70,F70,I70,L70,O70,R70),5),5,IF(O70=SMALL((C70,F70,I70,L70,O70,R70),6),6))))))) -> 3 | Q69: =IF(ISTEXT(P69),0,7-P69) -> 4 | R69: =IF(ISERROR(FIND("Relay", $B70)), IF('Lane 1'!$D67="Swimmer", "", 'Lane 1'!$D67), "Relay") -> Relay | S69: =IF(OR(R70="DQ",R70="DNS"),"-",IF(R70=SMALL((C70,F70,I70,L70,O70,R70),1),1,IF(R70=SMALL((C70,F70,I70,L70,O70,R70),2),2,IF(R70=SMALL((C70,F70,I70,L70,O70,R70),3),3,IF(R70=SMALL((C70,F70,I70,L70,O70,R70),4),4,IF(R70=SMALL((C70,F70,I70,L70,O70,R70),5),5,IF(R70=SMALL((C70,F70,I70,L70,O70,R70),6),6))))))) -> 2 | T69: =IF(ISTEXT(S69),0,7-S69) -> 5 | U69: =T69+Q69+N69+K69+H69+E69 -> 18
B70: Freestyle Relay | C70: DQ | E70: =E68+E69 -> 98 | F70: 00:02:31.280 | H70: =H68+H69 -> 146 | I70: DQ | K70: =K68+K69 -> 108 | L70: 00:03:13.070 | N70: =N68+N69 -> 73 | O70: 00:02:52.530 | Q70: =Q68+Q69 -> 110 | R70: 00:02:37.120 | T70: =T68+T69 -> 122 | V70: =V68+U69 -> 657
A71: 34 | B71: B 10/u 2L | C71: =IF(ISERROR(FIND("Relay", $B72)), IF('Lane 2'!$C69="Swimmer", "", 'Lane 2'!$C69), "Relay") -> Riley Binks | D71: =IF(OR(C72="DQ",C72="DNS"),"-",IF(C72=SMALL((C72,F72,I72,L72,O72,R72),1),1,IF(C72=SMALL((C72,F72,I72,L72,O72,R72),2),2,IF(C72=SMALL((C72,F72,I72,L72,O72,R72),3),3,IF(C72=SMALL((C72,F72,I72,L72,O72,R72),4),4,IF(C72=SMALL((C72,F72,I72,L72,O72,R72),5),5,IF(C72=SMALL((C72,F72,I72,L72,O72,R72),6),6))))))) -> 5 | E71: =IF(ISTEXT(D71),0,7-D71) -> 2 | F71: =IF(ISERROR(FIND("Relay", $B72)), IF('Lane 3'!$C69="Swimmer", "", 'Lane 3'!$C69), "Relay") -> Christian Morgan | G71: =IF(OR(F72="DQ",F72="DNS"),"-",IF(F72=SMALL((C72,F72,I72,L72,O72,R72),1),1,IF(F72=SMALL((C72,F72,I72,L72,O72,R72),2),2,IF(F72=SMALL((C72,F72,I72,L72,O72,R72),3),3,IF(F72=SMALL((C72,F72,I72,L72,O72,R72),4),4,IF(F72=SMALL((C72,F72,I72,L72,O72,R72),5),5,IF(F72=SMALL((C72,F72,I72,L72,O72,R72),6),6))))))) -> 3 | H71: =IF(ISTEXT(G71),0,7-G71) -> 4 | I71: =IF(ISERROR(FIND("Relay", $B72)), IF('Lane 4'!$C69="Swimmer", "", 'Lane 4'!$C69), "Relay") -> Luke Burton | J71: =IF(OR(I72="DQ",I72="DNS"),"-",IF(I72=SMALL((C72,F72,I72,L72,O72,R72),1),1,IF(I72=SMALL((C72,F72,I72,L72,O72,R72),2),2,IF(I72=SMALL((C72,F72,I72,L72,O72,R72),3),3,IF(I72=SMALL((C72,F72,I72,L72,O72,R72),4),4,IF(I72=SMALL((C72,F72,I72,L72,O72,R72),5),5,IF(I72=SMALL((C72,F72,I72,L72,O72,R72),6),6))))))) -> 1 | K71: =IF(ISTEXT(J71),0,7-J71) -> 6 | L71: =IF(ISERROR(FIND("Relay", $B72)), IF('Lane 5'!$C69="Swimmer", "", 'Lane 5'!$C69), "Relay") -> Veer Mulji | M71: =IF(OR(L72="DQ",L72="DNS"),"-",IF(L72=SMALL((C72,F72,I72,L72,O72,R72),1),1,IF(L72=SMALL((C72,F72,I72,L72,O72,R72),2),2,IF(L72=SMALL((C72,F72,I72,L72,O72,R72),3),3,IF(L72=SMALL((C72,F72,I72,L72,O72,R72),4),4,IF(L72=SMALL((C72,F72,I72,L72,O72,R72),5),5,IF(L72=SMALL((C72,F72,I72,L72,O72,R72),6),6))))))) -> - | N71: =IF(ISTEXT(M71),0,7-M71) -> 0 | O71: =IF(ISERROR(FIND("Relay", $B72)), IF('Lane 6'!$C69="Swimmer", "", 'Lane 6'!$C69), "Relay") -> T Mobbs | P71: =IF(OR(O72="DQ",O72="DNS"),"-",IF(O72=SMALL((C72,F72,I72,L72,O72,R72),1),1,IF(O72=SMALL((C72,F72,I72,L72,O72,R72),2),2,IF(O72=SMALL((C72,F72,I72,L72,O72,R72),3),3,IF(O72=SMALL((C72,F72,I72,L72,O72,R72),4),4,IF(O72=SMALL((C72,F72,I72,L72,O72,R72),5),5,IF(O72=SMALL((C72,F72,I72,L72,O72,R72),6),6))))))) -> 2 | Q71: =IF(ISTEXT(P71),0,7-P71) -> 5 | R71: =IF(ISERROR(FIND("Relay", $B72)), IF('Lane 1'!$C69="Swimmer", "", 'Lane 1'!$C69), "Relay") -> Musa Yusopov | S71: =IF(OR(R72="DQ",R72="DNS"),"-",IF(R72=SMALL((C72,F72,I72,L72,O72,R72),1),1,IF(R72=SMALL((C72,F72,I72,L72,O72,R72),2),2,IF(R72=SMALL((C72,F72,I72,L72,O72,R72),3),3,IF(R72=SMALL((C72,F72,I72,L72,O72,R72),4),4,IF(R72=SMALL((C72,F72,I72,L72,O72,R72),5),5,IF(R72=SMALL((C72,F72,I72,L72,O72,R72),6),6))))))) -> 4 | T71: =IF(ISTEXT(S71),0,7-S71) -> 3 | U71: =T71+Q71+N71+K71+H71+E71 -> 20
B72: Backstroke | C72: 00:00:54.510 | E72: =E70+E71 -> 100 | F72: 00:00:46.960 | H72: =H70+H71 -> 150 | I72: 00:00:45.630 | K72: =K70+K71 -> 114 | L72: DQ | N72: =N70+N71 -> 73 | O72: 00:00:45.640 | Q72: =Q70+Q71 -> 115 | R72: 00:00:53.060 | T72: =T70+T71 -> 125 | V72: =V70+U71 -> 677
A73: 35 | B73: G 10/u 2L | C73: =IF(ISERROR(FIND("Relay", $B74)), IF('Lane 2'!$C71="Swimmer", "", 'Lane 2'!$C71), "Relay") -> Amber Valletta | D73: =IF(OR(C74="DQ",C74="DNS"),"-",IF(C74=SMALL((C74,F74,I74,L74,O74,R74),1),1,IF(C74=SMALL((C74,F74,I74,L74,O74,R74),2),2,IF(C74=SMALL((C74,F74,I74,L74,O74,R74),3),3,IF(C74=SMALL((C74,F74,I74,L74,O74,R74),4),4,IF(C74=SMALL((C74,F74,I74,L74,O74,R74),5),5,IF(C74=SMALL((C74,F74,I74,L74,O74,R74),6),6))))))) -> 2 | E73: =IF(ISTEXT(D73),0,7-D73) -> 5 | F73: =IF(ISERROR(FIND("Relay", $B74)), IF('Lane 3'!$C71="Swimmer", "", 'Lane 3'!$C71), "Relay") -> Elloiuse Brookes | G73: =IF(OR(F74="DQ",F74="DNS"),"-",IF(F74=SMALL((C74,F74,I74,L74,O74,R74),1),1,IF(F74=SMALL((C74,F74,I74,L74,O74,R74),2),2,IF(F74=SMALL((C74,F74,I74,L74,O74,R74),3),3,IF(F74=SMALL((C74,F74,I74,L74,O74,R74),4),4,IF(F74=SMALL((C74,F74,I74,L74,O74,R74),5),5,IF(F74=SMALL((C74,F74,I74,L74,O74,R74),6),6))))))) -> 1 | H73: =IF(ISTEXT(G73),0,7-G73) -> 6 | I73: =IF(ISERROR(FIND("Relay", $B74)), IF('Lane 4'!$C71="Swimmer", "", 'Lane 4'!$C71), "Relay") -> Louise Khrone | J73: =IF(OR(I74="DQ",I74="DNS"),"-",IF(I74=SMALL((C74,F74,I74,L74,O74,R74),1),1,IF(I74=SMALL((C74,F74,I74,L74,O74,R74),2),2,IF(I74=SMALL((C74,F74,I74,L74,O74,R74),3),3,IF(I74=SMALL((C74,F74,I74,L74,O74,R74),4),4,IF(I74=SMALL((C74,F74,I74,L74,O74,R74),5),5,IF(I74=SMALL((C74,F74,I74,L74,O74,R74),6),6))))))) -> 3 | K73: =IF(ISTEXT(J73),0,7-J73) -> 4 | L73: =IF(ISERROR(FIND("Relay", $B74)), IF('Lane 5'!$C71="Swimmer", "", 'Lane 5'!$C71), "Relay") -> Neveah Choudhury | M73: =IF(OR(L74="DQ",L74="DNS"),"-",IF(L74=SMALL((C74,F74,I74,L74,O74,R74),1),1,IF(L74=SMALL((C74,F74,I74,L74,O74,R74),2),2,IF(L74=SMALL((C74,F74,I74,L74,O74,R74),3),3,IF(L74=SMALL((C74,F74,I74,L74,O74,R74),4),4,IF(L74=SMALL((C74,F74,I74,L74,O74,R74),5),5,IF(L74=SMALL((C74,F74,I74,L74,O74,R74),6),6))))))) -> 5 | N73: =IF(ISTEXT(M73),0,7-M73) -> 2 | O73: =IF(ISERROR(FIND("Relay", $B74)), IF('Lane 6'!$C71="Swimmer", "", 'Lane 6'!$C71), "Relay") -> S Warrilow | P73: =IF(OR(O74="DQ",O74="DNS"),"-",IF(O74=SMALL((C74,F74,I74,L74,O74,R74),1),1,IF(O74=SMALL((C74,F74,I74,L74,O74,R74),2),2,IF(O74=SMALL((C74,F74,I74,L74,O74,R74),3),3,IF(O74=SMALL((C74,F74,I74,L74,O74,R74),4),4,IF(O74=SMALL((C74,F74,I74,L74,O74,R74),5),5,IF(O74=SMALL((C74,F74,I74,L74,O74,R74),6),6))))))) -> 4 | Q73: =IF(ISTEXT(P73),0,7-P73) -> 3 | R73: =IF(ISERROR(FIND("Relay", $B74)), IF('Lane 1'!$C71="Swimmer", "", 'Lane 1'!$C71), "Relay") -> Lacey Small | S73: =IF(OR(R74="DQ",R74="DNS"),"-",IF(R74=SMALL((C74,F74,I74,L74,O74,R74),1),1,IF(R74=SMALL((C74,F74,I74,L74,O74,R74),2),2,IF(R74=SMALL((C74,F74,I74,L74,O74,R74),3),3,IF(R74=SMALL((C74,F74,I74,L74,O74,R74),4),4,IF(R74=SMALL((C74,F74,I74,L74,O74,R74),5),5,IF(R74=SMALL((C74,F74,I74,L74,O74,R74),6),6))))))) -> - | T73: =IF(ISTEXT(S73),0,7-S73) -> 0 | U73: =T73+Q73+N73+K73+H73+E73 -> 20
B74: Backstroke | C74: 00:00:46.630 | E74: =E72+E73 -> 105 | F74: 00:00:44.980 | H74: =H72+H73 -> 156 | I74: 00:00:47.480 | K74: =K72+K73 -> 118 | L74: 00:01:03.020 | N74: =N72+N73 -> 75 | O74: 00:01:00.500 | Q74: =Q72+Q73 -> 118 | R74: DQ | T74: =T72+T73 -> 125 | V74: =V72+U73 -> 697
A75: 36 | B75: B 9 yrs 1L | C75: =IF(ISERROR(FIND("Relay", $B76)), IF('Lane 2'!$C73="Swimmer", "", 'Lane 2'!$C73), "Relay") -> Adam Walker | D75: =IF(OR(C76="DQ",C76="DNS"),"-",IF(C76=SMALL((C76,F76,I76,L76,O76,R76),1),1,IF(C76=SMALL((C76,F76,I76,L76,O76,R76),2),2,IF(C76=SMALL((C76,F76,I76,L76,O76,R76),3),3,IF(C76=SMALL((C76,F76,I76,L76,O76,R76),4),4,IF(C76=SMALL((C76,F76,I76,L76,O76,R76),5),5,IF(C76=SMALL((C76,F76,I76,L76,O76,R76),6),6))))))) -> 3 | E75: =IF(ISTEXT(D75),0,7-D75) -> 4 | F75: =IF(ISERROR(FIND("Relay", $B76)), IF('Lane 3'!$C73="Swimmer", "", 'Lane 3'!$C73), "Relay") -> Oliver Jennings | G75: =IF(OR(F76="DQ",F76="DNS"),"-",IF(F76=SMALL((C76,F76,I76,L76,O76,R76),1),1,IF(F76=SMALL((C76,F76,I76,L76,O76,R76),2),2,IF(F76=SMALL((C76,F76,I76,L76,O76,R76),3),3,IF(F76=SMALL((C76,F76,I76,L76,O76,R76),4),4,IF(F76=SMALL((C76,F76,I76,L76,O76,R76),5),5,IF(F76=SMALL((C76,F76,I76,L76,O76,R76),6),6))))))) -> 1 | H75: =IF(ISTEXT(G75),0,7-G75) -> 6 | I75: =IF(ISERROR(FIND("Relay", $B76)), IF('Lane 4'!$C73="Swimmer", "", 'Lane 4'!$C73), "Relay") -> Ethan Ryan | J75: =IF(OR(I76="DQ",I76="DNS"),"-",IF(I76=SMALL((C76,F76,I76,L76,O76,R76),1),1,IF(I76=SMALL((C76,F76,I76,L76,O76,R76),2),2,IF(I76=SMALL((C76,F76,I76,L76,O76,R76),3),3,IF(I76=SMALL((C76,F76,I76,L76,O76,R76),4),4,IF(I76=SMALL((C76,F76,I76,L76,O76,R76),5),5,IF(I76=SMALL((C76,F76,I76,L76,O76,R76),6),6))))))) -> 5 | K75: =IF(ISTEXT(J75),0,7-J75) -> 2 | L75: =IF(ISERROR(FIND("Relay", $B76)), IF('Lane 5'!$C73="Swimmer", "", 'Lane 5'!$C73), "Relay") -> 00:00:00 | M75: =IF(OR(L76="DQ",L76="DNS"),"-",IF(L76=SMALL((C76,F76,I76,L76,O76,R76),1),1,IF(L76=SMALL((C76,F76,I76,L76,O76,R76),2),2,IF(L76=SMALL((C76,F76,I76,L76,O76,R76),3),3,IF(L76=SMALL((C76,F76,I76,L76,O76,R76),4),4,IF(L76=SMALL((C76,F76,I76,L76,O76,R76),5),5,IF(L76=SMALL((C76,F76,I76,L76,O76,R76),6),6))))))) -> - | N75: =IF(ISTEXT(M75),0,7-M75) -> 0 | O75: =IF(ISERROR(FIND("Relay", $B76)), IF('Lane 6'!$C73="Swimmer", "", 'Lane 6'!$C73), "Relay") -> J Watson | P75: =IF(OR(O76="DQ",O76="DNS"),"-",IF(O76=SMALL((C76,F76,I76,L76,O76,R76),1),1,IF(O76=SMALL((C76,F76,I76,L76,O76,R76),2),2,IF(O76=SMALL((C76,F76,I76,L76,O76,R76),3),3,IF(O76=SMALL((C76,F76,I76,L76,O76,R76),4),4,IF(O76=SMALL((C76,F76,I76,L76,O76,R76),5),5,IF(O76=SMALL((C76,F76,I76,L76,O76,R76),6),6))))))) -> 4 | Q75: =IF(ISTEXT(P75),0,7-P75) -> 3 | R75: =IF(ISERROR(FIND("Relay", $B76)), IF('Lane 1'!$C73="Swimmer", "", 'Lane 1'!$C73), "Relay") -> Willem Cunniffe | S75: =IF(OR(R76="DQ",R76="DNS"),"-",IF(R76=SMALL((C76,F76,I76,L76,O76,R76),1),1,IF(R76=SMALL((C76,F76,I76,L76,O76,R76),2),2,IF(R76=SMALL((C76,F76,I76,L76,O76,R76),3),3,IF(R76=SMALL((C76,F76,I76,L76,O76,R76),4),4,IF(R76=SMALL((C76,F76,I76,L76,O76,R76),5),5,IF(R76=SMALL((C76,F76,I76,L76,O76,R76),6),6))))))) -> 2 | T75: =IF(ISTEXT(S75),0,7-S75) -> 5 | U75: =T75+Q75+N75+K75+H75+E75 -> 20
B76: Freestyle | C76: 00:00:20.410 | E76: =E74+E75 -> 109 | F76: 00:00:17.320 | H76: =H74+H75 -> 162 | I76: 00:00:32.460 | K76: =K74+K75 -> 120 | L76: DNS | N76: =N74+N75 -> 75 | O76: 00:00:22.030 | Q76: =Q74+Q75 -> 121 | R76: 00:00:18.370 | T76: =T74+T75 -> 130 | V76: =V74+U75 -> 717
A77: 37 | B77: G 9 yrs 1L | C77: =IF(ISERROR(FIND("Relay", $B78)), IF('Lane 2'!$C75="Swimmer", "", 'Lane 2'!$C75), "Relay") -> Tiffany Latham | D77: =IF(OR(C78="DQ",C78="DNS"),"-",IF(C78=SMALL((C78,F78,I78,L78,O78,R78),1),1,IF(C78=SMALL((C78,F78,I78,L78,O78,R78),2),2,IF(C78=SMALL((C78,F78,I78,L78,O78,R78),3),3,IF(C78=SMALL((C78,F78,I78,L78,O78,R78),4),4,IF(C78=SMALL((C78,F78,I78,L78,O78,R78),5),5,IF(C78=SMALL((C78,F78,I78,L78,O78,R78),6),6))))))) -> 5 | E77: =IF(ISTEXT(D77),0,7-D77) -> 2 | F77: =IF(ISERROR(FIND("Relay", $B78)), IF('Lane 3'!$C75="Swimmer", "", 'Lane 3'!$C75), "Relay") -> Harriet Granahan | G77: =IF(OR(F78="DQ",F78="DNS"),"-",IF(F78=SMALL((C78,F78,I78,L78,O78,R78),1),1,IF(F78=SMALL((C78,F78,I78,L78,O78,R78),2),2,IF(F78=SMALL((C78,F78,I78,L78,O78,R78),3),3,IF(F78=SMALL((C78,F78,I78,L78,O78,R78),4),4,IF(F78=SMALL((C78,F78,I78,L78,O78,R78),5),5,IF(F78=SMALL((C78,F78,I78,L78,O78,R78),6),6))))))) -> 2 | H77: =IF(ISTEXT(G77),0,7-G77) -> 5 | I77: =IF(ISERROR(FIND("Relay", $B78)), IF('Lane 4'!$C75="Swimmer", "", 'Lane 4'!$C75), "Relay") -> Cassie Kelly-Cooper | J77: =IF(OR(I78="DQ",I78="DNS"),"-",IF(I78=SMALL((C78,F78,I78,L78,O78,R78),1),1,IF(I78=SMALL((C78,F78,I78,L78,O78,R78),2),2,IF(I78=SMALL((C78,F78,I78,L78,O78,R78),3),3,IF(I78=SMALL((C78,F78,I78,L78,O78,R78),4),4,IF(I78=SMALL((C78,F78,I78,L78,O78,R78),5),5,IF(I78=SMALL((C78,F78,I78,L78,O78,R78),6),6))))))) -> 1 | K77: =IF(ISTEXT(J77),0,7-J77) -> 6 | L77: =IF(ISERROR(FIND("Relay", $B78)), IF('Lane 5'!$C75="Swimmer", "", 'Lane 5'!$C75), "Relay") -> Lucy Talbot-Fielding | M77: =IF(OR(L78="DQ",L78="DNS"),"-",IF(L78=SMALL((C78,F78,I78,L78,O78,R78),1),1,IF(L78=SMALL((C78,F78,I78,L78,O78,R78),2),2,IF(L78=SMALL((C78,F78,I78,L78,O78,R78),3),3,IF(L78=SMALL((C78,F78,I78,L78,O78,R78),4),4,IF(L78=SMALL((C78,F78,I78,L78,O78,R78),5),5,IF(L78=SMALL((C78,F78,I78,L78,O78,R78),6),6))))))) -> 6 | N77: =IF(ISTEXT(M77),0,7-M77) -> 1 | O77: =IF(ISERROR(FIND("Relay", $B78)), IF('Lane 6'!$C75="Swimmer", "", 'Lane 6'!$C75), "Relay") -> M Munslow | P77: =IF(OR(O78="DQ",O78="DNS"),"-",IF(O78=SMALL((C78,F78,I78,L78,O78,R78),1),1,IF(O78=SMALL((C78,F78,I78,L78,O78,R78),2),2,IF(O78=SMALL((C78,F78,I78,L78,O78,R78),3),3,IF(O78=SMALL((C78,F78,I78,L78,O78,R78),4),4,IF(O78=SMALL((C78,F78,I78,L78,O78,R78),5),5,IF(O78=SMALL((C78,F78,I78,L78,O78,R78),6),6))))))) -> 4 | Q77: =IF(ISTEXT(P77),0,7-P77) -> 3 | R77: =IF(ISERROR(FIND("Relay", $B78)), IF('Lane 1'!$C75="Swimmer", "", 'Lane 1'!$C75), "Relay") -> Abigail Bowater | S77: =IF(OR(R78="DQ",R78="DNS"),"-",IF(R78=SMALL((C78,F78,I78,L78,O78,R78),1),1,IF(R78=SMALL((C78,F78,I78,L78,O78,R78),2),2,IF(R78=SMALL((C78,F78,I78,L78,O78,R78),3),3,IF(R78=SMALL((C78,F78,I78,L78,O78,R78),4),4,IF(R78=SMALL((C78,F78,I78,L78,O78,R78),5),5,IF(R78=SMALL((C78,F78,I78,L78,O78,R78),6),6))))))) -> 3 | T77: =IF(ISTEXT(S77),0,7-S77) -> 4 | U77: =T77+Q77+N77+K77+H77+E77 -> 21
B78: Freestyle | C78: 00:00:21.940 | E78: =E76+E77 -> 111 | F78: 00:00:20.090 | H78: =H76+H77 -> 167 | I78: 00:00:19.650 | K78: =K76+K77 -> 126 | L78: 00:00:26.190 | N78: =N76+N77 -> 76 | O78: 00:00:21.930 | Q78: =Q76+Q77 -> 124 | R78: 00:00:21.440 | T78: =T76+T77 -> 134 | V78: =V76+U77 -> 738
A79: 38 | B79: B 12/u 4 x 1L | C79: =IF(ISERROR(FIND("Relay", $B80)), IF('Lane 2'!$C77="Swimmer", "", 'Lane 2'!$C77), "Relay") -> Relay | D79: =IF(OR(C80="DQ",C80="DNS"),"-",IF(C80=SMALL((C80,F80,I80,L80,O80,R80),1),1,IF(C80=SMALL((C80,F80,I80,L80,O80,R80),2),2,IF(C80=SMALL((C80,F80,I80,L80,O80,R80),3),3,IF(C80=SMALL((C80,F80,I80,L80,O80,R80),4),4,IF(C80=SMALL((C80,F80,I80,L80,O80,R80),5),5,IF(C80=SMALL((C80,F80,I80,L80,O80,R80),6),6))))))) -> 6 | E79: =IF(ISTEXT(D79),0,7-D79) -> 1 | F79: =IF(ISERROR(FIND("Relay", $B80)), IF('Lane 3'!$C77="Swimmer", "", 'Lane 3'!$C77), "Relay") -> Relay | G79: =IF(OR(F80="DQ",F80="DNS"),"-",IF(F80=SMALL((C80,F80,I80,L80,O80,R80),1),1,IF(F80=SMALL((C80,F80,I80,L80,O80,R80),2),2,IF(F80=SMALL((C80,F80,I80,L80,O80,R80),3),3,IF(F80=SMALL((C80,F80,I80,L80,O80,R80),4),4,IF(F80=SMALL((C80,F80,I80,L80,O80,R80),5),5,IF(F80=SMALL((C80,F80,I80,L80,O80,R80),6),6))))))) -> 2 | H79: =IF(ISTEXT(G79),0,7-G79) -> 5 | I79: =IF(ISERROR(FIND("Relay", $B80)), IF('Lane 4'!$C77="Swimmer", "", 'Lane 4'!$C77), "Relay") -> Relay | J79: =IF(OR(I80="DQ",I80="DNS"),"-",IF(I80=SMALL((C80,F80,I80,L80,O80,R80),1),1,IF(I80=SMALL((C80,F80,I80,L80,O80,R80),2),2,IF(I80=SMALL((C80,F80,I80,L80,O80,R80),3),3,IF(I80=SMALL((C80,F80,I80,L80,O80,R80),4),4,IF(I80=SMALL((C80,F80,I80,L80,O80,R80),5),5,IF(I80=SMALL((C80,F80,I80,L80,O80,R80),6),6))))))) -> 1 | K79: =IF(ISTEXT(J79),0,7-J79) -> 6 | L79: =IF(ISERROR(FIND("Relay", $B80)), IF('Lane 5'!$C77="Swimmer", "", 'Lane 5'!$C77), "Relay") -> Relay | M79: =IF(OR(L80="DQ",L80="DNS"),"-",IF(L80=SMALL((C80,F80,I80,L80,O80,R80),1),1,IF(L80=SMALL((C80,F80,I80,L80,O80,R80),2),2,IF(L80=SMALL((C80,F80,I80,L80,O80,R80),3),3,IF(L80=SMALL((C80,F80,I80,L80,O80,R80),4),4,IF(L80=SMALL((C80,F80,I80,L80,O80,R80),5),5,IF(L80=SMALL((C80,F80,I80,L80,O80,R80),6),6))))))) -> 3 | N79: =IF(ISTEXT(M79),0,7-M79) -> 4 | O79: =IF(ISERROR(FIND("Relay", $B80)), IF('Lane 6'!$C77="Swimmer", "", 'Lane 6'!$C77), "Relay") -> Relay | P79: =IF(OR(O80="DQ",O80="DNS"),"-",IF(O80=SMALL((C80,F80,I80,L80,O80,R80),1),1,IF(O80=SMALL((C80,F80,I80,L80,O80,R80),2),2,IF(O80=SMALL((C80,F80,I80,L80,O80,R80),3),3,IF(O80=SMALL((C80,F80,I80,L80,O80,R80),4),4,IF(O80=SMALL((C80,F80,I80,L80,O80,R80),5),5,IF(O80=SMALL((C80,F80,I80,L80,O80,R80),6),6))))))) -> 4 | Q79: =IF(ISTEXT(P79),0,7-P79) -> 3 | R79: =IF(ISERROR(FIND("Relay", $B80)), IF('Lane 1'!$D77="Swimmer", "", 'Lane 1'!$D77), "Relay") -> Relay | S79: =IF(OR(R80="DQ",R80="DNS"),"-",IF(R80=SMALL((C80,F80,I80,L80,O80,R80),1),1,IF(R80=SMALL((C80,F80,I80,L80,O80,R80),2),2,IF(R80=SMALL((C80,F80,I80,L80,O80,R80),3),3,IF(R80=SMALL((C80,F80,I80,L80,O80,R80),4),4,IF(R80=SMALL((C80,F80,I80,L80,O80,R80),5),5,IF(R80=SMALL((C80,F80,I80,L80,O80,R80),6),6))))))) -> 5 | T79: =IF(ISTEXT(S79),0,7-S79) -> 2 | U79: =T79+Q79+N79+K79+H79+E79 -> 21
B80: Freestyle Relay | C80: 00:01:15.520 | E80: =E78+E79 -> 112 | F80: 00:01:05.530 | H80: =H78+H79 -> 172 | I80: 00:01:04.810 | K80: =K78+K79 -> 132 | L80: 00:01:08.440 | N80: =N78+N79 -> 80 | O80: 00:01:09.780 | Q80: =Q78+Q79 -> 127 | R80: 00:01:14.720 | T80: =T78+T79 -> 136 | V80: =V78+U79 -> 759
A81: 39 | B81: G 12/u 4 x 1L | C81: =IF(ISERROR(FIND("Relay", $B82)), IF('Lane 2'!$C79="Swimmer", "", 'Lane 2'!$C79), "Relay") -> Relay | D81: =IF(OR(C82="DQ",C82="DNS"),"-",IF(C82=SMALL((C82,F82,I82,L82,O82,R82),1),1,IF(C82=SMALL((C82,F82,I82,L82,O82,R82),2),2,IF(C82=SMALL((C82,F82,I82,L82,O82,R82),3),3,IF(C82=SMALL((C82,F82,I82,L82,O82,R82),4),4,IF(C82=SMALL((C82,F82,I82,L82,O82,R82),5),5,IF(C82=SMALL((C82,F82,I82,L82,O82,R82),6),6))))))) -> - | E81: =IF(ISTEXT(D81),0,7-D81) -> 0 | F81: =IF(ISERROR(FIND("Relay", $B82)), IF('Lane 3'!$C79="Swimmer", "", 'Lane 3'!$C79), "Relay") -> Relay | G81: =IF(OR(F82="DQ",F82="DNS"),"-",IF(F82=SMALL((C82,F82,I82,L82,O82,R82),1),1,IF(F82=SMALL((C82,F82,I82,L82,O82,R82),2),2,IF(F82=SMALL((C82,F82,I82,L82,O82,R82),3),3,IF(F82=SMALL((C82,F82,I82,L82,O82,R82),4),4,IF(F82=SMALL((C82,F82,I82,L82,O82,R82),5),5,IF(F82=SMALL((C82,F82,I82,L82,O82,R82),6),6))))))) -> 3 | H81: =IF(ISTEXT(G81),0,7-G81) -> 4 | I81: =IF(ISERROR(FIND("Relay", $B82)), IF('Lane 4'!$C79="Swimmer", "", 'Lane 4'!$C79), "Relay") -> Relay | J81: =IF(OR(I82="DQ",I82="DNS"),"-",IF(I82=SMALL((C82,F82,I82,L82,O82,R82),1),1,IF(I82=SMALL((C82,F82,I82,L82,O82,R82),2),2,IF(I82=SMALL((C82,F82,I82,L82,O82,R82),3),3,IF(I82=SMALL((C82,F82,I82,L82,O82,R82),4),4,IF(I82=SMALL((C82,F82,I82,L82,O82,R82),5),5,IF(I82=SMALL((C82,F82,I82,L82,O82,R82),6),6))))))) -> 2 | K81: =IF(ISTEXT(J81),0,7-J81) -> 5 | L81: =IF(ISERROR(FIND("Relay", $B82)), IF('Lane 5'!$C79="Swimmer", "", 'Lane 5'!$C79), "Relay") -> Relay | M81: =IF(OR(L82="DQ",L82="DNS"),"-",IF(L82=SMALL((C82,F82,I82,L82,O82,R82),1),1,IF(L82=SMALL((C82,F82,I82,L82,O82,R82),2),2,IF(L82=SMALL((C82,F82,I82,L82,O82,R82),3),3,IF(L82=SMALL((C82,F82,I82,L82,O82,R82),4),4,IF(L82=SMALL((C82,F82,I82,L82,O82,R82),5),5,IF(L82=SMALL((C82,F82,I82,L82,O82,R82),6),6))))))) -> 1 | N81: =IF(ISTEXT(M81),0,7-M81) -> 6 | O81: =IF(ISERROR(FIND("Relay", $B82)), IF('Lane 6'!$C79="Swimmer", "", 'Lane 6'!$C79), "Relay") -> Relay | P81: =IF(OR(O82="DQ",O82="DNS"),"-",IF(O82=SMALL((C82,F82,I82,L82,O82,R82),1),1,IF(O82=SMALL((C82,F82,I82,L82,O82,R82),2),2,IF(O82=SMALL((C82,F82,I82,L82,O82,R82),3),3,IF(O82=SMALL((C82,F82,I82,L82,O82,R82),4),4,IF(O82=SMALL((C82,F82,I82,L82,O82,R82),5),5,IF(O82=SMALL((C82,F82,I82,L82,O82,R82),6),6))))))) -> 5 | Q81: =IF(ISTEXT(P81),0,7-P81) -> 2 | R81: =IF(ISERROR(FIND("Relay", $B82)), IF('Lane 1'!$D79="Swimmer", "", 'Lane 1'!$D79), "Relay") -> Relay | S81: =IF(OR(R82="DQ",R82="DNS"),"-",IF(R82=SMALL((C82,F82,I82,L82,O82,R82),1),1,IF(R82=SMALL((C82,F82,I82,L82,O82,R82),2),2,IF(R82=SMALL((C82,F82,I82,L82,O82,R82),3),3,IF(R82=SMALL((C82,F82,I82,L82,O82,R82),4),4,IF(R82=SMALL((C82,F82,I82,L82,O82,R82),5),5,IF(R82=SMALL((C82,F82,I82,L82,O82,R82),6),6))))))) -> 4 | T81: =IF(ISTEXT(S81),0,7-S81) -> 3 | U81: =T81+Q81+N81+K81+H81+E81 -> 20
B82: Freestyle Relay | C82: DQ | E82: =E80+E81 -> 112 | F82: 00:01:10.270 | H82: =H80+H81 -> 176 | I82: 00:01:08.960 | K82: =K80+K81 -> 137 | L82: 00:01:04.440 | N82: =N80+N81 -> 86 | O82: 00:01:13.940 | Q82: =Q80+Q81 -> 129 | R82: 00:01:11.860 | T82: =T80+T81 -> 139 | V82: =V80+U81 -> 779
A83: 40 | B83: B 11/u 2L | C83: =IF(ISERROR(FIND("Relay", $B84)), IF('Lane 2'!$C81="Swimmer", "", 'Lane 2'!$C81), "Relay") -> Lachlin Woodend | D83: =IF(OR(C84="DQ",C84="DNS"),"-",IF(C84=SMALL((C84,F84,I84,L84,O84,R84),1),1,IF(C84=SMALL((C84,F84,I84,L84,O84,R84),2),2,IF(C84=SMALL((C84,F84,I84,L84,O84,R84),3),3,IF(C84=SMALL((C84,F84,I84,L84,O84,R84),4),4,IF(C84=SMALL((C84,F84,I84,L84,O84,R84),5),5,IF(C84=SMALL((C84,F84,I84,L84,O84,R84),6),6))))))) -> 3 | E83: =IF(ISTEXT(D83),0,7-D83) -> 4 | F83: =IF(ISERROR(FIND("Relay", $B84)), IF('Lane 3'!$C81="Swimmer", "", 'Lane 3'!$C81), "Relay") -> Sam Withey | G83: =IF(OR(F84="DQ",F84="DNS"),"-",IF(F84=SMALL((C84,F84,I84,L84,O84,R84),1),1,IF(F84=SMALL((C84,F84,I84,L84,O84,R84),2),2,IF(F84=SMALL((C84,F84,I84,L84,O84,R84),3),3,IF(F84=SMALL((C84,F84,I84,L84,O84,R84),4),4,IF(F84=SMALL((C84,F84,I84,L84,O84,R84),5),5,IF(F84=SMALL((C84,F84,I84,L84,O84,R84),6),6))))))) -> 4 | H83: =IF(ISTEXT(G83),0,7-G83) -> 3 | I83: =IF(ISERROR(FIND("Relay", $B84)), IF('Lane 4'!$C81="Swimmer", "", 'Lane 4'!$C81), "Relay") -> Sonny Butcher | J83: =IF(OR(I84="DQ",I84="DNS"),"-",IF(I84=SMALL((C84,F84,I84,L84,O84,R84),1),1,IF(I84=SMALL((C84,F84,I84,L84,O84,R84),2),2,IF(I84=SMALL((C84,F84,I84,L84,O84,R84),3),3,IF(I84=SMALL((C84,F84,I84,L84,O84,R84),4),4,IF(I84=SMALL((C84,F84,I84,L84,O84,R84),5),5,IF(I84=SMALL((C84,F84,I84,L84,O84,R84),6),6))))))) -> 6 | K83: =IF(ISTEXT(J83),0,7-J83) -> 1 | L83: =IF(ISERROR(FIND("Relay", $B84)), IF('Lane 5'!$C81="Swimmer", "", 'Lane 5'!$C81), "Relay") -> Issac Walton | M83: =IF(OR(L84="DQ",L84="DNS"),"-",IF(L84=SMALL((C84,F84,I84,L84,O84,R84),1),1,IF(L84=SMALL((C84,F84,I84,L84,O84,R84),2),2,IF(L84=SMALL((C84,F84,I84,L84,O84,R84),3),3,IF(L84=SMALL((C84,F84,I84,L84,O84,R84),4),4,IF(L84=SMALL((C84,F84,I84,L84,O84,R84),5),5,IF(L84=SMALL((C84,F84,I84,L84,O84,R84),6),6))))))) -> 2 | N83: =IF(ISTEXT(M83),0,7-M83) -> 5 | O83: =IF(ISERROR(FIND("Relay", $B84)), IF('Lane 6'!$C81="Swimmer", "", 'Lane 6'!$C81), "Relay") -> A Guild | P83: =IF(OR(O84="DQ",O84="DNS"),"-",IF(O84=SMALL((C84,F84,I84,L84,O84,R84),1),1,IF(O84=SMALL((C84,F84,I84,L84,O84,R84),2),2,IF(O84=SMALL((C84,F84,I84,L84,O84,R84),3),3,IF(O84=SMALL((C84,F84,I84,L84,O84,R84),4),4,IF(O84=SMALL((C84,F84,I84,L84,O84,R84),5),5,IF(O84=SMALL((C84,F84,I84,L84,O84,R84),6),6))))))) -> 5 | Q83: =IF(ISTEXT(P83),0,7-P83) -> 2 | R83: =IF(ISERROR(FIND("Relay", $B84)), IF('Lane 1'!$C81="Swimmer", "", 'Lane 1'!$C81), "Relay") -> Harvie Lal | S83: =IF(OR(R84="DQ",R84="DNS"),"-",IF(R84=SMALL((C84,F84,I84,L84,O84,R84),1),1,IF(R84=SMALL((C84,F84,I84,L84,O84,R84),2),2,IF(R84=SMALL((C84,F84,I84,L84,O84,R84),3),3,IF(R84=SMALL((C84,F84,I84,L84,O84,R84),4),4,IF(R84=SMALL((C84,F84,I84,L84,O84,R84),5),5,IF(R84=SMALL((C84,F84,I84,L84,O84,R84),6),6))))))) -> 1 | T83: =IF(ISTEXT(S83),0,7-S83) -> 6 | U83: =T83+Q83+N83+K83+H83+E83 -> 21
B84: Breaststroke | C84: 00:00:48.700 | E84: =E82+E83 -> 116 | F84: 00:00:49.460 | H84: =H82+H83 -> 179 | I84: 00:00:55.220 | K84: =K82+K83 -> 138 | L84: 00:00:48.560 | N84: =N82+N83 -> 91 | O84: 00:00:52.250 | Q84: =Q82+Q83 -> 131 | R84: 00:00:46.250 | T84: =T82+T83 -> 145 | V84: =V82+U83 -> 800
A85: 41 | B85: G 11/u 2L | C85: =IF(ISERROR(FIND("Relay", $B86)), IF('Lane 2'!$C83="Swimmer", "", 'Lane 2'!$C83), "Relay") -> Lilly Neal | D85: =IF(OR(C86="DQ",C86="DNS"),"-",IF(C86=SMALL((C86,F86,I86,L86,O86,R86),1),1,IF(C86=SMALL((C86,F86,I86,L86,O86,R86),2),2,IF(C86=SMALL((C86,F86,I86,L86,O86,R86),3),3,IF(C86=SMALL((C86,F86,I86,L86,O86,R86),4),4,IF(C86=SMALL((C86,F86,I86,L86,O86,R86),5),5,IF(C86=SMALL((C86,F86,I86,L86,O86,R86),6),6))))))) -> 5 | E85: =IF(ISTEXT(D85),0,7-D85) -> 2 | F85: =IF(ISERROR(FIND("Relay", $B86)), IF('Lane 3'!$C83="Swimmer", "", 'Lane 3'!$C83), "Relay") -> Sarah Hunt | G85: =IF(OR(F86="DQ",F86="DNS"),"-",IF(F86=SMALL((C86,F86,I86,L86,O86,R86),1),1,IF(F86=SMALL((C86,F86,I86,L86,O86,R86),2),2,IF(F86=SMALL((C86,F86,I86,L86,O86,R86),3),3,IF(F86=SMALL((C86,F86,I86,L86,O86,R86),4),4,IF(F86=SMALL((C86,F86,I86,L86,O86,R86),5),5,IF(F86=SMALL((C86,F86,I86,L86,O86,R86),6),6))))))) -> 2 | H85: =IF(ISTEXT(G85),0,7-G85) -> 5 | I85: =IF(ISERROR(FIND("Relay", $B86)), IF('Lane 4'!$C83="Swimmer", "", 'Lane 4'!$C83), "Relay") -> Megan O'Reilly | J85: =IF(OR(I86="DQ",I86="DNS"),"-",IF(I86=SMALL((C86,F86,I86,L86,O86,R86),1),1,IF(I86=SMALL((C86,F86,I86,L86,O86,R86),2),2,IF(I86=SMALL((C86,F86,I86,L86,O86,R86),3),3,IF(I86=SMALL((C86,F86,I86,L86,O86,R86),4),4,IF(I86=SMALL((C86,F86,I86,L86,O86,R86),5),5,IF(I86=SMALL((C86,F86,I86,L86,O86,R86),6),6))))))) -> 3 | K85: =IF(ISTEXT(J85),0,7-J85) -> 4 | L85: =IF(ISERROR(FIND("Relay", $B86)), IF('Lane 5'!$C83="Swimmer", "", 'Lane 5'!$C83), "Relay") -> Neveah Choudhury | M85: =IF(OR(L86="DQ",L86="DNS"),"-",IF(L86=SMALL((C86,F86,I86,L86,O86,R86),1),1,IF(L86=SMALL((C86,F86,I86,L86,O86,R86),2),2,IF(L86=SMALL((C86,F86,I86,L86,O86,R86),3),3,IF(L86=SMALL((C86,F86,I86,L86,O86,R86),4),4,IF(L86=SMALL((C86,F86,I86,L86,O86,R86),5),5,IF(L86=SMALL((C86,F86,I86,L86,O86,R86),6),6))))))) -> 6 | N85: =IF(ISTEXT(M85),0,7-M85) -> 1 | O85: =IF(ISERROR(FIND("Relay", $B86)), IF('Lane 6'!$C83="Swimmer", "", 'Lane 6'!$C83), "Relay") -> A Ingram | P85: =IF(OR(O86="DQ",O86="DNS"),"-",IF(O86=SMALL((C86,F86,I86,L86,O86,R86),1),1,IF(O86=SMALL((C86,F86,I86,L86,O86,R86),2),2,IF(O86=SMALL((C86,F86,I86,L86,O86,R86),3),3,IF(O86=SMALL((C86,F86,I86,L86,O86,R86),4),4,IF(O86=SMALL((C86,F86,I86,L86,O86,R86),5),5,IF(O86=SMALL((C86,F86,I86,L86,O86,R86),6),6))))))) -> 4 | Q85: =IF(ISTEXT(P85),0,7-P85) -> 3 | R85: =IF(ISERROR(FIND("Relay", $B86)), IF('Lane 1'!$C83="Swimmer", "", 'Lane 1'!$C83), "Relay") -> Eva Browne | S85: =IF(OR(R86="DQ",R86="DNS"),"-",IF(R86=SMALL((C86,F86,I86,L86,O86,R86),1),1,IF(R86=SMALL((C86,F86,I86,L86,O86,R86),2),2,IF(R86=SMALL((C86,F86,I86,L86,O86,R86),3),3,IF(R86=SMALL((C86,F86,I86,L86,O86,R86),4),4,IF(R86=SMALL((C86,F86,I86,L86,O86,R86),5),5,IF(R86=SMALL((C86,F86,I86,L86,O86,R86),6),6))))))) -> 1 | T85: =IF(ISTEXT(S85),0,7-S85) -> 6 | U85: =T85+Q85+N85+K85+H85+E85 -> 21
B86: Breaststroke | C86: 00:00:53.930 | E86: =E84+E85 -> 118 | F86: 00:00:51.810 | H86: =H84+H85 -> 184 | I86: 00:00:51.880 | K86: =K84+K85 -> 142 | L86: 00:01:04.870 | N86: =N84+N85 -> 92 | O86: 00:00:53.310 | Q86: =Q84+Q85 -> 134 | R86: 00:00:49.310 | T86: =T84+T85 -> 151 | V86: =V84+U85 -> 821
A87: 42 | B87: B 8 x 1L | C87: =IF(ISERROR(FIND("Relay", $B88)), IF('Lane 2'!$C85="Swimmer", "", 'Lane 2'!$C85), "Relay") -> Relay | D87: =IF(OR(C88="DQ",C88="DNS"),"-",IF(C88=SMALL((C88,F88,I88,L88,O88,R88),1),1,IF(C88=SMALL((C88,F88,I88,L88,O88,R88),2),2,IF(C88=SMALL((C88,F88,I88,L88,O88,R88),3),3,IF(C88=SMALL((C88,F88,I88,L88,O88,R88),4),4,IF(C88=SMALL((C88,F88,I88,L88,O88,R88),5),5,IF(C88=SMALL((C88,F88,I88,L88,O88,R88),6),6))))))) -> 5 | E87: =IF(ISTEXT(D87),0,7-D87) -> 2 | F87: =IF(ISERROR(FIND("Relay", $B88)), IF('Lane 3'!$C85="Swimmer", "", 'Lane 3'!$C85), "Relay") -> Relay | G87: =IF(OR(F88="DQ",F88="DNS"),"-",IF(F88=SMALL((C88,F88,I88,L88,O88,R88),1),1,IF(F88=SMALL((C88,F88,I88,L88,O88,R88),2),2,IF(F88=SMALL((C88,F88,I88,L88,O88,R88),3),3,IF(F88=SMALL((C88,F88,I88,L88,O88,R88),4),4,IF(F88=SMALL((C88,F88,I88,L88,O88,R88),5),5,IF(F88=SMALL((C88,F88,I88,L88,O88,R88),6),6))))))) -> 1 | H87: =IF(ISTEXT(G87),0,7-G87) -> 6 | I87: =IF(ISERROR(FIND("Relay", $B88)), IF('Lane 4'!$C85="Swimmer", "", 'Lane 4'!$C85), "Relay") -> Relay | J87: =IF(OR(I88="DQ",I88="DNS"),"-",IF(I88=SMALL((C88,F88,I88,L88,O88,R88),1),1,IF(I88=SMALL((C88,F88,I88,L88,O88,R88),2),2,IF(I88=SMALL((C88,F88,I88,L88,O88,R88),3),3,IF(I88=SMALL((C88,F88,I88,L88,O88,R88),4),4,IF(I88=SMALL((C88,F88,I88,L88,O88,R88),5),5,IF(I88=SMALL((C88,F88,I88,L88,O88,R88),6),6))))))) -> 4 | K87: =IF(ISTEXT(J87),0,7-J87) -> 3 | L87: =IF(ISERROR(FIND("Relay", $B88)), IF('Lane 5'!$C85="Swimmer", "", 'Lane 5'!$C85), "Relay") -> Relay | M87: =IF(OR(L88="DQ",L88="DNS"),"-",IF(L88=SMALL((C88,F88,I88,L88,O88,R88),1),1,IF(L88=SMALL((C88,F88,I88,L88,O88,R88),2),2,IF(L88=SMALL((C88,F88,I88,L88,O88,R88),3),3,IF(L88=SMALL((C88,F88,I88,L88,O88,R88),4),4,IF(L88=SMALL((C88,F88,I88,L88,O88,R88),5),5,IF(L88=SMALL((C88,F88,I88,L88,O88,R88),6),6))))))) -> - | N87: =IF(ISTEXT(M87),0,7-M87) -> 0 | O87: =IF(ISERROR(FIND("Relay", $B88)), IF('Lane 6'!$C85="Swimmer", "", 'Lane 6'!$C85), "Relay") -> Relay | P87: =IF(OR(O88="DQ",O88="DNS"),"-",IF(O88=SMALL((C88,F88,I88,L88,O88,R88),1),1,IF(O88=SMALL((C88,F88,I88,L88,O88,R88),2),2,IF(O88=SMALL((C88,F88,I88,L88,O88,R88),3),3,IF(O88=SMALL((C88,F88,I88,L88,O88,R88),4),4,IF(O88=SMALL((C88,F88,I88,L88,O88,R88),5),5,IF(O88=SMALL((C88,F88,I88,L88,O88,R88),6),6))))))) -> 3 | Q87: =IF(ISTEXT(P87),0,7-P87) -> 4 | R87: =IF(ISERROR(FIND("Relay", $B88)), IF('Lane 1'!$D85="Swimmer", "", 'Lane 1'!$D85), "Relay") -> Relay | S87: =IF(OR(R88="DQ",R88="DNS"),"-",IF(R88=SMALL((C88,F88,I88,L88,O88,R88),1),1,IF(R88=SMALL((C88,F88,I88,L88,O88,R88),2),2,IF(R88=SMALL((C88,F88,I88,L88,O88,R88),3),3,IF(R88=SMALL((C88,F88,I88,L88,O88,R88),4),4,IF(R88=SMALL((C88,F88,I88,L88,O88,R88),5),5,IF(R88=SMALL((C88,F88,I88,L88,O88,R88),6),6))))))) -> 2 | T87: =IF(ISTEXT(S87),0,7-S87) -> 5 | U87: =T87+Q87+N87+K87+H87+E87 -> 20
B88: Freestyle Relay | C88: 00:02:48.690 | E88: =E86+E87 -> 120 | F88: 00:02:26.760 | H88: =H86+H87 -> 190 | I88: 00:02:41.110 | K88: =K86+K87 -> 145 | L88: DNS | N88: =N86+N87 -> 92 | O88: 00:02:35.750 | Q88: =Q86+Q87 -> 138 | R88: 00:02:30.560 | T88: =T86+T87 -> 156 | V88: =V86+U87 -> 841
A89: 43 | B89: G 10/u 1L | C89: =IF(ISERROR(FIND("Relay", $B90)), IF('Lane 2'!$C87="Swimmer", "", 'Lane 2'!$C87), "Relay") -> Faith Shepherd | D89: =IF(OR(C90="DQ",C90="DNS"),"-",IF(C90=SMALL((C90,F90,I90,L90,O90,R90),1),1,IF(C90=SMALL((C90,F90,I90,L90,O90,R90),2),2,IF(C90=SMALL((C90,F90,I90,L90,O90,R90),3),3,IF(C90=SMALL((C90,F90,I90,L90,O90,R90),4),4,IF(C90=SMALL((C90,F90,I90,L90,O90,R90),5),5,IF(C90=SMALL((C90,F90,I90,L90,O90,R90),6),6))))))) -> 1 | E89: =IF(ISTEXT(D89),0,7-D89) -> 6 | F89: =IF(ISERROR(FIND("Relay", $B90)), IF('Lane 3'!$C87="Swimmer", "", 'Lane 3'!$C87), "Relay") -> Hannah Johnson | G89: =IF(OR(F90="DQ",F90="DNS"),"-",IF(F90=SMALL((C90,F90,I90,L90,O90,R90),1),1,IF(F90=SMALL((C90,F90,I90,L90,O90,R90),2),2,IF(F90=SMALL((C90,F90,I90,L90,O90,R90),3),3,IF(F90=SMALL((C90,F90,I90,L90,O90,R90),4),4,IF(F90=SMALL((C90,F90,I90,L90,O90,R90),5),5,IF(F90=SMALL((C90,F90,I90,L90,O90,R90),6),6))))))) -> 3 | H89: =IF(ISTEXT(G89),0,7-G89) -> 4 | I89: =IF(ISERROR(FIND("Relay", $B90)), IF('Lane 4'!$C87="Swimmer", "", 'Lane 4'!$C87), "Relay") -> Ayla Goucher | J89: =IF(OR(I90="DQ",I90="DNS"),"-",IF(I90=SMALL((C90,F90,I90,L90,O90,R90),1),1,IF(I90=SMALL((C90,F90,I90,L90,O90,R90),2),2,IF(I90=SMALL((C90,F90,I90,L90,O90,R90),3),3,IF(I90=SMALL((C90,F90,I90,L90,O90,R90),4),4,IF(I90=SMALL((C90,F90,I90,L90,O90,R90),5),5,IF(I90=SMALL((C90,F90,I90,L90,O90,R90),6),6))))))) -> 2 | K89: =IF(ISTEXT(J89),0,7-J89) -> 5 | L89: =IF(ISERROR(FIND("Relay", $B90)), IF('Lane 5'!$C87="Swimmer", "", 'Lane 5'!$C87), "Relay") -> Kiyane Mesref | M89: =IF(OR(L90="DQ",L90="DNS"),"-",IF(L90=SMALL((C90,F90,I90,L90,O90,R90),1),1,IF(L90=SMALL((C90,F90,I90,L90,O90,R90),2),2,IF(L90=SMALL((C90,F90,I90,L90,O90,R90),3),3,IF(L90=SMALL((C90,F90,I90,L90,O90,R90),4),4,IF(L90=SMALL((C90,F90,I90,L90,O90,R90),5),5,IF(L90=SMALL((C90,F90,I90,L90,O90,R90),6),6))))))) -> 5 | N89: =IF(ISTEXT(M89),0,7-M89) -> 2 | O89: =IF(ISERROR(FIND("Relay", $B90)), IF('Lane 6'!$C87="Swimmer", "", 'Lane 6'!$C87), "Relay") -> 00:00:00 | P89: =IF(OR(O90="DQ",O90="DNS"),"-",IF(O90=SMALL((C90,F90,I90,L90,O90,R90),1),1,IF(O90=SMALL((C90,F90,I90,L90,O90,R90),2),2,IF(O90=SMALL((C90,F90,I90,L90,O90,R90),3),3,IF(O90=SMALL((C90,F90,I90,L90,O90,R90),4),4,IF(O90=SMALL((C90,F90,I90,L90,O90,R90),5),5,IF(O90=SMALL((C90,F90,I90,L90,O90,R90),6),6))))))) -> - | Q89: =IF(ISTEXT(P89),0,7-P89) -> 0 | R89: =IF(ISERROR(FIND("Relay", $B90)), IF('Lane 1'!$C87="Swimmer", "", 'Lane 1'!$C87), "Relay") -> Amelie Hemmingway | S89: =IF(OR(R90="DQ",R90="DNS"),"-",IF(R90=SMALL((C90,F90,I90,L90,O90,R90),1),1,IF(R90=SMALL((C90,F90,I90,L90,O90,R90),2),2,IF(R90=SMALL((C90,F90,I90,L90,O90,R90),3),3,IF(R90=SMALL((C90,F90,I90,L90,O90,R90),4),4,IF(R90=SMALL((C90,F90,I90,L90,O90,R90),5),5,IF(R90=SMALL((C90,F90,I90,L90,O90,R90),6),6))))))) -> 4 | T89: =IF(ISTEXT(S89),0,7-S89) -> 3 | U89: =T89+Q89+N89+K89+H89+E89 -> 20
B90: Butterfly | C90: 00:00:19.030 | E90: =E88+E89 -> 126 | F90: 00:00:23.330 | H90: =H88+H89 -> 194 | I90: 00:00:20.990 | K90: =K88+K89 -> 150 | L90: 00:00:42.120 | N90: =N88+N89 -> 94 | O90: DNS | Q90: =Q88+Q89 -> 138 | R90: 00:00:25.650 | T90: =T88+T89 -> 159 | V90: =V88+U89 -> 861
A91: 44 | B91: B 10/u 1L | C91: =IF(ISERROR(FIND("Relay", $B92)), IF('Lane 2'!$C89="Swimmer", "", 'Lane 2'!$C89), "Relay") -> Christian Neal | D91: =IF(OR(C92="DQ",C92="DNS"),"-",IF(C92=SMALL((C92,F92,I92,L92,O92,R92),1),1,IF(C92=SMALL((C92,F92,I92,L92,O92,R92),2),2,IF(C92=SMALL((C92,F92,I92,L92,O92,R92),3),3,IF(C92=SMALL((C92,F92,I92,L92,O92,R92),4),4,IF(C92=SMALL((C92,F92,I92,L92,O92,R92),5),5,IF(C92=SMALL((C92,F92,I92,L92,O92,R92),6),6))))))) -> 6 | E91: =IF(ISTEXT(D91),0,7-D91) -> 1 | F91: =IF(ISERROR(FIND("Relay", $B92)), IF('Lane 3'!$C89="Swimmer", "", 'Lane 3'!$C89), "Relay") -> Christian Morgan | G91: =IF(OR(F92="DQ",F92="DNS"),"-",IF(F92=SMALL((C92,F92,I92,L92,O92,R92),1),1,IF(F92=SMALL((C92,F92,I92,L92,O92,R92),2),2,IF(F92=SMALL((C92,F92,I92,L92,O92,R92),3),3,IF(F92=SMALL((C92,F92,I92,L92,O92,R92),4),4,IF(F92=SMALL((C92,F92,I92,L92,O92,R92),5),5,IF(F92=SMALL((C92,F92,I92,L92,O92,R92),6),6))))))) -> 5 | H91: =IF(ISTEXT(G91),0,7-G91) -> 2 | I91: =IF(ISERROR(FIND("Relay", $B92)), IF('Lane 4'!$C89="Swimmer", "", 'Lane 4'!$C89), "Relay") -> Kieran O'Reilly | J91: =IF(OR(I92="DQ",I92="DNS"),"-",IF(I92=SMALL((C92,F92,I92,L92,O92,R92),1),1,IF(I92=SMALL((C92,F92,I92,L92,O92,R92),2),2,IF(I92=SMALL((C92,F92,I92,L92,O92,R92),3),3,IF(I92=SMALL((C92,F92,I92,L92,O92,R92),4),4,IF(I92=SMALL((C92,F92,I92,L92,O92,R92),5),5,IF(I92=SMALL((C92,F92,I92,L92,O92,R92),6),6))))))) -> 2 | K91: =IF(ISTEXT(J91),0,7-J91) -> 5 | L91: =IF(ISERROR(FIND("Relay", $B92)), IF('Lane 5'!$C89="Swimmer", "", 'Lane 5'!$C89), "Relay") -> Joe Box | M91: =IF(OR(L92="DQ",L92="DNS"),"-",IF(L92=SMALL((C92,F92,I92,L92,O92,R92),1),1,IF(L92=SMALL((C92,F92,I92,L92,O92,R92),2),2,IF(L92=SMALL((C92,F92,I92,L92,O92,R92),3),3,IF(L92=SMALL((C92,F92,I92,L92,O92,R92),4),4,IF(L92=SMALL((C92,F92,I92,L92,O92,R92),5),5,IF(L92=SMALL((C92,F92,I92,L92,O92,R92),6),6))))))) -> 1 | N91: =IF(ISTEXT(M91),0,7-M91) -> 6 | O91: =IF(ISERROR(FIND("Relay", $B92)), IF('Lane 6'!$C89="Swimmer", "", 'Lane 6'!$C89), "Relay") -> T Mobbs | P91: =IF(OR(O92="DQ",O92="DNS"),"-",IF(O92=SMALL((C92,F92,I92,L92,O92,R92),1),1,IF(O92=SMALL((C92,F92,I92,L92,O92,R92),2),2,IF(O92=SMALL((C92,F92,I92,L92,O92,R92),3),3,IF(O92=SMALL((C92,F92,I92,L92,O92,R92),4),4,IF(O92=SMALL((C92,F92,I92,L92,O92,R92),5),5,IF(O92=SMALL((C92,F92,I92,L92,O92,R92),6),6))))))) -> 4 | Q91: =IF(ISTEXT(P91),0,7-P91) -> 3 | R91: =IF(ISERROR(FIND("Relay", $B92)), IF('Lane 1'!$C89="Swimmer", "", 'Lane 1'!$C89), "Relay") -> Willem Cunniffe | S91: =IF(OR(R92="DQ",R92="DNS"),"-",IF(R92=SMALL((C92,F92,I92,L92,O92,R92),1),1,IF(R92=SMALL((C92,F92,I92,L92,O92,R92),2),2,IF(R92=SMALL((C92,F92,I92,L92,O92,R92),3),3,IF(R92=SMALL((C92,F92,I92,L92,O92,R92),4),4,IF(R92=SMALL((C92,F92,I92,L92,O92,R92),5),5,IF(R92=SMALL((C92,F92,I92,L92,O92,R92),6),6))))))) -> 3 | T91: =IF(ISTEXT(S91),0,7-S91) -> 4 | U91: =T91+Q91+N91+K91+H91+E91 -> 21
B92: Butterfly | C92: 00:00:31.490 | E92: =E90+E91 -> 127 | F92: 00:00:23.890 | H92: =H90+H91 -> 196 | I92: 00:00:19.370 | K92: =K90+K91 -> 155 | L92: 00:00:17.500 | N92: =N90+N91 -> 100 | O92: 00:00:21.910 | Q92: =Q90+Q91 -> 141 | R92: 00:00:19.440 | T92: =T90+T91 -> 163 | V92: =V90+U91 -> 882
A93: 45 | B93: G 9yrs 1L | C93: =IF(ISERROR(FIND("Relay", $B94)), IF('Lane 2'!$C91="Swimmer", "", 'Lane 2'!$C91), "Relay") -> Imogen Neal | D93: =IF(OR(C94="DQ",C94="DNS"),"-",IF(C94=SMALL((C94,F94,I94,L94,O94,R94),1),1,IF(C94=SMALL((C94,F94,I94,L94,O94,R94),2),2,IF(C94=SMALL((C94,F94,I94,L94,O94,R94),3),3,IF(C94=SMALL((C94,F94,I94,L94,O94,R94),4),4,IF(C94=SMALL((C94,F94,I94,L94,O94,R94),5),5,IF(C94=SMALL((C94,F94,I94,L94,O94,R94),6),6))))))) -> 3 | E93: =IF(ISTEXT(D93),0,7-D93) -> 4 | F93: =IF(ISERROR(FIND("Relay", $B94)), IF('Lane 3'!$C91="Swimmer", "", 'Lane 3'!$C91), "Relay") -> Esther McGeough | G93: =IF(OR(F94="DQ",F94="DNS"),"-",IF(F94=SMALL((C94,F94,I94,L94,O94,R94),1),1,IF(F94=SMALL((C94,F94,I94,L94,O94,R94),2),2,IF(F94=SMALL((C94,F94,I94,L94,O94,R94),3),3,IF(F94=SMALL((C94,F94,I94,L94,O94,R94),4),4,IF(F94=SMALL((C94,F94,I94,L94,O94,R94),5),5,IF(F94=SMALL((C94,F94,I94,L94,O94,R94),6),6))))))) -> 5 | H93: =IF(ISTEXT(G93),0,7-G93) -> 2 | I93: =IF(ISERROR(FIND("Relay", $B94)), IF('Lane 4'!$C91="Swimmer", "", 'Lane 4'!$C91), "Relay") -> Cassie Kelly-Cooper | J93: =IF(OR(I94="DQ",I94="DNS"),"-",IF(I94=SMALL((C94,F94,I94,L94,O94,R94),1),1,IF(I94=SMALL((C94,F94,I94,L94,O94,R94),2),2,IF(I94=SMALL((C94,F94,I94,L94,O94,R94),3),3,IF(I94=SMALL((C94,F94,I94,L94,O94,R94),4),4,IF(I94=SMALL((C94,F94,I94,L94,O94,R94),5),5,IF(I94=SMALL((C94,F94,I94,L94,O94,R94),6),6))))))) -> 1 | K93: =IF(ISTEXT(J93),0,7-J93) -> 6 | L93: =IF(ISERROR(FIND("Relay", $B94)), IF('Lane 5'!$C91="Swimmer", "", 'Lane 5'!$C91), "Relay") -> Ava Browne | M93: =IF(OR(L94="DQ",L94="DNS"),"-",IF(L94=SMALL((C94,F94,I94,L94,O94,R94),1),1,IF(L94=SMALL((C94,F94,I94,L94,O94,R94),2),2,IF(L94=SMALL((C94,F94,I94,L94,O94,R94),3),3,IF(L94=SMALL((C94,F94,I94,L94,O94,R94),4),4,IF(L94=SMALL((C94,F94,I94,L94,O94,R94),5),5,IF(L94=SMALL((C94,F94,I94,L94,O94,R94),6),6))))))) -> - | N93: =IF(ISTEXT(M93),0,7-M93) -> 0 | O93: =IF(ISERROR(FIND("Relay", $B94)), IF('Lane 6'!$C91="Swimmer", "", 'Lane 6'!$C91), "Relay") -> M Munslow | P93: =IF(OR(O94="DQ",O94="DNS"),"-",IF(O94=SMALL((C94,F94,I94,L94,O94,R94),1),1,IF(O94=SMALL((C94,F94,I94,L94,O94,R94),2),2,IF(O94=SMALL((C94,F94,I94,L94,O94,R94),3),3,IF(O94=SMALL((C94,F94,I94,L94,O94,R94),4),4,IF(O94=SMALL((C94,F94,I94,L94,O94,R94),5),5,IF(O94=SMALL((C94,F94,I94,L94,O94,R94),6),6))))))) -> 4 | Q93: =IF(ISTEXT(P93),0,7-P93) -> 3 | R93: =IF(ISERROR(FIND("Relay", $B94)), IF('Lane 1'!$C91="Swimmer", "", 'Lane 1'!$C91), "Relay") -> Evie-May Smith | S93: =IF(OR(R94="DQ",R94="DNS"),"-",IF(R94=SMALL((C94,F94,I94,L94,O94,R94),1),1,IF(R94=SMALL((C94,F94,I94,L94,O94,R94),2),2,IF(R94=SMALL((C94,F94,I94,L94,O94,R94),3),3,IF(R94=SMALL((C94,F94,I94,L94,O94,R94),4),4,IF(R94=SMALL((C94,F94,I94,L94,O94,R94),5),5,IF(R94=SMALL((C94,F94,I94,L94,O94,R94),6),6))))))) -> 2 | T93: =IF(ISTEXT(S93),0,7-S93) -> 5 | U93: =T93+Q93+N93+K93+H93+E93 -> 20
B94: Backstroke | C94: 00:00:24.400 | E94: =E92+E93 -> 131 | F94: 00:00:27.370 | H94: =H92+H93 -> 198 | I94: 00:00:24.200 | K94: =K92+K93 -> 161 | L94: DQ | N94: =N92+N93 -> 100 | O94: 00:00:25.340 | Q94: =Q92+Q93 -> 144 | R94: 00:00:24.210 | T94: =T92+T93 -> 168 | V94: =V92+U93 -> 902
A95: 46 | B95: B 9 yrs 1L | C95: =IF(ISERROR(FIND("Relay", $B96)), IF('Lane 2'!$C93="Swimmer", "", 'Lane 2'!$C93), "Relay") -> Oscar Yates | D95: =IF(OR(C96="DQ",C96="DNS"),"-",IF(C96=SMALL((C96,F96,I96,L96,O96,R96),1),1,IF(C96=SMALL((C96,F96,I96,L96,O96,R96),2),2,IF(C96=SMALL((C96,F96,I96,L96,O96,R96),3),3,IF(C96=SMALL((C96,F96,I96,L96,O96,R96),4),4,IF(C96=SMALL((C96,F96,I96,L96,O96,R96),5),5,IF(C96=SMALL((C96,F96,I96,L96,O96,R96),6),6))))))) -> 4 | E95: =IF(ISTEXT(D95),0,7-D95) -> 3 | F95: =IF(ISERROR(FIND("Relay", $B96)), IF('Lane 3'!$C93="Swimmer", "", 'Lane 3'!$C93), "Relay") -> Callum Anderson | G95: =IF(OR(F96="DQ",F96="DNS"),"-",IF(F96=SMALL((C96,F96,I96,L96,O96,R96),1),1,IF(F96=SMALL((C96,F96,I96,L96,O96,R96),2),2,IF(F96=SMALL((C96,F96,I96,L96,O96,R96),3),3,IF(F96=SMALL((C96,F96,I96,L96,O96,R96),4),4,IF(F96=SMALL((C96,F96,I96,L96,O96,R96),5),5,IF(F96=SMALL((C96,F96,I96,L96,O96,R96),6),6))))))) -> 2 | H95: =IF(ISTEXT(G95),0,7-G95) -> 5 | I95: =IF(ISERROR(FIND("Relay", $B96)), IF('Lane 4'!$C93="Swimmer", "", 'Lane 4'!$C93), "Relay") ->  | J95: =IF(OR(I96="DQ",I96="DNS"),"-",IF(I96=SMALL((C96,F96,I96,L96,O96,R96),1),1,IF(I96=SMALL((C96,F96,I96,L96,O96,R96),2),2,IF(I96=SMALL((C96,F96,I96,L96,O96,R96),3),3,IF(I96=SMALL((C96,F96,I96,L96,O96,R96),4),4,IF(I96=SMALL((C96,F96,I96,L96,O96,R96),5),5,IF(I96=SMALL((C96,F96,I96,L96,O96,R96),6),6))))))) -> - | K95: =IF(ISTEXT(J95),0,7-J95) -> 0 | L95: =IF(ISERROR(FIND("Relay", $B96)), IF('Lane 5'!$C93="Swimmer", "", 'Lane 5'!$C93), "Relay") -> Luka Prodan | M95: =IF(OR(L96="DQ",L96="DNS"),"-",IF(L96=SMALL((C96,F96,I96,L96,O96,R96),1),1,IF(L96=SMALL((C96,F96,I96,L96,O96,R96),2),2,IF(L96=SMALL((C96,F96,I96,L96,O96,R96),3),3,IF(L96=SMALL((C96,F96,I96,L96,O96,R96),4),4,IF(L96=SMALL((C96,F96,I96,L96,O96,R96),5),5,IF(L96=SMALL((C96,F96,I96,L96,O96,R96),6),6))))))) -> - | N95: =IF(ISTEXT(M95),0,7-M95) -> 0 | O95: =IF(ISERROR(FIND("Relay", $B96)), IF('Lane 6'!$C93="Swimmer", "", 'Lane 6'!$C93), "Relay") -> N Kalitat | P95: =IF(OR(O96="DQ",O96="DNS"),"-",IF(O96=SMALL((C96,F96,I96,L96,O96,R96),1),1,IF(O96=SMALL((C96,F96,I96,L96,O96,R96),2),2,IF(O96=SMALL((C96,F96,I96,L96,O96,R96),3),3,IF(O96=SMALL((C96,F96,I96,L96,O96,R96),4),4,IF(O96=SMALL((C96,F96,I96,L96,O96,R96),5),5,IF(O96=SMALL((C96,F96,I96,L96,O96,R96),6),6))))))) -> 3 | Q95: =IF(ISTEXT(P95),0,7-P95) -> 4 | R95: =IF(ISERROR(FIND("Relay", $B96)), IF('Lane 1'!$C93="Swimmer", "", 'Lane 1'!$C93), "Relay") -> Finley Cowdell | S95: =IF(OR(R96="DQ",R96="DNS"),"-",IF(R96=SMALL((C96,F96,I96,L96,O96,R96),1),1,IF(R96=SMALL((C96,F96,I96,L96,O96,R96),2),2,IF(R96=SMALL((C96,F96,I96,L96,O96,R96),3),3,IF(R96=SMALL((C96,F96,I96,L96,O96,R96),4),4,IF(R96=SMALL((C96,F96,I96,L96,O96,R96),5),5,IF(R96=SMALL((C96,F96,I96,L96,O96,R96),6),6))))))) -> 1 | T95: =IF(ISTEXT(S95),0,7-S95) -> 6 | U95: =T95+Q95+N95+K95+H95+E95 -> 18
B96: Backstroke | C96: 00:00:29.470 | E96: =E94+E95 -> 134 | F96: 00:00:27.060 | H96: =H94+H95 -> 203 | I96: DNS | K96: =K94+K95 -> 161 | L96: DNS | N96: =N94+N95 -> 100 | O96: 00:00:27.470 | Q96: =Q94+Q95 -> 148 | R96: 00:00:24.050 | T96: =T94+T95 -> 174 | V96: =V94+U95 -> 920
A97: 47 | B97: G 11/u 2L | C97: =IF(ISERROR(FIND("Relay", $B98)), IF('Lane 2'!$C95="Swimmer", "", 'Lane 2'!$C95), "Relay") -> Gracie Bull | D97: =IF(OR(C98="DQ",C98="DNS"),"-",IF(C98=SMALL((C98,F98,I98,L98,O98,R98),1),1,IF(C98=SMALL((C98,F98,I98,L98,O98,R98),2),2,IF(C98=SMALL((C98,F98,I98,L98,O98,R98),3),3,IF(C98=SMALL((C98,F98,I98,L98,O98,R98),4),4,IF(C98=SMALL((C98,F98,I98,L98,O98,R98),5),5,IF(C98=SMALL((C98,F98,I98,L98,O98,R98),6),6))))))) -> 3 | E97: =IF(ISTEXT(D97),0,7-D97) -> 4 | F97: =IF(ISERROR(FIND("Relay", $B98)), IF('Lane 3'!$C95="Swimmer", "", 'Lane 3'!$C95), "Relay") -> Molly Kirkland | G97: =IF(OR(F98="DQ",F98="DNS"),"-",IF(F98=SMALL((C98,F98,I98,L98,O98,R98),1),1,IF(F98=SMALL((C98,F98,I98,L98,O98,R98),2),2,IF(F98=SMALL((C98,F98,I98,L98,O98,R98),3),3,IF(F98=SMALL((C98,F98,I98,L98,O98,R98),4),4,IF(F98=SMALL((C98,F98,I98,L98,O98,R98),5),5,IF(F98=SMALL((C98,F98,I98,L98,O98,R98),6),6))))))) -> 2 | H97: =IF(ISTEXT(G97),0,7-G97) -> 5 | I97: =IF(ISERROR(FIND("Relay", $B98)), IF('Lane 4'!$C95="Swimmer", "", 'Lane 4'!$C95), "Relay") -> Cara Miller | J97: =IF(OR(I98="DQ",I98="DNS"),"-",IF(I98=SMALL((C98,F98,I98,L98,O98,R98),1),1,IF(I98=SMALL((C98,F98,I98,L98,O98,R98),2),2,IF(I98=SMALL((C98,F98,I98,L98,O98,R98),3),3,IF(I98=SMALL((C98,F98,I98,L98,O98,R98),4),4,IF(I98=SMALL((C98,F98,I98,L98,O98,R98),5),5,IF(I98=SMALL((C98,F98,I98,L98,O98,R98),6),6))))))) -> 6 | K97: =IF(ISTEXT(J97),0,7-J97) -> 1 | L97: =IF(ISERROR(FIND("Relay", $B98)), IF('Lane 5'!$C95="Swimmer", "", 'Lane 5'!$C95), "Relay") -> Indigo Perrett | M97: =IF(OR(L98="DQ",L98="DNS"),"-",IF(L98=SMALL((C98,F98,I98,L98,O98,R98),1),1,IF(L98=SMALL((C98,F98,I98,L98,O98,R98),2),2,IF(L98=SMALL((C98,F98,I98,L98,O98,R98),3),3,IF(L98=SMALL((C98,F98,I98,L98,O98,R98),4),4,IF(L98=SMALL((C98,F98,I98,L98,O98,R98),5),5,IF(L98=SMALL((C98,F98,I98,L98,O98,R98),6),6))))))) -> 5 | N97: =IF(ISTEXT(M97),0,7-M97) -> 2 | O97: =IF(ISERROR(FIND("Relay", $B98)), IF('Lane 6'!$C95="Swimmer", "", 'Lane 6'!$C95), "Relay") -> R Powell | P97: =IF(OR(O98="DQ",O98="DNS"),"-",IF(O98=SMALL((C98,F98,I98,L98,O98,R98),1),1,IF(O98=SMALL((C98,F98,I98,L98,O98,R98),2),2,IF(O98=SMALL((C98,F98,I98,L98,O98,R98),3),3,IF(O98=SMALL((C98,F98,I98,L98,O98,R98),4),4,IF(O98=SMALL((C98,F98,I98,L98,O98,R98),5),5,IF(O98=SMALL((C98,F98,I98,L98,O98,R98),6),6))))))) -> 1 | Q97: =IF(ISTEXT(P97),0,7-P97) -> 6 | R97: =IF(ISERROR(FIND("Relay", $B98)), IF('Lane 1'!$C95="Swimmer", "", 'Lane 1'!$C95), "Relay") -> Hannah Norton | S97: =IF(OR(R98="DQ",R98="DNS"),"-",IF(R98=SMALL((C98,F98,I98,L98,O98,R98),1),1,IF(R98=SMALL((C98,F98,I98,L98,O98,R98),2),2,IF(R98=SMALL((C98,F98,I98,L98,O98,R98),3),3,IF(R98=SMALL((C98,F98,I98,L98,O98,R98),4),4,IF(R98=SMALL((C98,F98,I98,L98,O98,R98),5),5,IF(R98=SMALL((C98,F98,I98,L98,O98,R98),6),6))))))) -> 4 | T97: =IF(ISTEXT(S97),0,7-S97) -> 3 | U97: =T97+Q97+N97+K97+H97+E97 -> 21
B98: Freestyle | C98: 00:00:41.460 | E98: =E96+E97 -> 138 | F98: 00:00:38.010 | H98: =H96+H97 -> 208 | I98: 00:00:50.460 | K98: =K96+K97 -> 162 | L98: 00:00:49.130 | N98: =N96+N97 -> 102 | O98: 00:00:37.850 | Q98: =Q96+Q97 -> 154 | R98: 00:00:49 | T98: =T96+T97 -> 177 | V98: =V96+U97 -> 941
A99: 48 | B99: B 11/u 2L | C99: =IF(ISERROR(FIND("Relay", $B100)), IF('Lane 2'!$C97="Swimmer", "", 'Lane 2'!$C97), "Relay") -> Lachlin Woodend | D99: =IF(OR(C100="DQ",C100="DNS"),"-",IF(C100=SMALL((C100,F100,I100,L100,O100,R100),1),1,IF(C100=SMALL((C100,F100,I100,L100,O100,R100),2),2,IF(C100=SMALL((C100,F100,I100,L100,O100,R100),3),3,IF(C100=SMALL((C100,F100,I100,L100,O100,R100),4),4,IF(C100=SMALL((C100,F100,I100,L100,O100,R100),5),5,IF(C100=SMALL((C100,F100,I100,L100,O100,R100),6),6))))))) -> 6 | E99: =IF(ISTEXT(D99),0,7-D99) -> 1 | F99: =IF(ISERROR(FIND("Relay", $B100)), IF('Lane 3'!$C97="Swimmer", "", 'Lane 3'!$C97), "Relay") -> Sam Withey | G99: =IF(OR(F100="DQ",F100="DNS"),"-",IF(F100=SMALL((C100,F100,I100,L100,O100,R100),1),1,IF(F100=SMALL((C100,F100,I100,L100,O100,R100),2),2,IF(F100=SMALL((C100,F100,I100,L100,O100,R100),3),3,IF(F100=SMALL((C100,F100,I100,L100,O100,R100),4),4,IF(F100=SMALL((C100,F100,I100,L100,O100,R100),5),5,IF(F100=SMALL((C100,F100,I100,L100,O100,R100),6),6))))))) -> 1 | H99: =IF(ISTEXT(G99),0,7-G99) -> 6 | I99: =IF(ISERROR(FIND("Relay", $B100)), IF('Lane 4'!$C97="Swimmer", "", 'Lane 4'!$C97), "Relay") -> Thomas Ribchester | J99: =IF(OR(I100="DQ",I100="DNS"),"-",IF(I100=SMALL((C100,F100,I100,L100,O100,R100),1),1,IF(I100=SMALL((C100,F100,I100,L100,O100,R100),2),2,IF(I100=SMALL((C100,F100,I100,L100,O100,R100),3),3,IF(I100=SMALL((C100,F100,I100,L100,O100,R100),4),4,IF(I100=SMALL((C100,F100,I100,L100,O100,R100),5),5,IF(I100=SMALL((C100,F100,I100,L100,O100,R100),6),6))))))) -> 3 | K99: =IF(ISTEXT(J99),0,7-J99) -> 4 | L99: =IF(ISERROR(FIND("Relay", $B100)), IF('Lane 5'!$C97="Swimmer", "", 'Lane 5'!$C97), "Relay") -> Riley Talbot-Fielding | M99: =IF(OR(L100="DQ",L100="DNS"),"-",IF(L100=SMALL((C100,F100,I100,L100,O100,R100),1),1,IF(L100=SMALL((C100,F100,I100,L100,O100,R100),2),2,IF(L100=SMALL((C100,F100,I100,L100,O100,R100),3),3,IF(L100=SMALL((C100,F100,I100,L100,O100,R100),4),4,IF(L100=SMALL((C100,F100,I100,L100,O100,R100),5),5,IF(L100=SMALL((C100,F100,I100,L100,O100,R100),6),6))))))) -> 5 | N99: =IF(ISTEXT(M99),0,7-M99) -> 2 | O99: =IF(ISERROR(FIND("Relay", $B100)), IF('Lane 6'!$C97="Swimmer", "", 'Lane 6'!$C97), "Relay") -> B Webb | P99: =IF(OR(O100="DQ",O100="DNS"),"-",IF(O100=SMALL((C100,F100,I100,L100,O100,R100),1),1,IF(O100=SMALL((C100,F100,I100,L100,O100,R100),2),2,IF(O100=SMALL((C100,F100,I100,L100,O100,R100),3),3,IF(O100=SMALL((C100,F100,I100,L100,O100,R100),4),4,IF(O100=SMALL((C100,F100,I100,L100,O100,R100),5),5,IF(O100=SMALL((C100,F100,I100,L100,O100,R100),6),6))))))) -> 2 | Q99: =IF(ISTEXT(P99),0,7-P99) -> 5 | R99: =IF(ISERROR(FIND("Relay", $B100)), IF('Lane 1'!$C97="Swimmer", "", 'Lane 1'!$C97), "Relay") -> Tom Lucas | S99: =IF(OR(R100="DQ",R100="DNS"),"-",IF(R100=SMALL((C100,F100,I100,L100,O100,R100),1),1,IF(R100=SMALL((C100,F100,I100,L100,O100,R100),2),2,IF(R100=SMALL((C100,F100,I100,L100,O100,R100),3),3,IF(R100=SMALL((C100,F100,I100,L100,O100,R100),4),4,IF(R100=SMALL((C100,F100,I100,L100,O100,R100),5),5,IF(R100=SMALL((C100,F100,I100,L100,O100,R100),6),6))))))) -> 4 | T99: =IF(ISTEXT(S99),0,7-S99) -> 3 | U99: =T99+Q99+N99+K99+H99+E99 -> 21
B100: Freestyle | C100: 00:00:40.020 | E100: =E98+E99 -> 139 | F100: 00:00:33 | H100: =H98+H99 -> 214 | I100: 00:00:36.720 | K100: =K98+K99 -> 166 | L100: 00:00:39.750 | N100: =N98+N99 -> 104 | O100: 00:00:33.500 | Q100: =Q98+Q99 -> 159 | R100: 00:00:37.580 | T100: =T98+T99 -> 180 | V100: =V98+U99 -> 962
A101: 49 | B101: G 12/u 4x1L | C101: =IF(ISERROR(FIND("Relay", $B102)), IF('Lane 2'!$C99="Swimmer", "", 'Lane 2'!$C99), "Relay") -> Relay | D101: =IF(OR(C102="DQ",C102="DNS"),"-",IF(C102=SMALL((C102,F102,I102,L102,O102,R102),1),1,IF(C102=SMALL((C102,F102,I102,L102,O102,R102),2),2,IF(C102=SMALL((C102,F102,I102,L102,O102,R102),3),3,IF(C102=SMALL((C102,F102,I102,L102,O102,R102),4),4,IF(C102=SMALL((C102,F102,I102,L102,O102,R102),5),5,IF(C102=SMALL((C102,F102,I102,L102,O102,R102),6),6))))))) -> 6 | E101: =IF(ISTEXT(D101),0,7-D101) -> 1 | F101: =IF(ISERROR(FIND("Relay", $B102)), IF('Lane 3'!$C99="Swimmer", "", 'Lane 3'!$C99), "Relay") -> Relay | G101: =IF(OR(F102="DQ",F102="DNS"),"-",IF(F102=SMALL((C102,F102,I102,L102,O102,R102),1),1,IF(F102=SMALL((C102,F102,I102,L102,O102,R102),2),2,IF(F102=SMALL((C102,F102,I102,L102,O102,R102),3),3,IF(F102=SMALL((C102,F102,I102,L102,O102,R102),4),4,IF(F102=SMALL((C102,F102,I102,L102,O102,R102),5),5,IF(F102=SMALL((C102,F102,I102,L102,O102,R102),6),6))))))) -> 5 | H101: =IF(ISTEXT(G101),0,7-G101) -> 2 | I101: =IF(ISERROR(FIND("Relay", $B102)), IF('Lane 4'!$C99="Swimmer", "", 'Lane 4'!$C99), "Relay") -> Relay | J101: =IF(OR(I102="DQ",I102="DNS"),"-",IF(I102=SMALL((C102,F102,I102,L102,O102,R102),1),1,IF(I102=SMALL((C102,F102,I102,L102,O102,R102),2),2,IF(I102=SMALL((C102,F102,I102,L102,O102,R102),3),3,IF(I102=SMALL((C102,F102,I102,L102,O102,R102),4),4,IF(I102=SMALL((C102,F102,I102,L102,O102,R102),5),5,IF(I102=SMALL((C102,F102,I102,L102,O102,R102),6),6))))))) -> 2 | K101: =IF(ISTEXT(J101),0,7-J101) -> 5 | L101: =IF(ISERROR(FIND("Relay", $B102)), IF('Lane 5'!$C99="Swimmer", "", 'Lane 5'!$C99), "Relay") -> Relay | M101: =IF(OR(L102="DQ",L102="DNS"),"-",IF(L102=SMALL((C102,F102,I102,L102,O102,R102),1),1,IF(L102=SMALL((C102,F102,I102,L102,O102,R102),2),2,IF(L102=SMALL((C102,F102,I102,L102,O102,R102),3),3,IF(L102=SMALL((C102,F102,I102,L102,O102,R102),4),4,IF(L102=SMALL((C102,F102,I102,L102,O102,R102),5),5,IF(L102=SMALL((C102,F102,I102,L102,O102,R102),6),6))))))) -> 1 | N101: =IF(ISTEXT(M101),0,7-M101) -> 6 | O101: =IF(ISERROR(FIND("Relay", $B102)), IF('Lane 6'!$C99="Swimmer", "", 'Lane 6'!$C99), "Relay") -> Relay | P101: =IF(OR(O102="DQ",O102="DNS"),"-",IF(O102=SMALL((C102,F102,I102,L102,O102,R102),1),1,IF(O102=SMALL((C102,F102,I102,L102,O102,R102),2),2,IF(O102=SMALL((C102,F102,I102,L102,O102,R102),3),3,IF(O102=SMALL((C102,F102,I102,L102,O102,R102),4),4,IF(O102=SMALL((C102,F102,I102,L102,O102,R102),5),5,IF(O102=SMALL((C102,F102,I102,L102,O102,R102),6),6))))))) -> 4 | Q101: =IF(ISTEXT(P101),0,7-P101) -> 3 | R101: =IF(ISERROR(FIND("Relay", $B102)), IF('Lane 1'!$D99="Swimmer", "", 'Lane 1'!$D99), "Relay") -> Relay | S101: =IF(OR(R102="DQ",R102="DNS"),"-",IF(R102=SMALL((C102,F102,I102,L102,O102,R102),1),1,IF(R102=SMALL((C102,F102,I102,L102,O102,R102),2),2,IF(R102=SMALL((C102,F102,I102,L102,O102,R102),3),3,IF(R102=SMALL((C102,F102,I102,L102,O102,R102),4),4,IF(R102=SMALL((C102,F102,I102,L102,O102,R102),5),5,IF(R102=SMALL((C102,F102,I102,L102,O102,R102),6),6))))))) -> 3 | T101: =IF(ISTEXT(S101),0,7-S101) -> 4 | U101: =T101+Q101+N101+K101+H101+E101 -> 21
B102: Medley Relay | C102: 00:01:27.030 | E102: =E100+E101 -> 140 | F102: 00:01:25.380 | H102: =H100+H101 -> 216 | I102: 00:01:20.380 | K102: =K100+K101 -> 171 | L102: 00:01:12.500 | N102: =N100+N101 -> 110 | O102: 00:01:24.960 | Q102: =Q100+Q101 -> 162 | R102: 00:01:23.090 | T102: =T100+T101 -> 184 | V102: =V100+U101 -> 983
A103: 50 | B103: B 12/u 4x1L | C103: =IF(ISERROR(FIND("Relay", $B104)), IF('Lane 2'!$C101="Swimmer", "", 'Lane 2'!$C101), "Relay") -> Relay | D103: =IF(OR(C104="DQ",C104="DNS"),"-",IF(C104=SMALL((C104,F104,I104,L104,O104,R104),1),1,IF(C104=SMALL((C104,F104,I104,L104,O104,R104),2),2,IF(C104=SMALL((C104,F104,I104,L104,O104,R104),3),3,IF(C104=SMALL((C104,F104,I104,L104,O104,R104),4),4,IF(C104=SMALL((C104,F104,I104,L104,O104,R104),5),5,IF(C104=SMALL((C104,F104,I104,L104,O104,R104),6),6))))))) -> 6 | E103: =IF(ISTEXT(D103),0,7-D103) -> 1 | F103: =IF(ISERROR(FIND("Relay", $B104)), IF('Lane 3'!$C101="Swimmer", "", 'Lane 3'!$C101), "Relay") -> Relay | G103: =IF(OR(F104="DQ",F104="DNS"),"-",IF(F104=SMALL((C104,F104,I104,L104,O104,R104),1),1,IF(F104=SMALL((C104,F104,I104,L104,O104,R104),2),2,IF(F104=SMALL((C104,F104,I104,L104,O104,R104),3),3,IF(F104=SMALL((C104,F104,I104,L104,O104,R104),4),4,IF(F104=SMALL((C104,F104,I104,L104,O104,R104),5),5,IF(F104=SMALL((C104,F104,I104,L104,O104,R104),6),6))))))) -> 2 | H103: =IF(ISTEXT(G103),0,7-G103) -> 5 | I103: =IF(ISERROR(FIND("Relay", $B104)), IF('Lane 4'!$C101="Swimmer", "", 'Lane 4'!$C101), "Relay") -> Relay | J103: =IF(OR(I104="DQ",I104="DNS"),"-",IF(I104=SMALL((C104,F104,I104,L104,O104,R104),1),1,IF(I104=SMALL((C104,F104,I104,L104,O104,R104),2),2,IF(I104=SMALL((C104,F104,I104,L104,O104,R104),3),3,IF(I104=SMALL((C104,F104,I104,L104,O104,R104),4),4,IF(I104=SMALL((C104,F104,I104,L104,O104,R104),5),5,IF(I104=SMALL((C104,F104,I104,L104,O104,R104),6),6))))))) -> 1 | K103: =IF(ISTEXT(J103),0,7-J103) -> 6 | L103: =IF(ISERROR(FIND("Relay", $B104)), IF('Lane 5'!$C101="Swimmer", "", 'Lane 5'!$C101), "Relay") -> Relay | M103: =IF(OR(L104="DQ",L104="DNS"),"-",IF(L104=SMALL((C104,F104,I104,L104,O104,R104),1),1,IF(L104=SMALL((C104,F104,I104,L104,O104,R104),2),2,IF(L104=SMALL((C104,F104,I104,L104,O104,R104),3),3,IF(L104=SMALL((C104,F104,I104,L104,O104,R104),4),4,IF(L104=SMALL((C104,F104,I104,L104,O104,R104),5),5,IF(L104=SMALL((C104,F104,I104,L104,O104,R104),6),6))))))) -> 3 | N103: =IF(ISTEXT(M103),0,7-M103) -> 4 | O103: =IF(ISERROR(FIND("Relay", $B104)), IF('Lane 6'!$C101="Swimmer", "", 'Lane 6'!$C101), "Relay") -> Relay | P103: =IF(OR(O104="DQ",O104="DNS"),"-",IF(O104=SMALL((C104,F104,I104,L104,O104,R104),1),1,IF(O104=SMALL((C104,F104,I104,L104,O104,R104),2),2,IF(O104=SMALL((C104,F104,I104,L104,O104,R104),3),3,IF(O104=SMALL((C104,F104,I104,L104,O104,R104),4),4,IF(O104=SMALL((C104,F104,I104,L104,O104,R104),5),5,IF(O104=SMALL((C104,F104,I104,L104,O104,R104),6),6))))))) -> 5 | Q103: =IF(ISTEXT(P103),0,7-P103) -> 2 | R103: =IF(ISERROR(FIND("Relay", $B104)), IF('Lane 1'!$D101="Swimmer", "", 'Lane 1'!$D101), "Relay") -> Relay | S103: =IF(OR(R104="DQ",R104="DNS"),"-",IF(R104=SMALL((C104,F104,I104,L104,O104,R104),1),1,IF(R104=SMALL((C104,F104,I104,L104,O104,R104),2),2,IF(R104=SMALL((C104,F104,I104,L104,O104,R104),3),3,IF(R104=SMALL((C104,F104,I104,L104,O104,R104),4),4,IF(R104=SMALL((C104,F104,I104,L104,O104,R104),5),5,IF(R104=SMALL((C104,F104,I104,L104,O104,R104),6),6))))))) -> 4 | T103: =IF(ISTEXT(S103),0,7-S103) -> 3 | U103: =T103+Q103+N103+K103+H103+E103 -> 21
B104: Medley Relay | C104: 00:01:24.540 | E104: =E102+E103 -> 141 | F104: 00:01:17.880 | H104: =H102+H103 -> 221 | I104: 00:01:14 | K104: =K102+K103 -> 177 | L104: 00:01:19.190 | N104: =N102+N103 -> 114 | O104: 00:01:22.820 | Q104: =Q102+Q103 -> 164 | R104: 00:01:22.580 | T104: =T102+T103 -> 187 | V104: =V102+U103 -> 1004
A105: 51 | B105: Mixed 8x1L Freestyle | C105: =IF(ISERROR(FIND("Relay", $B106)), IF('Lane 2'!$C103="Swimmer", "", 'Lane 2'!$C103), "Relay") -> Relay | D105: =IF(OR(C106="DQ",C106="DNS"),"-",IF(C106=SMALL((C106,F106,I106,L106,O106,R106),1),1,IF(C106=SMALL((C106,F106,I106,L106,O106,R106),2),2,IF(C106=SMALL((C106,F106,I106,L106,O106,R106),3),3,IF(C106=SMALL((C106,F106,I106,L106,O106,R106),4),4,IF(C106=SMALL((C106,F106,I106,L106,O106,R106),5),5,IF(C106=SMALL((C106,F106,I106,L106,O106,R106),6),6))))))) -> 5 | E105: =IF(ISTEXT(D105),0,7-D105) -> 2 | F105: =IF(ISERROR(FIND("Relay", $B106)), IF('Lane 3'!$C103="Swimmer", "", 'Lane 3'!$C103), "Relay") -> Relay | G105: =IF(OR(F106="DQ",F106="DNS"),"-",IF(F106=SMALL((C106,F106,I106,L106,O106,R106),1),1,IF(F106=SMALL((C106,F106,I106,L106,O106,R106),2),2,IF(F106=SMALL((C106,F106,I106,L106,O106,R106),3),3,IF(F106=SMALL((C106,F106,I106,L106,O106,R106),4),4,IF(F106=SMALL((C106,F106,I106,L106,O106,R106),5),5,IF(F106=SMALL((C106,F106,I106,L106,O106,R106),6),6))))))) -> 1 | H105: =IF(ISTEXT(G105),0,7-G105) -> 6 | I105: =IF(ISERROR(FIND("Relay", $B106)), IF('Lane 4'!$C103="Swimmer", "", 'Lane 4'!$C103), "Relay") -> Relay | J105: =IF(OR(I106="DQ",I106="DNS"),"-",IF(I106=SMALL((C106,F106,I106,L106,O106,R106),1),1,IF(I106=SMALL((C106,F106,I106,L106,O106,R106),2),2,IF(I106=SMALL((C106,F106,I106,L106,O106,R106),3),3,IF(I106=SMALL((C106,F106,I106,L106,O106,R106),4),4,IF(I106=SMALL((C106,F106,I106,L106,O106,R106),5),5,IF(I106=SMALL((C106,F106,I106,L106,O106,R106),6),6))))))) -> 4 | K105: =IF(ISTEXT(J105),0,7-J105) -> 3 | L105: =IF(ISERROR(FIND("Relay", $B106)), IF('Lane 5'!$C103="Swimmer", "", 'Lane 5'!$C103), "Relay") -> Relay | M105: =IF(OR(L106="DQ",L106="DNS"),"-",IF(L106=SMALL((C106,F106,I106,L106,O106,R106),1),1,IF(L106=SMALL((C106,F106,I106,L106,O106,R106),2),2,IF(L106=SMALL((C106,F106,I106,L106,O106,R106),3),3,IF(L106=SMALL((C106,F106,I106,L106,O106,R106),4),4,IF(L106=SMALL((C106,F106,I106,L106,O106,R106),5),5,IF(L106=SMALL((C106,F106,I106,L106,O106,R106),6),6))))))) -> 2 | N105: =IF(ISTEXT(M105),0,7-M105) -> 5 | O105: =IF(ISERROR(FIND("Relay", $B106)), IF('Lane 6'!$C103="Swimmer", "", 'Lane 6'!$C103), "Relay") -> Relay | P105: =IF(OR(O106="DQ",O106="DNS"),"-",IF(O106=SMALL((C106,F106,I106,L106,O106,R106),1),1,IF(O106=SMALL((C106,F106,I106,L106,O106,R106),2),2,IF(O106=SMALL((C106,F106,I106,L106,O106,R106),3),3,IF(O106=SMALL((C106,F106,I106,L106,O106,R106),4),4,IF(O106=SMALL((C106,F106,I106,L106,O106,R106),5),5,IF(O106=SMALL((C106,F106,I106,L106,O106,R106),6),6))))))) -> 6 | Q105: =IF(ISTEXT(P105),0,7-P105) -> 1 | R105: =IF(ISERROR(FIND("Relay", $B106)), IF('Lane 1'!$D103="Swimmer", "", 'Lane 1'!$D103), "Relay") -> Relay | S105: =IF(OR(R106="DQ",R106="DNS"),"-",IF(R106=SMALL((C106,F106,I106,L106,O106,R106),1),1,IF(R106=SMALL((C106,F106,I106,L106,O106,R106),2),2,IF(R106=SMALL((C106,F106,I106,L106,O106,R106),3),3,IF(R106=SMALL((C106,F106,I106,L106,O106,R106),4),4,IF(R106=SMALL((C106,F106,I106,L106,O106,R106),5),5,IF(R106=SMALL((C106,F106,I106,L106,O106,R106),6),6))))))) -> 3 | T105: =IF(ISTEXT(S105),0,7-S105) -> 4 | U105: =T105+Q105+N105+K105+H105+E105 -> 21
B106: Relay (1G+1B each age group) | C106: 00:02:33.850 | E106: =E104+E105 -> 143 | F106: 00:02:18.840 | H106: =H104+H105 -> 227 | I106: 00:02:33.840 | K106: =K104+K105 -> 180 | L106: 00:02:32.750 | N106: =N104+N105 -> 119 | O106: 00:02:37.320 | Q106: =Q104+Q105 -> 165 | R106: 00:02:33.150 | T106: =T104+T105 -> 191 | V106: =V104+U105 -> 1025
B107: FINAL POINTS | E107: =SUM(E106) -> 143 | H107: =SUM(H106) -> 227 | K107: =SUM(K106) -> 180 | N107: =SUM(N106) -> 119 | Q107: =SUM(Q106) -> 165 | T107: =SUM(T106) -> 191
E108: =RANK(E107,$E$107:$T$107) -> 5 | H108: =RANK(H107,$E$107:$T$107) -> 1 | K108: =RANK(K107,$E$107:$T$107) -> 3 | N108: =RANK(N107,$E$107:$T$107) -> 6 | Q108: =RANK(Q107,$E$107:$T$107) -> 4 | T108: =RANK(T107,$E$107:$T$107) -> 2
A109: Lane | B109: Points after: 12 | H109: Final Results | L109: Gala Points
A110: 1 | B110: =C4 ->  | C110: =E28 -> 43 | H110: 1st
A111: 2 | B111: =F4 ->  | C111: =H28 -> 46 | H111: 2nd
A112: 3 | B112: =I4 ->  | C112: =K28 -> 36 | H112: 3rd
A113: 4 | B113: =L4 ->  | C113: =N28 -> 29 | H113: 4th
A114: 5 | B114: =O4 ->  | C114: =Q28 -> 41 | H114: 5th
A115: 6 | B115: =R4 ->  | C115: =T28 -> 46 | H115: 6th
B116: Check: | C116: =SUM(C110:C115) -> 241
A118: Lane | B118: Points after: 24 | H118: Lane | I118: Points after: 36
A119: 1 | B119: =C4 ->  | C119: =E52 -> 72 | H119: 1 | I119: =$C$4 ->  | L119: =E76 -> 109
A120: 2 | B120: =F4 ->  | C120: =H52 -> 104 | H120: 2 | I120: =$F$4 ->  | L120: =H76 -> 162
A121: 3 | B121: =I4 ->  | C121: =K52 -> 85 | H121: 3 | I121: =$I$4 ->  | L121: =K76 -> 120
A122: 4 | B122: =L4 ->  | C122: =N52 -> 54 | H122: 4 | I122: =$L$4 ->  | L122: =M76 -> 0
A123: 5 | B123: =O4 ->  | C123: =Q52 -> 76 | H123: 5 | I123: =$O$4 ->  | L123: =P76 -> 0
A124: 6 | B124: =R4 ->  | C124: =T52 -> 90 | H124: 6 | I124: =$R$4 ->  | L124: =S76 -> 0
B125: Check: | C125: =SUM(C119:C124) -> 481 | I125: Check: | L125: =SUM(L119:L124) -> 391

Sheet FIRSTS
A1: No | B1: Event | C1: Lane 1 - | D1: Lane 2 - | E1: Lane 3 - | F1: Lane 4 - | G1: Lane 5 - | H1: Lane 6 -
C2: Position | D2: Position | E2: Position | F2: Position | G2: Position | H2: Position
B3: Club Name | C3: =GALA!C4 ->  | D3: =GALA!F4 ->  | E3: =GALA!I4 ->  | F3: =GALA!L4 ->  | G3: =GALA!O4 ->  | H3: =GALA!R4 -> 
A4: 1 | B4: G 10yrs 2L | C4: =GALA!D5 -> 1 | D4: =GALA!G5 -> 2 | E4: =GALA!J5 -> 3 | F4: =GALA!M5 -> 5 | G4: =GALA!P5 -> 6 | H4: =GALA!S5 -> 4
B5: Freestyle
A6: 2 | B6: B 10 yrs 2L | C6: =GALA!D7 -> - | D6: =GALA!G7 -> 4 | E6: =GALA!J7 -> 3 | F6: =GALA!M7 -> 2 | G6: =GALA!P7 -> 1 | H6: =GALA!S7 -> 5
B7: Freestyle
A8: 3 | B8: G 9 yrs 1L | C8: =GALA!D9 -> 1 | D8: =GALA!G9 -> 5 | E8: =GALA!J9 -> 2 | F8: =GALA!M9 -> 6 | G8: =GALA!P9 -> 4 | H8: =GALA!S9 -> 3
B9: Breaststroke
A10: 4 | B10: B 9 yrs 1L | C10: =GALA!D11 -> 5 | D10: =GALA!G11 -> 4 | E10: =GALA!J11 -> - | F10: =GALA!M11 -> 1 | G10: =GALA!P11 -> 2 | H10: =GALA!S11 -> 3
B11: Breaststroke
A12: 5 | B12: G 11/u 4 x 1L | C12: =GALA!D13 -> 4 | D12: =GALA!G13 -> 2 | E12: =GALA!J13 -> 3 | F12: =GALA!M13 -> 6 | G12: =GALA!P13 -> 1 | H12: =GALA!S13 -> 4
B13: Medley Relay
A14: 6 | B14: B 11/u 4 x 1L | C14: =GALA!D15 -> - | D14: =GALA!G15 -> 1 | E14: =GALA!J15 -> 5 | F14: =GALA!M15 -> 4 | G14: =GALA!P15 -> 3 | H14: =GALA!S15 -> 2
B15: Medley Relay
A16: 7 | B16: G 12/u 2L | C16: =GALA!D17 -> 3 | D16: =GALA!G17 -> 4 | E16: =GALA!J17 -> 5 | F16: =GALA!M17 -> 2 | G16: =GALA!P17 -> 6 | H16: =GALA!S17 -> 1
B17: Backstroke
A18: 8 | B18: B 12/u 2L | C18: =GALA!D19 -> 1 | D18: =GALA!G19 -> 3 | E18: =GALA!J19 -> 2 | F18: =GALA!M19 -> 6 | G18: =GALA!P19 -> 4 | H18: =GALA!S19 -> 5
B19: Backstroke
A20: 9 | B20: G 10 yrs 2L | C20: =GALA!D21 -> 1 | D20: =GALA!G21 -> 3 | E20: =GALA!J21 -> 2 | F20: =GALA!M21 -> 6 | G20: =GALA!P21 -> 5 | H20: =GALA!S21 -> 4
B21: Breaststroke
A22: 10 | B22: B 10 yrs 2L | C22: =GALA!D23 -> 6 | D22: =GALA!G23 -> 1 | E22: =GALA!J23 -> 2 | F22: =GALA!M23 -> 3 | G22: =GALA!P23 -> 4 | H22: =GALA!S23 -> 5
B23: Breaststroke
A24: 11 | B24: G 9 yrs 4 x 1L | C24: =GALA!D25 -> 2 | D24: =GALA!G25 -> - | E24: =GALA!J25 -> - | F24: =GALA!M25 -> - | G24: =GALA!P25 -> 3 | H24: =GALA!S25 -> 1
B25: Mixed Stroke Relay
A26: 12 | B26: B 9 yrs 4 x lL | C26: =GALA!D27 -> 3 | D26: =GALA!G27 -> 2 | E26: =GALA!J27 -> - | F26: =GALA!M27 -> - | G26: =GALA!P27 -> 4 | H26: =GALA!S27 -> 1
B27: Mixed Stroke Relay
A28: 13 | B28: G 11/u 4 x lL | C28: =GALA!D29 -> 3 | D28: =GALA!G29 -> 1 | E28: =GALA!J29 -> 4 | F28: =GALA!M29 -> 6 | G28: =GALA!P29 -> 2 | H28: =GALA!S29 -> 5
B29: Freestyle Relay
A30: 14 | B30: B 11/u 4 x 1L | C30: =GALA!D31 -> 6 | D30: =GALA!G31 -> 1 | E30: =GALA!J31 -> 3 | F30: =GALA!M31 -> 5 | G30: =GALA!P31 -> 2 | H30: =GALA!S31 -> 4
B31: Freestyle Relay
A32: 15 | B32: G 12/u 2L | C32: =GALA!D33 -> 6 | D32: =GALA!G33 -> 4 | E32: =GALA!J33 -> 3 | F32: =GALA!M33 -> 1 | G32: =GALA!P33 -> 5 | H32: =GALA!S33 -> 2
B33: Butterfly
A34: 16 | B34: B 12/u 2L | C34: =GALA!D35 -> 4 | D34: =GALA!G35 -> 5 | E34: =GALA!J35 -> 1 | F34: =GALA!M35 -> 2 | G34: =GALA!P35 -> 6 | H34: =GALA!S35 -> 3
B35: Butterfly
A36: 17 | B36: G 10/u 4 x1L | C36: =GALA!D37 -> 3 | D36: =GALA!G37 -> 2 | E36: =GALA!J37 -> 1 | F36: =GALA!M37 -> 5 | G36: =GALA!P37 -> - | H36: =GALA!S37 -> 4
B37: Medley Relay
A38: 18 | B38: B 10/u 4 x 1L | C38: =GALA!D39 -> - | D38: =GALA!G39 -> 1 | E38: =GALA!J39 -> 2 | F38: =GALA!M39 -> - | G38: =GALA!P39 -> 3 | H38: =GALA!S39 -> 4
B39: Medley Relay
A40: 19 | B40: G 11/u 2L | C40: =GALA!D41 -> 5 | D40: =GALA!G41 -> 4 | E40: =GALA!J41 -> 2 | F40: =GALA!M41 -> 6 | G40: =GALA!P41 -> 1 | H40: =GALA!S41 -> 3
B41: Backstroke
A42: 20 | B42: B 11/u 2L | C42: =GALA!D43 -> 2 | D42: =GALA!G43 -> 1 | E42: =GALA!J43 -> 3 | F42: =GALA!M43 -> 6 | G42: =GALA!P43 -> 4 | H42: =GALA!S43 -> 5
B43: Backstroke
A44: 21 | B44: G 9 yrs 4 x 1L | C44: =GALA!D45 -> 4 | D44: =GALA!G45 -> 2 | E44: =GALA!J45 -> 3 | F44: =GALA!M45 -> - | G44: =GALA!P45 -> 5 | H44: =GALA!S45 -> 1
B45: Freestyle Relay
A46: 22 | B46: B 9 yrs 4x1L | C46: =GALA!D47 -> - | D46: =GALA!G47 -> 1 | E46: =GALA!J47 -> - | F46: =GALA!M47 -> - | G46: =GALA!P47 -> 3 | H46: =GALA!S47 -> 2
B47: Freestyle Relay
A48: 23 | B48: G 12/u 2L | C48: =GALA!D49 -> 3 | D48: =GALA!G49 -> 2 | E48: =GALA!J49 -> 5 | F48: =GALA!M49 -> 1 | G48: =GALA!P49 -> - | H48: =GALA!S49 -> 4
B49: Breaststroke
A50: 24 | B50: B 12/u 2L | C50: =GALA!D51 -> 5 | D50: =GALA!G51 -> 2 | E50: =GALA!J51 -> 1 | F50: =GALA!M51 -> 6 | G50: =GALA!P51 -> 4 | H50: =GALA!S51 -> 3
B51: Breaststroke
A52: 25 | B52: G 10yrs 4 x 1L | C52: =GALA!D53 -> 2 | D52: =GALA!G53 -> 1 | E52: =GALA!J53 -> 4 | F52: =GALA!M53 -> - | G52: =GALA!P53 -> 5 | H52: =GALA!S53 -> 3
B53: Freestyle Relay
A54: 26 | B54: B 10yrs 4 x 1L | C54: =GALA!D55 -> - | D54: =GALA!G55 -> 2 | E54: =GALA!J55 -> 3 | F54: =GALA!M55 -> - | G54: =GALA!P55 -> 1 | H54: =GALA!S55 -> 4
B55: Freestyle Relay
A56: 27 | B56: G 11/u 2L | C56: =GALA!D57 -> 2 | D56: =GALA!G57 -> 4 | E56: =GALA!J57 -> 3 | F56: =GALA!M57 -> - | G56: =GALA!P57 -> 1 | H56: =GALA!S57 -> -
B57: Butterfly
A58: 28 | B58: B 11/u 2L | C58: =GALA!D59 -> 5 | D58: =GALA!G59 -> 2 | E58: =GALA!J59 -> 6 | F58: =GALA!M59 -> 4 | G58: =GALA!P59 -> 1 | H58: =GALA!S59 -> 3
B59: Butterfly
A60: 29 | B60: G 9 yrs 1L | C60: =GALA!D61 -> 4 | D60: =GALA!G61 -> 1 | E60: =GALA!J61 -> 2 | F60: =GALA!M61 -> 6 | G60: =GALA!P61 -> 5 | H60: =GALA!S61 -> 3
B61: Butterfly
A62: 30 | B62: B 9 yrs 1L | C62: =GALA!D63 -> 4 | D62: =GALA!G63 -> 3 | E62: =GALA!J63 -> - | F62: =GALA!M63 -> 2 | G62: =GALA!P63 -> - | H62: =GALA!S63 -> 1
B63: Butterfly
A64: 31 | B64: G 12/u 2L | C64: =GALA!D65 -> 1 | D64: =GALA!G65 -> 3 | E64: =GALA!J65 -> 2 | F64: =GALA!M65 -> 6 | G64: =GALA!P65 -> 4 | H64: =GALA!S65 -> 5
B65: Freestyle
A66: 32 | B66: B 12/u 2L | C66: =GALA!D67 -> 5 | D66: =GALA!G67 -> 4 | E66: =GALA!J67 -> 6 | F66: =GALA!M67 -> 1 | G66: =GALA!P67 -> 2 | H66: =GALA!S67 -> 3
B67: Freestyle
A68: 33 | B68: G 8 x 1L | C68: =GALA!D69 -> - | D68: =GALA!G69 -> 1 | E68: =GALA!J69 -> - | F68: =GALA!M69 -> 4 | G68: =GALA!P69 -> 3 | H68: =GALA!S69 -> 2
B69: Freestyle Relay
A70: 34 | B70: B 10 yrs 2L | C70: =GALA!D71 -> 5 | D70: =GALA!G71 -> 3 | E70: =GALA!J71 -> 1 | F70: =GALA!M71 -> - | G70: =GALA!P71 -> 2 | H70: =GALA!S71 -> 4
B71: Backstroke
A72: 35 | B72: G 10 yrs 2L | C72: =GALA!D73 -> 2 | D72: =GALA!G73 -> 1 | E72: =GALA!J73 -> 3 | F72: =GALA!M73 -> 5 | G72: =GALA!P73 -> 4 | H72: =GALA!S73 -> -
B73: Backstroke
A74: 36 | B74: B 9 yrs 1L | C74: =GALA!D75 -> 3 | D74: =GALA!G75 -> 1 | E74: =GALA!J75 -> 5 | F74: =GALA!M75 -> - | G74: =GALA!P75 -> 4 | H74: =GALA!S75 -> 2
B75: Freestyle
A76: 37 | B76: G 9 yrs 1L | C76: =GALA!D77 -> 5 | D76: =GALA!G77 -> 2 | E76: =GALA!J77 -> 1 | F76: =GALA!M77 -> 6 | G76: =GALA!P77 -> 4 | H76: =GALA!S77 -> 3
B77: Freestyle
A78: 38 | B78: B 12/u 4 x 1L | C78: =GALA!D79 -> 6 | D78: =GALA!G79 -> 2 | E78: =GALA!J79 -> 1 | F78: =GALA!M79 -> 3 | G78: =GALA!P79 -> 4 | H78: =GALA!S79 -> 5
B79: Freestyle Relay
A80: 39 | B80: G 12/u 4 x 1L | C80: =GALA!D81 -> - | D80: =GALA!G81 -> 3 | E80: =GALA!J81 -> 2 | F80: =GALA!M81 -> 1 | G80: =GALA!P81 -> 5 | H80: =GALA!S81 -> 4
B81: Freestyle Relay
A82: 40 | B82: B 11/u 2L | C82: =GALA!D83 -> 3 | D82: =GALA!G83 -> 4 | E82: =GALA!J83 -> 6 | F82: =GALA!M83 -> 2 | G82: =GALA!P83 -> 5 | H82: =GALA!S83 -> 1
B83: Breaststroke
A84: 41 | B84: G 11/u 2L | C84: =GALA!D85 -> 5 | D84: =GALA!G85 -> 2 | E84: =GALA!J85 -> 3 | F84: =GALA!M85 -> 6 | G84: =GALA!P85 -> 4 | H84: =GALA!S85 -> 1
B85: Breaststroke
A86: 42 | B86: B 8 x 1L | C86: =GALA!D87 -> 5 | D86: =GALA!G87 -> 1 | E86: =GALA!J87 -> 4 | F86: =GALA!M87 -> - | G86: =GALA!P87 -> 3 | H86: =GALA!S87 -> 2
B87: Freestyle Relay
A88: 43 | B88: G 10 yrs 1L | C88: =GALA!D89 -> 1 | D88: =GALA!G89 -> 3 | E88: =GALA!J89 -> 2 | F88: =GALA!M89 -> 5 | G88: =GALA!P89 -> - | H88: =GALA!S89 -> 4
B89: Butterfly
A90: 44 | B90: B 10 yrs 1L | C90: =GALA!D91 -> 6 | D90: =GALA!G91 -> 5 | E90: =GALA!J91 -> 2 | F90: =GALA!M91 -> 1 | G90: =GALA!P91 -> 4 | H90: =GALA!S91 -> 3
B91: Butterfly
A92: 45 | B92: G 9yrs 1L | C92: =GALA!D93 -> 3 | D92: =GALA!G93 -> 5 | E92: =GALA!J93 -> 1 | F92: =GALA!M93 -> - | G92: =GALA!P93 -> 4 | H92: =GALA!S93 -> 2
B93: Backstroke
A94: 46 | B94: B 9 yrs 1L | C94: =GALA!D95 -> 4 | D94: =GALA!G95 -> 2 | E94: =GALA!J95 -> - | F94: =GALA!M95 -> - | G94: =GALA!P95 -> 3 | H94: =GALA!S95 -> 1
B95: Backstroke
A96: 47 | B96: G 11/u 2L | C96: =GALA!D97 -> 3 | D96: =GALA!G97 -> 2 | E96: =GALA!J97 -> 6 | F96: =GALA!M97 -> 5 | G96: =GALA!P97 -> 1 | H96: =GALA!S97 -> 4
B97: Freestyle
A98: 48 | B98: B 11/u 2L | C98: =GALA!D99 -> 6 | D98: =GALA!G99 -> 1 | E98: =GALA!J99 -> 3 | F98: =GALA!M99 -> 5 | G98: =GALA!P99 -> 2 | H98: =GALA!S99 -> 4
B99: Freestyle
A100: 49 | B100: G 12/u 4x1L | C100: =GALA!D101 -> 6 | D100: =GALA!G101 -> 5 | E100: =GALA!J101 -> 2 | F100: =GALA!M101 -> 1 | G100: =GALA!P101 -> 4 | H100: =GALA!S101 -> 3
B101: Medley Relay
A102: 50 | B102: B 12/u 4x1L | C102: =GALA!D103 -> 6 | D102: =GALA!G103 -> 2 | E102: =GALA!J103 -> 1 | F102: =GALA!M103 -> 3 | G102: =GALA!P103 -> 5 | H102: =GALA!S103 -> 4
B103: Medley Relay
A104: 51 | B104: Mixed 8x1L Freestyle | C104: =GALA!D105 -> 5 | D104: =GALA!G105 -> 1 | E104: =GALA!J105 -> 4 | F104: =GALA!M105 -> 2 | G104: =GALA!P105 -> 6 | H104: =GALA!S105 -> 3
B105: Relay (1G+1B each
B106: age group)
B107: FIRSTS | C107: =COUNTIF(C4:C105,"1") -> 6 | D107: 15 | E107: 8 | F107: 7 | G107: 7 | H107: 8
B108: SECONDS | C108: =COUNTIF(C4:C105,"2") -> 5 | D108: 15 | E108: 12 | F108: 6 | G108: 6 | H108: 7

Sheet GIRLS
A1: No | B1: Event | C1: Lane 1 - | D1: Lane 2 - | E1: Lane 3 - | F1: Lane 4 - | G1: Lane 5 - | H1: Lane 6 -
B3: Club Name | C3: =GALA!C4 ->  | D3: =GALA!F4 ->  | E3: =GALA!I4 ->  | F3: =GALA!L4 ->  | G3: =GALA!O4 ->  | H3: =GALA!R4 -> 
A4: 3 | B4: G 9yrs 1L | C4: =GALA!C9 -> Emilia Skelding | D4: =GALA!F9 -> Harriet Granahan | E4: =GALA!I9 -> Constance Gwillim | F4: =GALA!L9 -> 00:00:00 | G4: =GALA!O9 -> M Khera | H4: =GALA!R9 -> Abigail Bowater
B5: Breaststroke | C5: =GALA!C10 -> 00:00:24.670 | D5: =GALA!F10 -> 00:00:27.840 | E5: =GALA!I10 -> 00:00:26.480 | F5: =GALA!L10 -> 00:00:29.310 | G5: =GALA!O10 -> 00:00:27.560 | H5: =GALA!R10 -> 00:00:26.940
A6: 29 | B6: G 9yrs 1L | C6: =GALA!C61 -> Emilia Skelding | D6: =GALA!F61 -> Esther McGeough | E6: =GALA!I61 -> Constance Gwillim | F6: =GALA!L61 -> 00:00:00 | G6: =GALA!O61 -> K Bell | H6: =GALA!R61 -> Evie-May Smith
B7: Butterfly | C7: =GALA!C62 -> 00:00:28.090 | D7: =GALA!F62 -> 00:00:23.460 | E7: =GALA!I62 -> 00:00:25.650 | F7: =GALA!L62 -> 00:00:36.370 | G7: =GALA!O62 -> 00:00:30.410 | H7: =GALA!R62 -> 00:00:27.130
A8: 35 | B8: G 9 yrs 1L | C8: =GALA!C77 -> Tiffany Latham | D8: =GALA!F77 -> Harriet Granahan | E8: =GALA!I77 -> Cassie Kelly-Cooper | F8: =GALA!L77 -> Lucy Talbot-Fielding | G8: =GALA!O77 -> M Munslow | H8: =GALA!R77 -> Abigail Bowater
B9: Freestyle | C9: =GALA!C78 -> 00:00:21.940 | D9: =GALA!F78 -> 00:00:20.090 | E9: =GALA!I78 -> 00:00:19.650 | F9: =GALA!L78 -> 00:00:26.190 | G9: =GALA!O78 -> 00:00:21.930 | H9: =GALA!R78 -> 00:00:21.440
A10: 43 | B10: G 9 yrs 1L | C10: =GALA!C93 -> Imogen Neal | D10: =GALA!F93 -> Esther McGeough | E10: =GALA!I93 -> Cassie Kelly-Cooper | F10: =GALA!L93 -> Ava Browne | G10: =GALA!O93 -> M Munslow | H10: =GALA!R93 -> Evie-May Smith
B11: Backstroke | C11: =GALA!C94 -> 00:00:24.400 | D11: =GALA!F94 -> 00:00:27.370 | E11: =GALA!I94 -> 00:00:24.200 | F11: =GALA!L94 -> DQ | G11: =GALA!O94 -> 00:00:25.340 | H11: =GALA!R94 -> 00:00:24.210
A13: 1 | B13: G 10yrs 2L | C13: =GALA!C5 -> Faith Shepherd | D13: =GALA!F5 -> Elouise Brookes | E13: =GALA!I5 -> Khloe Deoso | F13: =GALA!L5 -> Waleeha Qaiser | G13: =GALA!O5 -> S Warrilow | H13: =GALA!R5 -> Scarlett Fletcher
B14: Freestyle | C14: =GALA!C6 -> 00:00:36.370 | D14: =GALA!F6 -> 00:00:37.020 | E14: =GALA!I6 -> 00:00:37.280 | F14: =GALA!L6 -> 00:01:00.970 | G14: =GALA!O6 -> 00:01:20.370 | H14: =GALA!R6 -> 00:00:39.500
A15: 9 | B15: G 10 yrs 2L | C15: =GALA!C21 -> Amber Valletta | D15: =GALA!F21 -> Izzie Wilkinson | E15: =GALA!I21 -> Ayla Goucher | F15: =GALA!L21 -> Neveah Choudhury | G15: =GALA!O21 -> M Khera | H15: =GALA!R21 -> Scarlett Fletcher
B16: Breaststroke | C16: =GALA!C22 -> 00:00:49.470 | D16: =GALA!F22 -> 00:00:55.080 | E16: =GALA!I22 -> 00:00:53.330 | F16: =GALA!L22 -> 00:01:03.440 | G16: =GALA!O22 -> 00:01:02.160 | H16: =GALA!R22 -> 00:00:55.720
A17: 33 | B17: G 10 yrs 2L | C17: =GALA!C73 -> Amber Valletta | D17: =GALA!F73 -> Elloiuse Brookes | E17: =GALA!I73 -> Louise Khrone | F17: =GALA!L73 -> Neveah Choudhury | G17: =GALA!O73 -> S Warrilow | H17: =GALA!R73 -> Lacey Small
B18: Backstroke | C18: =GALA!C74 -> 00:00:46.630 | D18: =GALA!F74 -> 00:00:44.980 | E18: =GALA!I74 -> 00:00:47.480 | F18: =GALA!L74 -> 00:01:03.020 | G18: =GALA!O74 -> 00:01:00.500 | H18: =GALA!R74 -> DQ
A19: 41 | B19: G 10 yrs 1L | C19: =GALA!C89 -> Faith Shepherd | D19: =GALA!F89 -> Hannah Johnson | E19: =GALA!I89 -> Ayla Goucher | F19: =GALA!L89 -> Kiyane Mesref | G19: =GALA!O89 -> 00:00:00 | H19: =GALA!R89 -> Amelie Hemmingway
B20: Butterfly | C20: =GALA!C90 -> 00:00:19.030 | D20: =GALA!F90 -> 00:00:23.330 | E20: =GALA!I90 -> 00:00:20.990 | F20: =GALA!L90 -> 00:00:42.120 | G20: =GALA!O90 -> DNS | H20: =GALA!R90 -> 00:00:25.650
A22: 19 | B22: G 11/u 2L | C22: =GALA!C41 -> Isobelle Carpenter-Clay | D22: =GALA!F41 -> Molly Kirkland | E22: =GALA!I41 -> Eleanor Ribchester | F22: =GALA!L41 -> Indigo Perrett | G22: =GALA!O41 -> R Powell | H22: =GALA!R41 -> Eva Browne
B23: Backstroke | C23: =GALA!C42 -> 00:00:46.120 | D23: =GALA!F42 -> 00:00:45.830 | E23: =GALA!I42 -> 00:00:44.820 | F23: =GALA!L42 -> 00:00:53.870 | G23: =GALA!O42 -> 00:00:43.630 | H23: =GALA!R42 -> 00:00:45.090
A24: 27 | B24: G 11/u 2L | C24: =GALA!C57 -> Isobelle Carpenter-Clay | D24: =GALA!F57 -> Sarah Hunt | E24: =GALA!I57 -> Eleanor Ribchester | F24: =GALA!L57 ->  | G24: =GALA!O57 -> E Hendon | H24: =GALA!R57 -> 00:00:00
B25: Butterfly | C25: =GALA!C58 -> 00:00:48.470 | D25: =GALA!F58 -> 00:00:53.940 | E25: =GALA!I58 -> 00:00:50.170 | F25: =GALA!L58 -> DNS | G25: =GALA!O58 -> 00:00:46.750 | H25: =GALA!R58 -> DNS
A26: 39 | B26: G 11/u 2L | C26: =GALA!C85 -> Lilly Neal | D26: =GALA!F85 -> Sarah Hunt | E26: =GALA!I85 -> Megan O'Reilly | F26: =GALA!L85 -> Neveah Choudhury | G26: =GALA!O85 -> A Ingram | H26: =GALA!R85 -> Eva Browne
B27: Breaststroke | C27: =GALA!C86 -> 00:00:53.930 | D27: =GALA!F86 -> 00:00:51.810 | E27: =GALA!I86 -> 00:00:51.880 | F27: =GALA!L86 -> 00:01:04.870 | G27: =GALA!O86 -> 00:00:53.310 | H27: =GALA!R86 -> 00:00:49.310
A28: 45 | B28: G 11/u 2L | C28: =GALA!C97 -> Gracie Bull | D28: =GALA!F97 -> Molly Kirkland | E28: =GALA!I97 -> Cara Miller | F28: =GALA!L97 -> Indigo Perrett | G28: =GALA!O97 -> R Powell | H28: =GALA!R97 -> Hannah Norton
B29: Freestyle | C29: =GALA!C98 -> 00:00:41.460 | D29: =GALA!F98 -> 00:00:38.010 | E29: =GALA!I98 -> 00:00:50.460 | F29: =GALA!L98 -> 00:00:49.130 | G29: =GALA!O98 -> 00:00:37.850 | H29: =GALA!R98 -> 00:00:49
A31: 7 | B31: G 12/u 2L | C31: =GALA!C17 -> Jessica Adcock | D31: =GALA!F17 -> Ellie Chater | E31: =GALA!I17 -> Erin Irving | F31: =GALA!L17 -> AJ Finch | G31: =GALA!O17 -> R Powell | H31: =GALA!R17 -> Esther Cunniffe
B32: Backstroke | C32: =GALA!C18 -> 00:00:41.150 | D32: =GALA!F18 -> 00:00:41.720 | E32: =GALA!I18 -> 00:00:42.300 | F32: =GALA!L18 -> 00:00:39.880 | G32: =GALA!O18 -> 00:00:44.910 | H32: =GALA!R18 -> 00:00:39.190
A33: 15 | B33: G 12/u 2L | C33: =GALA!C33 -> Amber Valletta | D33: =GALA!F33 -> Emily Withey | E33: =GALA!I33 -> Molly Faber | F33: =GALA!L33 -> Charlotte Inshaw | G33: =GALA!O33 -> A Robathan | H33: =GALA!R33 -> Esther Cunniffe
B34: Butterfly | C34: =GALA!C34 -> 00:00:47.600 | D34: =GALA!F34 -> 00:00:46.300 | E34: =GALA!I34 -> 00:00:46.130 | F34: =GALA!L34 -> 00:00:33.750 | G34: =GALA!O34 -> 00:00:47.590 | H34: =GALA!R34 -> 00:00:37.720
A35: 23 | B35: G 12/u 2L | C35: =GALA!C49 -> Libby Wilks | D35: =GALA!F49 -> Emily Withey | E35: =GALA!I49 -> Eve Phillips | F35: =GALA!L49 -> Abigail Tan | G35: =GALA!O49 -> E Rollins | H35: =GALA!R49 -> Olivia Samuels
B36: Breaststroke | C36: =GALA!C50 -> 00:00:48.440 | D36: =GALA!F50 -> 00:00:47.380 | E36: =GALA!I50 -> 00:00:51.950 | F36: =GALA!L50 -> 00:00:39.310 | G36: =GALA!O50 -> DQ | H36: =GALA!R50 -> 00:00:50.440
A37: 29 | B37: G 12/u 2L | C37: =GALA!C61 -> Emilia Skelding | D37: =GALA!F61 -> Esther McGeough | E37: =GALA!I61 -> Constance Gwillim | F37: =GALA!L61 -> 00:00:00 | G37: =GALA!O61 -> K Bell | H37: =GALA!R61 -> Evie-May Smith
B38: Freestyle | C38: =GALA!C62 -> 00:00:28.090 | D38: =GALA!F62 -> 00:00:23.460 | E38: =GALA!C62 -> 00:00:28.090 | F38: =GALA!L62 -> 00:00:36.370 | G38: =GALA!O62 -> 00:00:30.410 | H38: =GALA!R62 -> 00:00:27.130

Sheet BOYS
A1: No | B1: Event
C2: Lane 1 - | D2: Lane 2 - | E2: Lane 3 - | F2: Lane 4 - | G2: Lane 5 - | H2: Lane 6 -
B3: Club Name | C3: =GALA!C4 ->  | D3: =GALA!F4 ->  | E3: =GALA!I4 ->  | F3: =GALA!L4 ->  | G3: =GALA!O4 ->  | H3: =GALA!R4 -> 
A4: 4 | B4: B 9 yrs 1L | C4: =GALA!C11 -> Christian Neal | D4: =GALA!F11 -> Harry Chruchley | E4: =GALA!I11 -> Ethan Ryan | F4: =GALA!L11 -> James Inshaw | G4: =GALA!O11 -> J Watson | H4: =GALA!R11 -> Leo Gamage
B5: Breaststroke | C5: =GALA!C12 -> 00:00:31.680 | D5: =GALA!F12 -> 00:00:28.760 | E5: =GALA!I12 -> DQ | F5: =GALA!L12 -> 00:00:23.190 | G5: =GALA!O12 -> 00:00:25.690 | H5: =GALA!R12 -> 00:00:28.460
A6: 30 | B6: B 9 yrs 1L | C6: =GALA!C63 -> Adam Walker | D6: =GALA!F63 -> Oliver Jennings | E6: =GALA!I63 ->  | F6: =GALA!L63 -> James Inshaw | G6: =GALA!O63 ->  | H6: =GALA!R63 -> Willem Cunniffe
B7: Butterfly | C7: =GALA!C64 -> 00:00:30.900 | D7: =GALA!F64 -> 00:00:22.630 | E7: =GALA!I64 -> DNS | F7: =GALA!L64 -> 00:00:21.250 | G7: =GALA!O64 -> DNS | H7: =GALA!R64 -> 00:00:19.810
A8: 34 | B8: B 9 yrs 1L | C8: =GALA!C75 -> Adam Walker | D8: =GALA!F75 -> Oliver Jennings | E8: =GALA!I75 -> Ethan Ryan | F8: =GALA!L75 -> 00:00:00 | G8: =GALA!O75 -> J Watson | H8: =GALA!R75 -> Willem Cunniffe
B9: Freestyle | C9: =GALA!C76 -> 00:00:20.410 | D9: =GALA!F76 -> 00:00:17.320 | E9: =GALA!I76 -> 00:00:32.460 | F9: =GALA!L76 -> DNS | G9: =GALA!O76 -> 00:00:22.030 | H9: =GALA!R76 -> 00:00:18.370
A10: 44 | B10: B 9 yrs 1L | C10: =GALA!C95 -> Oscar Yates | D10: =GALA!F95 -> Callum Anderson | E10: =GALA!I95 ->  | F10: =GALA!L95 -> Luka Prodan | G10: =GALA!O95 -> N Kalitat | H10: =GALA!R95 -> Finley Cowdell
B11: Backstroke | C11: =GALA!C96 -> 00:00:29.470 | D11: =GALA!F96 -> 00:00:27.060 | E11: =GALA!I96 -> DNS | F11: =GALA!L96 -> DNS | G11: =GALA!O96 -> 00:00:27.470 | H11: =GALA!R96 -> 00:00:24.050
A13: 2 | B13: B 10 yrs 2L | C13: =GALA!C7 -> Zac Matthews | D13: =GALA!F8 -> 00:00:42.150 | E13: =GALA!I7 -> Toru Ashton | F13: =GALA!L7 -> Veer Mulji | G13: =GALA!O7 -> 00:00:00 | H13: =GALA!R7 -> Archie Hudson
B14: Freestyle | C14: =GALA!C8 -> DQ | D14: =GALA!#REF! ->  | E14: =GALA!I8 -> 00:00:41.220 | F14: =GALA!L8 -> 00:00:40.750 | G14: =GALA!O8 -> 00:00:38.500 | H14: =GALA!R8 -> 00:00:44.400
A15: 10 | B15: B 10 yrs 2L | C15: =GALA!C23 -> Adam Walker | D15: =GALA!F23 -> Charlie Hodgetts | E15: =GALA!I23 -> Keiran O'Reilly | F15: =GALA!L23 -> Joe Box | G15: =GALA!O23 -> W Bottrill | H15: =GALA!R23 -> Musa Yusopov
B16: Breaststroke | C16: =GALA!C24 -> 00:00:58.590 | D16: =GALA!F24 -> 00:00:46.710 | E16: =GALA!I24 -> 00:00:49.070 | F16: =GALA!L24 -> 00:00:49.370 | G16: =GALA!O24 -> 00:00:53.880 | H16: =GALA!R24 -> 00:00:58.570
A17: 32 | B17: B 10 yrs 2L | C17: =GALA!C71 -> Riley Binks | D17: =GALA!F71 -> Christian Morgan | E17: =GALA!I71 -> Luke Burton | F17: =GALA!L71 -> Veer Mulji | G17: =GALA!O71 -> T Mobbs | H17: =GALA!R71 -> Musa Yusopov
B18: Backstroke | C18: =GALA!C72 -> 00:00:54.510 | D18: =GALA!F72 -> 00:00:46.960 | E18: =GALA!I72 -> 00:00:45.630 | F18: =GALA!L72 -> DQ | G18: =GALA!O72 -> 00:00:45.640 | H18: =GALA!R72 -> 00:00:53.060
A19: 42 | B19: B 10 yrs 1L | C19: =GALA!C91 -> Christian Neal | D19: =GALA!F91 -> Christian Morgan | E19: =GALA!I91 -> Kieran O'Reilly | F19: =GALA!L91 -> Joe Box | G19: =GALA!O91 -> T Mobbs | H19: =GALA!R91 -> Willem Cunniffe
B20: Butterfly | C20: =GALA!C92 -> 00:00:31.490 | D20: =GALA!F92 -> 00:00:23.890 | E20: =GALA!I92 -> 00:00:19.370 | F20: =GALA!L92 -> 00:00:17.500 | G20: =GALA!O92 -> 00:00:21.910 | H20: =GALA!R92 -> 00:00:19.440
A22: 20 | B22: B 11/u 2L | C22: =GALA!C43 -> Alex Walker | D22: =GALA!F43 -> Reece Johnson | E22: =GALA!I43 -> Thomas Ribchester | F22: =GALA!L43 -> Riley Talbot-Fielding | G22: =GALA!O43 -> H Bottrill | H22: =GALA!R43 -> Matthew Bowater
B23: Backstroke | C23: =GALA!C44 -> 00:00:40.900 | D23: =GALA!F44 -> 00:00:37.810 | E23: =GALA!I44 -> 00:00:44.310 | F23: =GALA!L44 -> 00:00:53.560 | G23: =GALA!O44 -> 00:00:45.530 | H23: =GALA!R44 -> 00:00:46.580
A24: 28 | B24: B 11/u 2L | C24: =GALA!C59 -> Alex Walker | D24: =GALA!F59 -> Reece Johnson | E24: =GALA!I59 -> Sonny Butcher | F24: =GALA!L59 -> Issac Walton | G24: =GALA!O59 -> B Webb | H24: =GALA!R59 -> Tom Lucas
B25: Butterfly | C25: =GALA!C60 -> 00:00:45.370 | D25: =GALA!F60 -> 00:00:41.290 | E25: =GALA!I60 -> 00:00:51.200 | F25: =GALA!L60 -> 00:00:43.190 | G25: =GALA!O60 -> 00:00:38.720 | H25: =GALA!R60 -> 00:00:42.900
A26: 38 | B26: B 11/u 2L | C26: =GALA!C83 -> Lachlin Woodend | D26: =GALA!F83 -> Sam Withey | E26: =GALA!I83 -> Sonny Butcher | F26: =GALA!L83 -> Issac Walton | G26: =GALA!O83 -> A Guild | H26: =GALA!R83 -> Harvie Lal
B27: Breaststroke | C27: =GALA!C84 -> 00:00:48.700 | D27: =GALA!F84 -> 00:00:49.460 | E27: =GALA!I84 -> 00:00:55.220 | F27: =GALA!L84 -> 00:00:48.560 | G27: =GALA!O84 -> 00:00:52.250 | H27: =GALA!R84 -> 00:00:46.250
A28: 46 | B28: B 11/u 2L | C28: =GALA!C99 -> Lachlin Woodend | D28: =GALA!F99 -> Sam Withey | E28: =GALA!I99 -> Thomas Ribchester | F28: =GALA!L99 -> Riley Talbot-Fielding | G28: =GALA!O99 -> B Webb | H28: =GALA!R99 -> Tom Lucas
B29: Freestyle | C29: =GALA!C100 -> 00:00:40.020 | D29: =GALA!F100 -> 00:00:33 | E29: =GALA!I100 -> 00:00:36.720 | F29: =GALA!L100 -> 00:00:39.750 | G29: =GALA!O100 -> 00:00:33.500 | H29: =GALA!R100 -> 00:00:37.580
A31: 8 | B31: B 12/u 2L | C31: =GALA!C19 -> Alex Walker | D31: =GALA!F19 -> Sam Nicholson | E31: =GALA!I19 -> Thomas Collerhan | F31: =GALA!L19 -> Michael Bushael | G31: =GALA!O19 -> H Bottrill | H31: =GALA!R19 -> Adam Whitehouse
B32: Backstroke | C32: =GALA!C20 -> 00:00:39.540 | D32: =GALA!F20 -> 00:00:43.380 | E32: =GALA!I20 -> 00:00:40.650 | F32: =GALA!L20 -> 00:00:47.250 | G32: =GALA!O20 -> 00:00:44.380 | H32: =GALA!R20 -> 00:00:45.810
A33: 16 | B33: B 12/u 2L | C33: =GALA!C35 -> Solomon Mansfield | D33: =GALA!F35 -> Harvey Ashead | E33: =GALA!I35 -> Dylan Abulencia | F33: =GALA!L35 -> Alfiie Cowie | G33: =GALA!O35 -> C Fletcher | H33: =GALA!R35 -> Luca Whaley
B34: Butterfly | C34: =GALA!C36 -> 00:00:43.840 | D34: =GALA!F36 -> 00:00:44.460 | E34: =GALA!I36 -> 00:00:35.350 | F34: =GALA!L36 -> 00:00:36.380 | G34: =GALA!O36 -> 00:00:46.100 | H34: =GALA!R36 -> 00:00:38.590
A35: 24 | B35: B 12/u 2L | C35: =GALA!C51 -> Lachlin Woodend | D35: =GALA!F51 -> Harvey Ashead | E35: =GALA!I51 -> Dylan Abulencia | F35: =GALA!L51 -> Michael Dutton | G35: =GALA!O51 -> C Fletcher | H35: =GALA!R51 -> Harvie Lal
B36: Breaststroke | C36: =GALA!C52 -> 00:00:50.040 | D36: =GALA!F52 -> 00:00:43.610 | E36: =GALA!I52 -> 00:00:40.240 | F36: =GALA!L52 -> 00:00:55.120 | G36: =GALA!O52 -> 00:00:49.940 | H36: =GALA!R52 -> 00:00:46.190
A37: 30 | B37: B 12/u 2L | C37: =GALA!C67 -> Solomon Mansfield | D37: =GALA!F67 -> Sam Nicholson | E37: =GALA!I67 -> Aiden Irving | F37: =GALA!L67 -> Alfiie Cowie | G37: =GALA!O67 -> B Webb | H37: =GALA!R67 -> Luca Whaley
B38: Freestyle | C38: =GALA!C68 -> 00:00:35.430 | D38: =GALA!F68 -> 00:00:35.080 | E38: =GALA!I68 -> 00:00:35.440 | F38: =GALA!L68 -> 00:00:32.500 | G38: =GALA!O68 -> 00:00:33.290 | H38: =GALA!R68 -> 00:00:34.560

Sheet Lane 1
B1: Club Name
B2: Lane No: 1
A3: 1 | B3: G 10yrs 2L | C3: Scarlett Fletcher
B4: Freestyle
A5: 2 | B5: B 10/u 2L | C5: Archie Hudson
B6: Freestyle
A7: 3 | B7: G 9 yrs 1L | C7: Abigail Bowater
B8: Breaststroke
A9: 4 | B9: B 9 yrs 1L | C9: Leo Gamage
B10: Breaststroke
A11: 5 | B11: G 11/u 4 x 1L | C11: Relay | D11: Hannah Norton | E11: Eva Browne | F11: Scarlett Fletcher | G11: Libby-Jo Edwards
B12: Medley Relay
A13: 6 | B13: B 11/u 4 x 1L | C13: Relay | D13: Matthew Bowater | E13: Harvie Lal | F13: Tom Lucas | G13: Harry Lange
B14: Medley Relay
A15: 7 | B15: G 12/u 2L | C15: Esther Cunniffe
B16: Backstroke
A17: 8 | B17: B 12/u 2L | C17: Adam Whitehouse
B18: Backstroke
A19: 9 | B19: G 10/u 2L | C19: Scarlett Fletcher
B20: Breaststroke
A21: 10 | B21: B 10/u 2L | C21: Musa Yusopov
B22: Breaststroke
A23: 11 | B23: G 9 yrs 4 x 1L | C23: Relay | D23: Abigail Bowater | E23: Evie-May Smith | F23: Amelie Hemmingway | G23: Michaela Farrell
B24: Medley Relay
A25: 12 | B25: B 9 yrs 4 x lL | C25: Relay | D25: Willem Cunniffe | E25: Leo Gamage | F25: Finley Cowdell | G25: Benjamin Walker
B26: Medley Relay
A27: 13 | B27: G 11/u 4 x lL | C27: Relay | D27: Eva Browne | E27: Libby-Jo Edwards | F27: Jessica Key | G27: Hannah Norton
B28: Freestyle Relay
A29: 14 | B29: B 11/u 4 x 1L | C29: Relay | D29: Tom Lucas | E29: Harvie Lal | F29: Matthew Bowater | G29: Harry Lange
B30: Freestyle Relay
A31: 15 | B31: G 12/u 2L | C31: Esther Cunniffe
B32: Butterfly
A33: 16 | B33: B 12/u 2L | C33: Luca Whaley
B34: Butterfly
A35: 17 | B35: G 10/u 4 x1L | C35: Relay | D35: Amelie Hemmingway | E35: Lacey Small | F35: Evie-May Smith | G35: Scarlett Fletcher
B36: Medley Relay
A37: 18 | B37: B 10/u 4 x 1L | C37: Relay | D37: Willem Cunniffe | E37: Musa Yusopov | F37: Finley Cowdell | G37: Archie Hudson
B38: Medley Relay
A39: 19 | B39: G 11/u 2L | C39: Eva Browne
B40: Backstroke
A41: 20 | B41: B 11/u 2L | C41: Matthew Bowater
B42: Backstroke
A43: 21 | B43: G 9 yrs 4 x 1L | C43: Relay | D43: Evie-May Smith | E43: Michaela Farrell | F43: Amelie Hemmingway | G43: Abigail Bowater
B44: Freestyle Relay
A45: 22 | B45: B 9 yrs 4x1L | C45: Relay | D45: Willem Cunniffe | E45: Benjamin Walker | F45: Finley Cowdell | G45: Leo Gamage
B46: Freestyle Relay
A47: 23 | B47: G 12/u 2L | C47: Olivia Samuels
B48: Breaststroke
A49: 24 | B49: B 12/u 2L | C49: Harvie Lal
B50: Breaststroke
A51: 25 | B51: G 10yrs 4 x 1L | C51: Relay | D51: Scarlett Fletcher | E51: Lacey Small | F51: Jessica Key | G51: Michaela Farrell
B52: Freestyle Relay
A53: 26 | B53: B 10yrs 4 x 1L | C53: Relay | D53: Leo Gamage | E53: Benjamin Walker | F53: Musa Yusopov | G53: Archie Hudson
B54: Freestyle Relay
A55: 27 | B55: G 11/u 2L
B56: Butterfly
A57: 28 | B57: B 11/u 2L | C57: Tom Lucas
B58: Butterfly
A59: 29 | B59: G 9 yrs 1L | C59: Evie-May Smith
B60: Butterfly
A61: 30 | B61: B 9 yrs 1L | C61: Willem Cunniffe
B62: Butterfly
A63: 31 | B63: G 12/u 2L | C63: Sarah Tavares
B64: Freestyle
A65: 32 | B65: B 12/u 2L | C65: Luca Whaley
B66: Freestyle
A67: 33 | B67: G 8 x 1L | C67: Relay | D67: Abigail Bowater | E67: Evie-May Smith | F67: Amelie Hemmingway | G67: Scarlett Fletcher
B68: Freestyle Relay | D68: Libby-Jo Edwards | E68: Eva Browne | F68: Sarah Tavares | G68: Esther Cunniffe
A69: 34 | B69: B 10/u 2L | C69: Musa Yusopov
B70: Backstroke
A71: 35 | B71: G 10/u 2L | C71: Lacey Small
B72: Backstroke
A73: 36 | B73: B 9 yrs 1L | C73: Willem Cunniffe
B74: Freestyle
A75: 37 | B75: G 9 yrs 1L | C75: Abigail Bowater
B76: Freestyle
A77: 38 | B77: B 12/u 4 x 1L | C77: Relay | D77: Tom Lucas | E77: Adam Whitehouse | F77: Imron Yusopov | G77: Luca Whaley
B78: Freestyle Relay
A79: 39 | B79: G 12/u 4 x 1L | C79: Relay | D79: Sarah Tavares | E79: Eva Browne | F79: Esther Cunniffe | G79: Olivia Samuels
B80: Freestyle Relay
A81: 40 | B81: B 11/u 2L | C81: Harvie Lal
B82: Breaststroke
A83: 41 | B83: G 11/u 2L | C83: Eva Browne
B84: Breaststroke
A85: 42 | B85: B 8 x 1L | C85: Relay | D85: Finley Cowdell | E85: Willem Cunniffe | F85: Leo Gamage | G85: Archie Hudson
B86: Freestyle Relay | D86: Harvie Lal | E86: Harry Lange | F86: Tom Lucas | G86: Luca Whaley
A87: 43 | B87: G 10/u 1L | C87: Amelie Hemmingway
B88: Butterfly
A89: 44 | B89: B 10/u 1L | C89: Willem Cunniffe
B90: Butterfly
A91: 45 | B91: G 9yrs 1L | C91: Evie-May Smith
B92: Backstroke
A93: 46 | B93: B 9 yrs 1L | C93: Finley Cowdell
B94: Backstroke
A95: 47 | B95: G 11/u 2L | C95: Hannah Norton
B96: Freestyle
A97: 48 | B97: B 11/u 2L | C97: Tom Lucas
B98: Freestyle
A99: 49 | B99: G 12/u 4x1L | C99: Relay | D99: Eva Browne | E99: Sarah Tavares | F99: Esther Cunniffe | G99: Olivia Samuels
B100: Medley Relay
A101: 50 | B101: B 12/u 4x1L | C101: Relay | D101: Matthew Bowater | E101: Harvie Lal | F101: Luca Whaley | G101: Imron Yusupov
B102: Medley Relay
A103: 51 | B103: Mixed 8x1L Freestyle | C103: Relay | D103: Amelie Hemmingway | E103: Benjamin Walker | F103: Lacey Small | G103: Musa Yusopov
B104: Relay (1G+1B each age group) | D104: Hannah Norton | E104: Adam Whitehouse | F104: Esther Cunniffe | G104: Luca Whaley

Sheet Lane 2
B1: Club Name
B2: Lane No:
A3: 1 | B3: G 10yrs 2L | C3: Faith Shepherd
B4: Freestyle
A5: 2 | B5: B 10/u 2L | C5: Zac Matthews
B6: Freestyle
A7: 3 | B7: G 9 yrs 1L | C7: Emilia Skelding
B8: Breaststroke
A9: 4 | B9: B 9 yrs 1L | C9: Christian Neal
B10: Breaststroke
A11: 5 | B11: G 11/u 4 x 1L | C11: Relay | D11: Ruby Wollaston | E11: Zara Merrick
B12: Medley Relay | D12: Isabelle Carpenter-Clay | E12: Gracie Bull
A13: 6 | B13: B 11/u 4 x 1L | C13: Relay | D13: Cleeve Poxon | E13: Lochlan Woodend
B14: Medley Relay | D14: Alex Walker | E14: Ismail Ali
A15: 7 | B15: G 12/u 2L | C15: Jessica Adcock
B16: Backstroke
A17: 8 | B17: B 12/u 2L | C17: Alex Walker
B18: Backstroke
A19: 9 | B19: G 10/u 2L | C19: Amber Valletta
B20: Breaststroke
A21: 10 | B21: B 10/u 2L | C21: Adam Walker
B22: Breaststroke
A23: 11 | B23: G 9 yrs 4 x 1L | C23: Relay | D23: Demi Hood | E23: Natalie Holiday
B24: Medley Relay | D24: Emilia Skelding | E24: Tamar Davis
A25: 12 | B25: B 9 yrs 4 x lL | C25: Relay | D25: Oscar Yates | E25: Christian Neal
B26: Medley Relay | D26: Adam Walker | E26: Riley Binks
A27: 13 | B27: G 11/u 4 x lL | D27: Gracie Bull | E27: Lily Neal
B28: Freestyle Relay | C28: Relay | D28: Zara Merrick | E28: Ruby Woolaston
A29: 14 | B29: B 11/u 4 x 1L | D29: Alex Walker | E29: Cleeve Poxon
B30: Freestyle Relay | C30: Relay | D30: Lachlin Woodend | E30: Zac Matthews
A31: 15 | B31: G 12/u 2L | C31: Amber Valletta
B32: Butterfly
A33: 16 | B33: B 12/u 2L | C33: Solomon Mansfield
B34: Butterfly
A35: 17 | B35: G 10/u 4 x1L | C35: Relay | D35: Imogen Neal | E35: Amber Valletta
B36: Medley Relay | D36: Faith Shepherd | E36: Tiffany Latham
A37: 18 | B37: B 10/u 4 x 1L | C37: Relay | D37: Riley Binks | E37: Zac Matthews
B38: Medley Relay | D38: Adam Walker | E38: Christian Neal
A39: 19 | B39: G 11/u 2L | C39: Isobelle Carpenter-Clay
B40: Backstroke
A41: 20 | B41: B 11/u 2L | C41: Alex Walker
B42: Backstroke
A43: 21 | B43: G 9 yrs 4 x 1L | C43: Relay | D43: Imogen Neal | E43: Leah Harris
B44: Freestyle Relay | D44: Demi Hood | E44: Tiffany Latham
A45: 22 | B45: B 9 yrs 4x1L | C45: Relay | D45: Adam Walker | E45: Christian Neal
B46: Freestyle Relay | D46: Oscar Yates | E46: Riley Binks
A47: 23 | B47: G 12/u 2L | C47: Libby Wilks
B48: Breaststroke
A49: 24 | B49: B 12/u 2L | C49: Lachlin Woodend
B50: Breaststroke
A51: 25 | B51: G 10yrs 4 x 1L | C51: Relay | D51: Faith Shepherd | E51: Emily Skelding
B52: Freestyle Relay | D52: Natalie Holiday | E52: Amber Valletta
A53: 26 | B53: B 10yrs 4 x 1L | C53: Relay | D53: Riley Binks | E53: Zac Matthews
B54: Freestyle Relay | D54: Oscar Yates | E54: Christian Neal
A55: 27 | B55: G 11/u 2L | C55: Isobelle Carpenter-Clay
B56: Butterfly
A57: 28 | B57: B 11/u 2L | C57: Alex Walker
B58: Butterfly
A59: 29 | B59: G 9 yrs 1L | C59: Emilia Skelding
B60: Butterfly
A61: 30 | B61: B 9 yrs 1L | C61: Adam Walker
B62: Butterfly
A63: 31 | B63: G 12/u 2L | C63: Libby Wilks
B64: Freestyle
A65: 32 | B65: B 12/u 2L | C65: Solomon Mansfield
B66: Freestyle
A67: 33 | B67: G 8 x 1L | C67: Relay | D67: Tamar Davis | E67: Emily Skelding | F67: Lilly Neal | G67: Jessica Adcock
B68: Freestyle Relay | D68: Leah Harris | E68: Faith Shepherd | F68: Ruby Woolaston | G68: Libbie Wilks
A69: 34 | B69: B 10/u 2L | C69: Riley Binks
B70: Backstroke
A71: 35 | B71: G 10/u 2L | C71: Amber Valletta
B72: Backstroke
A73: 36 | B73: B 9 yrs 1L | C73: Adam Walker
B74: Freestyle
A75: 37 | B75: G 9 yrs 1L | C75: Tiffany Latham
B76: Freestyle
A77: 38 | B77: B 12/u 4 x 1L | C77: Relay | D77: Alex Walker | E77: Lachlin Woodend
B78: Freestyle Relay | D78: Rehan Ali | E78: Solomon Mansfield
A79: 39 | B79: G 12/u 4 x 1L | C79: Relay | D79: Libbie Wilks | E79: Gracie Bull
B80: Freestyle Relay | D80: Zara Merrick | E80: Jessica Adcock
A81: 40 | B81: B 11/u 2L | C81: Lachlin Woodend
B82: Breaststroke
A83: 41 | B83: G 11/u 2L | C83: Lilly Neal
B84: Breaststroke
A85: 42 | B85: B 8 x 1L | C85: Relay | D85: Christian Neal | E85: Riley Binks | F85: Cleeve Poxon | G85: Alex Walker
B86: Freestyle Relay | D86: Oscar Yates | E86: Zac Matthews | F86: Lachlin Woodend | G86: Solomon Mansfield
A87: 43 | B87: G 10/u 1L | C87: Faith Shepherd
B88: Butterfly
A89: 44 | B89: B 10/u 1L | C89: Christian Neal
B90: Butterfly
A91: 45 | B91: G 9yrs 1L | C91: Imogen Neal
B92: Backstroke
A93: 46 | B93: B 9 yrs 1L | C93: Oscar Yates
B94: Backstroke
A95: 47 | B95: G 11/u 2L | C95: Gracie Bull
B96: Freestyle
A97: 48 | B97: B 11/u 2L | C97: Lachlin Woodend
B98: Freestyle
A99: 49 | B99: G 12/u 4x1L | C99: Relay | D99: Jessica Adcock | E99: Lilly Neal
B100: Medley Relay | D100: Isabelle Carpenter-Clay | E100: Libbie Wilks
A101: 50 | B101: B 12/u 4x1L | C101: Relay | D101: Alex Walker | E101: Lachlin Woodend
B102: Medley Relay | D102: Solomon Mansfield | E102: Rehan Ali
A103: 51 | B103: Mixed 8x1L Freestyle | C103: Relay | D103: Emilia Skelding | E103: Faith Shepherd | F103: Zara Merrick | G103: Jessica Adcock
B104: Relay (1G+1B each age group) | D104: Christian Neal | E104: Adam Walker | F104: Alex Walker | G104: Solomon Mansfield

Sheet Lane 3
B1: Club Name
B2: Lane No:
A3: 1 | B3: G 10yrs 2L | C3: Elouise Brookes
B4: Freestyle
A5: 2 | B5: B 10/u 2L | C5: Charlie Hodgetts
B6: Freestyle
A7: 3 | B7: G 9 yrs 1L | C7: Harriet Granahan
B8: Breaststroke
A9: 4 | B9: B 9 yrs 1L | C9: Harry Chruchley
B10: Breaststroke
A11: 5 | B11: G 11/u 4 x 1L | C11: Relay | D11: Molly Kirkland | E11: Libby Edward
B12: Medley Relay | D12: Sarah Hunt | E12: Caitlin O'Hara
A13: 6 | B13: B 11/u 4 x 1L | C13: Relay | D13: Finly Morgan | E13: Saam Withey
B14: Medley Relay | D14: Reece Johnson | E14: Lucas Preece
A15: 7 | B15: G 12/u 2L | C15: Ellie Chater
B16: Backstroke
A17: 8 | B17: B 12/u 2L | C17: Sam Nicholson
B18: Backstroke
A19: 9 | B19: G 10/u 2L | C19: Izzie Wilkinson
B20: Breaststroke
A21: 10 | B21: B 10/u 2L | C21: Charlie Hodgetts
B22: Breaststroke
A23: 11 | B23: G 9 yrs 4 x 1L | C23: Relay | D23: Jessica Connor | E23: Harriet Granahan
B24: Medley Relay | D24: Ester McGeough | E24: Pheobe Chater
A25: 12 | B25: B 9 yrs 4 x lL | C25: Relay | D25: Callum Anderson | E25: Harry Churchley
B26: Medley Relay | D26: Oliver Jennings | E26: Finlay Johnson
A27: 13 | B27: G 11/u 4 x lL | D27: Libby Edwards | E27: Caitlin O'Hara
B28: Freestyle Relay | C28: Relay | D28: Molly Kirkland | E28: Sarah Hunt
A29: 14 | B29: B 11/u 4 x 1L | D29: Lucas Preece | E29: Finlay Morgan
B30: Freestyle Relay | C30: Relay | D30: Sam Withey | E30: Reece Johnson
A31: 15 | B31: G 12/u 2L | C31: Emily Withey
B32: Butterfly
A33: 16 | B33: B 12/u 2L | C33: Harvey Ashead
B34: Butterfly
A35: 17 | B35: G 10/u 4 x1L | C35: Relay | D35: Elouise Brookes | E35: Izzie Wilkinson
B36: Medley Relay | D36: Hannah Johnson | E36: Cerys Bates
A37: 18 | B37: B 10/u 4 x 1L | C37: Relay | D37: Finly Morgan | E37: Charlie Hodgetts
B38: Medley Relay | D38: Christian Morgan | E38: Blake Haddrell
A39: 19 | B39: G 11/u 2L | C39: Molly Kirkland
B40: Backstroke
A41: 20 | B41: B 11/u 2L | C41: Reece Johnson
B42: Backstroke
A43: 21 | B43: G 9 yrs 4 x 1L | C43: Relay | D43: Jessica Connor | E43: Pheobe Chater
B44: Freestyle Relay | D44: Ester McGeough | E44: Finley Massey
A45: 22 | B45: B 9 yrs 4x1L | C45: Relay | D45: Ben Chancellor | E45: Finlay Johnson
B46: Freestyle Relay | D46: Callum Anderson | E46: Harry Churchley
A47: 23 | B47: G 12/u 2L | C47: Emily Withey
B48: Breaststroke
A49: 24 | B49: B 12/u 2L | C49: Harvey Ashead
B50: Breaststroke
A51: 25 | B51: G 10yrs 4 x 1L | C51: Relay | D51: Cerys Bates | E51: Hannah Johnson
B52: Freestyle Relay | D52: Elloiuse Brookes | E52: Izzie Wilkinson
A53: 26 | B53: B 10yrs 4 x 1L | C53: Relay | D53: Charlie Hodgetts | E53: Blake Haddrell
B54: Freestyle Relay | D54: Christian Morgan | E54: Finlay Morgan
A55: 27 | B55: G 11/u 2L | C55: Sarah Hunt
B56: Butterfly
A57: 28 | B57: B 11/u 2L | C57: Reece Johnson
B58: Butterfly
A59: 29 | B59: G 9 yrs 1L | C59: Esther McGeough
B60: Butterfly
A61: 30 | B61: B 9 yrs 1L | C61: Oliver Jennings
B62: Butterfly
A63: 31 | B63: G 12/u 2L | C63: Ellie Chater
B64: Freestyle
A65: 32 | B65: B 12/u 2L | C65: Sam Nicholson
B66: Freestyle
A67: 33 | B67: G 8 x 1L | C67: Relay | D67: Finlay Massey | E67: Harriot Granahan | F67: Hannah Johnson | G67: Cerys Bates
B68: Freestyle Relay | D68: Caitlin O'Hara | E68: Libby Edwards | F68: Freya Burns | G68: Olivia Massey
A69: 34 | B69: B 10/u 2L | C69: Christian Morgan
B70: Backstroke
A71: 35 | B71: G 10/u 2L | C71: Elloiuse Brookes
B72: Backstroke
A73: 36 | B73: B 9 yrs 1L | C73: Oliver Jennings
B74: Freestyle
A75: 37 | B75: G 9 yrs 1L | C75: Harriet Granahan
B76: Freestyle
A77: 38 | B77: B 12/u 4 x 1L | C77: Relay | D77: Freya Burns | E77: Olivia Massey
B78: Freestyle Relay | D78: Ellie Chater | E78: Emily Withey
A79: 39 | B79: G 12/u 4 x 1L | C79: Relay | D79: Max York | E79: Alfie Swann
B80: Freestyle Relay | D80: Sam Nicolson | E80: Harbey Ashead
A81: 40 | B81: B 11/u 2L | C81: Sam Withey
B82: Breaststroke
A83: 41 | B83: G 11/u 2L | C83: Sarah Hunt
B84: Breaststroke
A85: 42 | B85: B 8 x 1L | C85: Relay | D85: Ben Chancellor | E85: Callum Anderson | F85: Blake Haddrell | G85: Charlie Hodgetts
B86: Freestyle Relay | D86: Lucas Preece | E86: Reece Johnson | F86: Max York | G86: Alfie Swann
A87: 43 | B87: G 10/u 1L | C87: Hannah Johnson
B88: Butterfly
A89: 44 | B89: B 10/u 1L | C89: Christian Morgan
B90: Butterfly
A91: 45 | B91: G 9yrs 1L | C91: Esther McGeough
B92: Backstroke
A93: 46 | B93: B 9 yrs 1L | C93: Callum Anderson
B94: Backstroke
A95: 47 | B95: G 11/u 2L | C95: Molly Kirkland
B96: Freestyle
A97: 48 | B97: B 11/u 2L | C97: Sam Withey
B98: Freestyle
A99: 49 | B99: G 12/u 4x1L | C99: Relay | D99: Ellie Chater | E99: Emily Withey
B100: Medley Relay | D100: Olivia Massey | E100: Freya Burns
A101: 50 | B101: B 12/u 4x1L | C101: Relay | D101: Sam Nicholson | E101: Alfie Swann
B102: Medley Relay | D102: Harvey Ashead. | E102: Max York
A103: 51 | B103: Mixed 8x1L Freestyle | C103: Relay | D103: Harriot Granahan | E103: Oliver Jennings | F103: Elloiuse Brookes | G103: Charlie Hodgetts
B104: Relay (1G+1B each age group) | D104: Sarah Hunt | E104: Reece Johnson | F104: Ellie Chater | G104: Sam Nicolson

Sheet Lane 4
B1: Club Name
B2: Lane No:
A3: 1 | B3: G 10yrs 2L | C3: Khloe Deoso
B4: Freestyle
A5: 2 | B5: B 10/u 2L | C5: Toru Ashton
B6: Freestyle
A7: 3 | B7: G 9 yrs 1L | C7: Constance Gwillim
B8: Breaststroke
A9: 4 | B9: B 9 yrs 1L | C9: Ethan Ryan
B10: Breaststroke
A11: 5 | B11: G 11/u 4 x 1L | C11: Relay | D11: Cara Miller | E11: Megan O'Reilly
B12: Medley Relay | D12: Eleanor Ribchester | E12: Maddie Bowler
A13: 6 | B13: B 11/u 4 x 1L | C13: Relay | D13: Thomas Ribchester | E13: Sonny Butcher
B14: Medley Relay | D14: Kieran O'Reilly | E14: James Williams
A15: 7 | B15: G 12/u 2L | C15: Erin Irving
B16: Backstroke
A17: 8 | B17: B 12/u 2L | C17: Thomas Collerhan
B18: Backstroke
A19: 9 | B19: G 10/u 2L | C19: Ayla Goucher
B20: Breaststroke
A21: 10 | B21: B 10/u 2L | C21: Keiran O'Reilly
B22: Breaststroke
A23: 11 | B23: G 9 yrs 4 x 1L | C23: Relay | D23: Larissa Lobban | E23: Freya Lane
B24: Medley Relay | D24: Constance Gwillim | E24: Cassie Kelly-Cooper
A25: 12 | B25: B 9 yrs 4 x lL | C25: Relay | D25: Swimmer A | E25: Swimmer B
B26: Medley Relay | D26: Swimmer C | E26: Swimmer D
A27: 13 | B27: G 11/u 4 x lL | D27: Eleanor Ribchester | E27: Maddie Bowler
B28: Freestyle Relay | C28: Relay | D28: Megan O'Reilly | E28: Cara Miller
A29: 14 | B29: B 11/u 4 x 1L | D29: Thomas Ribchester | E29: Toru Ashton
B30: Freestyle Relay | C30: Relay | D30: Luke Burton | E30: Sonny Butcher
A31: 15 | B31: G 12/u 2L | C31: Molly Faber
B32: Butterfly
A33: 16 | B33: B 12/u 2L | C33: Dylan Abulencia
B34: Butterfly
A35: 17 | B35: G 10/u 4 x1L | C35: Relay | D35: Louise Krone | E35: Ayla Goucher
B36: Medley Relay | D36: Khloe Deoso | E36: Eleanor McLennan
A37: 18 | B37: B 10/u 4 x 1L | C37: Relay | D37: Luke Burton | E37: Kieran O'Reilly
B38: Medley Relay | D38: Toru Ashton | E38: Ethan Wilcox
A39: 19 | B39: G 11/u 2L | C39: Eleanor Ribchester
B40: Backstroke
A41: 20 | B41: B 11/u 2L | C41: Thomas Ribchester
B42: Backstroke
A43: 21 | B43: G 9 yrs 4 x 1L | C43: Relay | D43: Cassie Kelly-Cooper | E43: Freya Lane
B44: Freestyle Relay | D44: Izzy Nouhov | E44: Larissa Lobhan
A45: 22 | B45: B 9 yrs 4x1L | C45: Relay | D45: Swimmer A | E45: Swimmer B
B46: Freestyle Relay | D46: Swimmer C | E46: Swimmer D
A47: 23 | B47: G 12/u 2L | C47: Eve Phillips
B48: Breaststroke
A49: 24 | B49: B 12/u 2L | C49: Dylan Abulencia
B50: Breaststroke
A51: 25 | B51: G 10yrs 4 x 1L | C51: Relay | D51: Ayla Goucher | E51: Macy Walker
B52: Freestyle Relay | D52: Khloe Deoso | E52: Eleanor McLennan
A53: 26 | B53: B 10yrs 4 x 1L | C53: Relay | D53: Kieran O'Reilly | E53: James Williams
B54: Freestyle Relay | D54: Luke Burton | E54: Toru Ashton
A55: 27 | B55: G 11/u 2L | C55: Eleanor Ribchester
B56: Butterfly
A57: 28 | B57: B 11/u 2L | C57: Sonny Butcher
B58: Butterfly
A59: 29 | B59: G 9 yrs 1L | C59: Constance Gwillim
B60: Butterfly
A61: 30 | B61: B 9 yrs 1L | C61: Swimmer
B62: Butterfly
A63: 31 | B63: G 12/u 2L | C63: Erin Irving
B64: Freestyle
A65: 32 | B65: B 12/u 2L | C65: Aiden Irving
B66: Freestyle
A67: 33 | B67: G 8 x 1L | C67: Relay | D67: Constance Gwillim | E67: Izzy Nouhov | F67: Macy Walker | G67: Eleanor McLennan
B68: Freestyle Relay | D68: Megan O'Reilly | E68: Eleanor Ribchester | F68: Erin Irving | G68: Eve Phillips
A69: 34 | B69: B 10/u 2L | C69: Luke Burton
B70: Backstroke
A71: 35 | B71: G 10/u 2L | C71: Louise Khrone
B72: Backstroke
A73: 36 | B73: B 9 yrs 1L | C73: Ethan Ryan
B74: Freestyle
A75: 37 | B75: G 9 yrs 1L | C75: Cassie Kelly-Cooper
B76: Freestyle
A77: 38 | B77: B 12/u 4 x 1L | C77: Relay | D77: Sam Nouhov | E77: Thomas Colerhan
B78: Freestyle Relay | D78: Dylan Abulencia | E78: Aiden Irving
A79: 39 | B79: G 12/u 4 x 1L | C79: Relay | D79: Eve Philips | E79: Molly Faber
B80: Freestyle Relay | D80: Josephine Potter | E80: Erin Irving
A81: 40 | B81: B 11/u 2L | C81: Sonny Butcher
B82: Breaststroke
A83: 41 | B83: G 11/u 2L | C83: Megan O'Reilly
B84: Breaststroke
A85: 42 | B85: B 8 x 1L | C85: Relay | D85: Ethan Ryan | E85: Luke Burton | F85: James Williams | G85: Ethan Wilcox
B86: Freestyle Relay | D86: Thomas Ribchester | E86: Sonny Butcher | F86: Sam Nouhov | G86: Thomas Colerhan
A87: 43 | B87: G 10/u 1L | C87: Ayla Goucher
B88: Butterfly
A89: 44 | B89: B 10/u 1L | C89: Kieran O'Reilly
B90: Butterfly
A91: 45 | B91: G 9yrs 1L | C91: Cassie Kelly-Cooper
B92: Backstroke
A93: 46 | B93: B 9 yrs 1L | C93: Swimmer
B94: Backstroke
A95: 47 | B95: G 11/u 2L | C95: Cara Miller
B96: Freestyle
A97: 48 | B97: B 11/u 2L | C97: Thomas Ribchester
B98: Freestyle
A99: 49 | B99: G 12/u 4x1L | C99: Relay | D99: Erin Irving | E99: Josephine Potter
B100: Medley Relay | D100: Molly Faber | E100: Eve Phillips
A101: 50 | B101: B 12/u 4x1L | C101: Relay | D101: Thomas Colerhan | E101: Sam Nouhov
B102: Medley Relay | D102: Dylan Abulencia | E102: Aiden Irving
A103: 51 | B103: Mixed 8x1L Freestyle | C103: Relay | D103: Cassie Kelly-Cooper | E103: Ethan Ryan | F103: Khloe Deoso | G103: Kieran O'Reilly
B104: Relay (1G+1B each age group) | D104: Eleanor Ribchester | E104: Thomas Ribchester | F104: Erin Irving | G104: Aiden Irving

Sheet Lane 5
B1: Club Name
B2: Lane No:
A3: 1 | B3: G 10yrs 2L | C3: Waleeha Qaiser
B4: Freestyle
A5: 2 | B5: B 10/u 2L | C5: Veer Mulji
B6: Freestyle
A7: 3 | B7: G 9 yrs 1L | C7: Kiyane Mesref
B8: Breaststroke
A9: 4 | B9: B 9 yrs 1L | C9: James Inshaw
B10: Breaststroke
A11: 5 | B11: G 11/u 4 x 1L | C11: Relay | D11: Indigo Perrett | E11: Neveah Choudhury
B12: Medley Relay | D12: Kiyane Mesref | E12: Ava Browne
A13: 6 | B13: B 11/u 4 x 1L | C13: Relay | D13: Joe Box | E13: James Inshaw
B14: Medley Relay | D14: Issac Walton | E14: Riley Talbot-Fielding
A15: 7 | B15: G 12/u 2L | C15: AJ Finch
B16: Backstroke
A17: 8 | B17: B 12/u 2L | C17: Michael Bushael
B18: Backstroke
A19: 9 | B19: G 10/u 2L | C19: Neveah Choudhury
B20: Breaststroke
A21: 10 | B21: B 10/u 2L | C21: Joe Box
B22: Breaststroke
A23: 11 | B23: G 9 yrs 4 x 1L | C23: Relay | D23: Swimmer A | E23: Swimmer B
B24: Medley Relay | D24: Swimmer C | E24: Swimmer D
A25: 12 | B25: B 9 yrs 4 x lL | C25: Relay | D25: Swimmer A | E25: Swimmer B
B26: Medley Relay | D26: Swimmer C | E26: Swimmer D
A27: 13 | B27: G 11/u 4 x lL | D27: Indigo Perrett | E27: Neveah Choudhury
B28: Freestyle Relay | C28: Relay | D28: Ava Browne | E28: Waleeha Qaiser
A29: 14 | B29: B 11/u 4 x 1L | D29: Issac Walton | E29: Joe Box
B30: Freestyle Relay | C30: Relay | D30: James Inshaw | E30: Riley Talbot-Fielding
A31: 15 | B31: G 12/u 2L | C31: Charlotte Inshaw
B32: Butterfly
A33: 16 | B33: B 12/u 2L | C33: Alfiie Cowie
B34: Butterfly
A35: 17 | B35: G 10/u 4 x1L | C35: Relay | D35: Ava Browne | E35: Neveah Choudhury
B36: Medley Relay | D36: Kiyane Mesref | E36: Lucy Talbot-Fielding
A37: 18 | B37: B 10/u 4 x 1L | C37: Relay
B38: Medley Relay
A39: 19 | B39: G 11/u 2L | C39: Indigo Perrett
B40: Backstroke
A41: 20 | B41: B 11/u 2L | C41: Riley Talbot-Fielding
B42: Backstroke
A43: 21 | B43: G 9 yrs 4 x 1L | C43: Relay | D43: Swimmer A | E43: Swimmer B
B44: Freestyle Relay | D44: Swimmer C | E44: Swimmer D
A45: 22 | B45: B 9 yrs 4x1L | C45: Relay | D45: Swimmer A | E45: Swimmer B
B46: Freestyle Relay | D46: Swimmer C | E46: Swimmer D
A47: 23 | B47: G 12/u 2L | C47: Abigail Tan
B48: Breaststroke
A49: 24 | B49: B 12/u 2L | C49: Michael Dutton
B50: Breaststroke
A51: 25 | B51: G 10yrs 4 x 1L | C51: Relay | D51: Kiyane Mesref | E51: Neveah Choudhury
B52: Freestyle Relay | D52: Waleeha Qaiser | E52: Lucy Talbot-Fielding
A53: 26 | B53: B 10yrs 4 x 1L | C53: Relay
B54: Freestyle Relay
A55: 27 | B55: G 11/u 2L | C55: Swimmer
B56: Butterfly
A57: 28 | B57: B 11/u 2L | C57: Issac Walton
B58: Butterfly
A59: 29 | B59: G 9 yrs 1L | C59: Kiyane Mesref
B60: Butterfly
A61: 30 | B61: B 9 yrs 1L | C61: James Inshaw
B62: Butterfly
A63: 31 | B63: G 12/u 2L | C63: Grace Fatchett
B64: Freestyle
A65: 32 | B65: B 12/u 2L | C65: Alfiie Cowie
B66: Freestyle
A67: 33 | B67: G 8 x 1L | C67: Relay | D67: Kiyane Mesref | E67: Lucy Talbot-Fielding | F67: Indigo Perrett | G67: Charlotte Inshaw
B68: Freestyle Relay | D68: Ava Browne | E68: Waleeha Qaiser | F68: Neveah Choudhury | G68: Abigail Tab
A69: 34 | B69: B 10/u 2L | C69: Veer Mulji
B70: Backstroke
A71: 35 | B71: G 10/u 2L | C71: Neveah Choudhury
B72: Backstroke
A73: 36 | B73: B 9 yrs 1L
B74: Freestyle
A75: 37 | B75: G 9 yrs 1L | C75: Lucy Talbot-Fielding
B76: Freestyle
A77: 38 | B77: B 12/u 4 x 1L | C77: Relay | D77: Alfie Cowie | E77: Michael Bushael
B78: Freestyle Relay | D78: Michael Dutton | E78: Issac Walton
A79: 39 | B79: G 12/u 4 x 1L | C79: Relay | D79: Charlotte Inshaw | E79: Abigail Tan
B80: Freestyle Relay | D80: AJ Finch | E80: Gracie Fatchett
A81: 40 | B81: B 11/u 2L | C81: Issac Walton
B82: Breaststroke
A83: 41 | B83: G 11/u 2L | C83: Neveah Choudhury
B84: Breaststroke
A85: 42 | B85: B 8 x 1L | C85: Relay
B86: Freestyle Relay
A87: 43 | B87: G 10/u 1L | C87: Kiyane Mesref
B88: Butterfly
A89: 44 | B89: B 10/u 1L | C89: Joe Box
B90: Butterfly
A91: 45 | B91: G 9yrs 1L | C91: Ava Browne
B92: Backstroke
A93: 46 | B93: B 9 yrs 1L | C93: Luka Prodan
B94: Backstroke
A95: 47 | B95: G 11/u 2L | C95: Indigo Perrett
B96: Freestyle
A97: 48 | B97: B 11/u 2L | C97: Riley Talbot-Fielding
B98: Freestyle
A99: 49 | B99: G 12/u 4x1L | C99: Relay | D99: Charlotte Inshaw | E99: Gracie Fatchett
B100: Medley Relay | D100: Abigail Tan | E100: AJ Finch
A101: 50 | B101: B 12/u 4x1L | C101: Relay | D101: Michael Bushael | E101: Issac Walton
B102: Medley Relay | D102: Alfie Cowie | E102: Michael Dutton
A103: 51 | B103: Mixed 8x1L Freestyle | C103: Relay | D103: Ava Browne | E103: Neveah Choudhury | F103: Indigo Perrett | G103: Charlotte Inshaw
B104: Relay (1G+1B each age group) | D104: James Inshaw | E104: Joe Box | F104: Issac Walton | G104: Alfie Cowie

Sheet Lane 6
B1: Club Name
B2: Lane No:
A3: 1 | B3: G 10yrs 2L | C3: S Warrilow
B4: Freestyle
A5: 2 | B5: B 10/u 2L | C5: W Bottrill
B6: Freestyle
A7: 3 | B7: G 9 yrs 1L | C7: M Khera
B8: Breaststroke
A9: 4 | B9: B 9 yrs 1L | C9: J Watson
B10: Breaststroke
A11: 5 | B11: G 11/u 4 x 1L | C11: Relay | D11: R Powell | E11: A Imram
B12: Medley Relay | D12: E Hendon | E12: J Munslow
A13: 6 | B13: B 11/u 4 x 1L | C13: Relay | D13: H Bottrill | E13: A Guild
B14: Medley Relay | D14: B Webb | E14: E Terry
A15: 7 | B15: G 12/u 2L | C15: R Powell
B16: Backstroke
A17: 8 | B17: B 12/u 2L | C17: H Bottrill
B18: Backstroke
A19: 9 | B19: G 10/u 2L | C19: M Khera
B20: Breaststroke
A21: 10 | B21: B 10/u 2L | C21: W Bottrill
B22: Breaststroke
A23: 11 | B23: G 9 yrs 4 x 1L | C23: Relay | D23: M Munslow | E23: M Khera
B24: Medley Relay | D24: K Bell | E24: T Rollins
A25: 12 | B25: B 9 yrs 4 x lL | C25: Relay | D25: R Smith | E25: F Corroll
B26: Medley Relay | D26: J Watson | E26: N Kalitat
A27: 13 | B27: G 11/u 4 x lL | D27: E Hendon | E27: R Powell
B28: Freestyle Relay | C28: Relay | D28: A Ingram | E28: J Munslow
A29: 14 | B29: B 11/u 4 x 1L | D29: B Webb | E29: A Guild
B30: Freestyle Relay | C30: Relay | D30: E Terry | E30: H Bottrill
A31: 15 | B31: G 12/u 2L | C31: A Robathan
B32: Butterfly
A33: 16 | B33: B 12/u 2L | C33: C Fletcher
B34: Butterfly
A35: 17 | B35: G 10/u 4 x1L | C35: Relay | D35: S Warrilow | E35: M Khera
B36: Medley Relay | D36: T Rollins | E36: K Bell
A37: 18 | B37: B 10/u 4 x 1L | C37: Relay | D37: J Bottrill | E37: W Bottrill
B38: Medley Relay | D38: T Mobbs | E38: W Gorton
A39: 19 | B39: G 11/u 2L | C39: R Powell
B40: Backstroke
A41: 20 | B41: B 11/u 2L | C41: H Bottrill
B42: Backstroke
A43: 21 | B43: G 9 yrs 4 x 1L | C43: Relay | D43: M Munslow | E43: B Taylor
B44: Freestyle Relay | D44: E Hunt | E44: M Khera
A45: 22 | B45: B 9 yrs 4x1L | C45: Relay | D45: J Watson | E45: N Kalitat
B46: Freestyle Relay | D46: R Smith | E46: F Corroll
A47: 23 | B47: G 12/u 2L | C47: E Rollins
B48: Breaststroke
A49: 24 | B49: B 12/u 2L | C49: C Fletcher
B50: Breaststroke
A51: 25 | B51: G 10yrs 4 x 1L | C51: Relay | D51: B Taylor | E51: E Hunt
B52: Freestyle Relay | D52: T Rollins | E52: S Warrilow
A53: 26 | B53: B 10yrs 4 x 1L | C53: Relay | D53: W Bottrill | E53: J Bottrill
B54: Freestyle Relay | D54: T Mobbs | E54: W Gorton
A55: 27 | B55: G 11/u 2L | C55: E Hendon
B56: Butterfly
A57: 28 | B57: B 11/u 2L | C57: B Webb
B58: Butterfly
A59: 29 | B59: G 9 yrs 1L | C59: K Bell
B60: Butterfly
A61: 30 | B61: B 9 yrs 1L | C61: Swimmer
B62: Butterfly
A63: 31 | B63: G 12/u 2L | C63: E Rollins
B64: Freestyle
A65: 32 | B65: B 12/u 2L | C65: B Webb
B66: Freestyle
A67: 33 | B67: G 8 x 1L | C67: Relay | D67: M Munslow | E67: T Rollins | F67: M Khera | G67: B Taylor
B68: Freestyle Relay | D68: O Kelly | E68: A Ingram | F68: E Rollins | G68: A Robathan
A69: 34 | B69: B 10/u 2L | C69: T Mobbs
B70: Backstroke
A71: 35 | B71: G 10/u 2L | C71: S Warrilow
B72: Backstroke
A73: 36 | B73: B 9 yrs 1L | C73: J Watson
B74: Freestyle
A75: 37 | B75: G 9 yrs 1L | C75: M Munslow
B76: Freestyle
A77: 38 | B77: B 12/u 4 x 1L | C77: Relay | D77: B Webb | E77: E Terry
B78: Freestyle Relay | D78: C Fletcher | E78: M Dowd
A79: 39 | B79: G 12/u 4 x 1L | C79: Relay | D79: E Rollins | E79: R Powell
B80: Freestyle Relay | D80: A Robathan | E80: E Hendon
A81: 40 | B81: B 11/u 2L | C81: A Guild
B82: Breaststroke
A83: 41 | B83: G 11/u 2L | C83: A Ingram
B84: Breaststroke
A85: 42 | B85: B 8 x 1L | C85: Relay | D85: J Watson | E85: N Kalitat | F85: W Bottrill | G85: J Bottrill
B86: Freestyle Relay | D86: B Webb | E86: E Terry | F86: M Dowd | G86: C Fletcher
A87: 43 | B87: G 10/u 1L
B88: Butterfly
A89: 44 | B89: B 10/u 1L | C89: T Mobbs
B90: Butterfly
A91: 45 | B91: G 9yrs 1L | C91: M Munslow
B92: Backstroke
A93: 46 | B93: B 9 yrs 1L | C93: N Kalitat
B94: Backstroke
A95: 47 | B95: G 11/u 2L | C95: R Powell
B96: Freestyle
A97: 48 | B97: B 11/u 2L | C97: B Webb
B98: Freestyle
A99: 49 | B99: G 12/u 4x1L | C99: Relay | D99: R Powell | E99: E Rollins
B100: Medley Relay | D100: A Robathan | E100: E Hendon
A101: 50 | B101: B 12/u 4x1L | C101: Relay | D101: M Dowd | E101: C Fletcher
B102: Medley Relay | D102: B Webb | E102: E Terry
A103: 51 | B103: Mixed 8x1L Freestyle | C103: Relay | D103: M Munslow | E103: J Watson | F103: N Thera | G103: T Mobbs
B104: Relay (1G+1B each age group) | D104: A Ingram | E104: B Webb | F104: E Rollins | G104: C Fletcher
